{"text_format":"1","workbook":"xlsx","n_sheets":14,"sheets":["HOME","Applicant Info","Checklist","Terms & Conditions","Multi-Facility","Lighting SOW","Lighting","HVAC","Food Service","Refrigeration","Pool Pumps","Industrial","Miscellaneous","Custom"],"not_rendered":{"charts":0,"images":32,"macros":1,"external_links":11,"defined_names":532,"comments":3,"pivot_tables":0},"unopened":[],"bounds":{"document_bytes":16777216,"sheet_cells":100000,"rows_first":2000,"rows_last":500,"rows_between":2000,"halvings":0,"cell_chars":16384,"cell_head_chars":4096},"cells_cut":0,"cells_raw":0,"read":"whole","date_system":"1900"}

{"sheet":"HOME","index":0,"n_rows":16,"n_cols":8,"rows_kept":16,"cut":false,"hidden":false,"merged":[[12,6,12,8],[9,1,9,4],[3,4,3,5],[3,7,3,8],[3,1,3,2],[6,6,6,8],[14,6,14,8],[7,6,8,8],[9,6,9,8],[10,6,10,8],[11,6,11,8],[11,1,13,4],[13,9,13,12],[0,0,1,1],[5,0,5,3],[13,6,13,8],[15,1,16,4],[1,2,1,8],[0,2,0,8],[2,0,2,8],[6,1,7,4]]}
[null,null,"2024 Retrofit Rebate Application v1"]
[null,null,"PNM Business Energy Efficiency Programs"]
["Why improve energy efficiency?"]
[null,"Improves profitability by cutting operating costs",null,null,"Distinguishes your business as an energy efficiency advocate within our community",null,null,"Qualifies your project for rebates that can help cover upgrade costs"]
[]
["         Application Process",null,null,null,null,null,"Contact Our Team"]
["1.","Submit a Pre-Notification Application to \nreserve funding (if required).",null,null,null,null,"Address:"]
[null,null,null,null,null,null,"320 Gold Avenue SW, Suite 500\nAlbuquerque, NM 87102\n"]
[]
["2.","Install qualified technology.",null,null,null,null,"Main Phone:"]
[null,null,null,null,null,null,"(505) 938-9400"]
["3.","Complete, sign, and submit a Final \nApplication with all required documentation \nwithin 6 months of project completion.",null,null,null,null,"Email:"]
[null,null,null,null,null,null,"energyefficiency@pnm.com"]
[null,null,null,null,null,null,"Website:"]
[null,null,null,null,null,null,"www.pnmenergyefficiency.com"]
["4.","The incentive check will be sent 4 to 6 \nweeks after approval of the Final Application."]

{"sheet":"Applicant Info","index":1,"n_rows":76,"n_cols":17,"rows_kept":76,"cut":false,"hidden":false,"merged":[[18,0,18,5],[7,7,7,8],[20,6,20,10],[26,0,26,3],[31,9,31,10],[29,0,29,10],[31,4,31,5],[30,0,30,3],[20,0,20,5],[17,0,17,5],[22,8,22,10],[28,4,28,5],[28,0,28,3],[57,5,58,6],[31,0,31,3],[0,3,0,8],[3,0,3,5],[3,6,3,8],[28,8,28,10],[25,6,25,7],[27,0,27,3],[27,4,27,5],[27,6,27,7],[26,4,26,10],[18,6,18,10],[7,0,7,1],[10,0,10,5],[0,9,0,10],[6,7,6,8],[14,6,14,10],[5,7,5,8],[10,6,10,8],[24,4,24,10],[37,7,38,10],[25,0,25,3],[30,4,30,10],[23,4,23,10],[64,1,64,4],[5,2,5,3],[39,4,39,10],[39,0,39,3],[42,3,42,5],[35,0,35,10],[32,0,32,3],[32,4,32,10],[34,6,34,7],[33,0,33,3],[33,4,33,10],[44,6,44,7],[40,0,40,5],[42,6,42,7],[56,5,56,6],[21,0,21,5],[22,3,22,5],[9,0,9,10],[16,0,16,5],[60,0,60,4],[51,0,51,10],[52,0,52,10],[54,0,54,10],[46,8,46,10],[60,7,60,10],[58,0,58,4],[44,4,44,5],[40,6,40,10],[48,9,48,10],[48,0,48,4],[48,5,48,8],[56,0,56,4],[55,0,55,4],[57,0,57,4],[59,0,59,4],[55,7,55,10],[56,7,56,10],[57,7,57,10],[46,4,46,5],[53,0,53,10],[49,5,49,8],[49,0,49,4],[47,0,47,10],[59,7,59,10],[58,7,58,10],[49,9,49,10],[43,4,43,10],[44,0,44,3],[45,0,45,3],[43,0,43,3],[45,4,45,10],[19,6,19,10],[21,6,21,10],[19,0,19,5],[31,6,31,8],[34,0,34,3],[34,4,34,5],[42,8,42,10],[41,0,41,5],[41,6,41,10],[23,0,23,3],[24,0,24,3],[22,6,22,7],[25,4,25,5]]}
[null,null,null,"APPLICANT INFORMATION",null,null,null,null,null,"For office use only:"]
[null,null,null,null,null,null,null,null,null,"Application #","Revision #"]
[]
["Application Type:",null,null,null,null,null,"Check ONE box below:"]
[]
[null,null,"Retrofit",null,null,null,null,"Pre-Notification",null,"Date",null,null,null,null,null,{"$f":"IF(G6>0,\"Yes\",)","v":0}]
[null,null,null,null,null,null,null,"or",null,null,null,null,null,null,"New pre notification checkbox flag:"]
[null,null,null,null,null,null,null,"Final Application",null,"Date",null,null,null,null,false]
[null,null,null,null,null,null,null,null,null,null,null,null,null,null,null,false]
["Customer Information",null,null,null,null,null,null,null,null,null,null,null,null,null,"Multifacility checkbox flag:"]
["PNM Account Number where measures installed* ",null,null,null,null,null,null,null,null,null,null,null,null,null,false]
[]
[null,null,"This Application represents multiple accounts / premises",null,null,null,"Enter number of Accounts / Premises ------->",null,null,null,null,null,null,{"$f":"is","v":{"$error":"#NAME?"}},"Lighting Measures flag:",false]
[]
[null,null,"This project includes lighting measures as part of the scope",null,null,null,"2. If yes: Complete Multi-Facility Worksheet -------> CLICK HERE"]
[null,null,"Scope  of Work is REQUIRED for Lighting measures ----> Click Here"]
["Building Type*"]
[null,null,null,null,null,null,null,null,null,null,null,null,"Business Type",null,"Tax Status",null,"State"]
["Name of Company*",null,null,null,null,null,"Name Exactly as it Appears on Your Utility Bill*",null,null,null,null,null,"Assembly",null,"Corporation (Inc, PC, etc.)",null,"AL"]
[null,null,null,null,null,null,null,null,null,null,null,null,"College/University",null,"Government Agency",null,"AK"]
["Name of Contact Person*",null,null,null,null,null,"Title*",null,null,null,null,null,"Grocery",null,"Individual",null,"AZ"]
[null,null,null,null,null,null,null,null,null,null,null,null,"Heavy Industry",null,"Partnership",null,"AR"]
["Telephone #*",null,null,null,null,null,"Fax #",null,null,null,null,null,"Hotel/Motel Common Areas",null,"Exempt",null,"CA"]
["Email Address*",null,null,null,null,null,null,null,null,null,null,null,"Light Industry",null,null,null,"CO"]
["Address Where Measures Installed*",null,null,null,null,null,null,null,null,null,null,null,"Medical",null,null,null,"CT"]
["City Where Measures Installed*",null,null,null,null,null,"State*",null,{"$f":"IF(E26=\"\",\"\",\"NM\")","v":""},"Zip*",null,null,"Office",null,null,null,"DE"]
["Mailing Address*",null,null,null,null,null,null,null,null,null,null,null,"Restaurant",null,null,null,"FL"]
["City*",null,null,null,null,null,"State*",null,null,"Zip*",null,null,"Retail/Service",null,null,null,"GA"]
["Taxpayer ID Number (SSN/FEIN)*",null,null,null,null,null,"Tax Status*",null,null,null,null,null,"K-12 School",null,null,null,"HI"]
["Contractor Information",null,null,null,null,null,null,null,null,null,null,null,"Warehouse",null,null,null,"ID"]
["Contracting Company*",null,null,null,null,null,null,null,null,null,null,null,"Hotel/Motel or Dwelling Unit",null,null,null,"IL"]
["Contractor Name*",null,null,null,null,null,"Contractor Phone Number*",null,null,null,null,null,"Parking Garage",null,null,null,"IN"]
["Contractor Email Address*",null,null,null,null,null,null,null,null,null,null,null,"Horticulture",null,null,null,"IA"]
["Contractor Mailing Address*",null,null,null,null,null,null,null,null,null,null,null,"Miscellaneous",null,null,null,"KS"]
["City*",null,null,null,null,null,"State*",null,null,"Zip*",null,null,null,null,null,null,"KY"]
["Third Party Payment Release",null,null,null,null,null,null,null,null,null,null,null,null,null,null,null,"LA"]
[null,null,null,null,null,null,null,null,null,null,null,null,null,null,null,null,"ME"]
[null,null,"I request that the incentive check be sent to the third party below",null,null,null,null,"Check here if the third party payee is the contractor (Contractor must be a PNM Authorized Contractor to be eligible for third party payment)",null,null,null,null,null,null,null,null,"MD"]
[null,null,null,null,null,null,null,null,null,null,null,null,null,null,null,null,"MA"]
["Name of Third Party*",null,null,null,null,null,null,null,null,null,null,null,null,null,null,null,"MI"]
["Name of Third Party Contact Person*",null,null,null,null,null,"Title*",null,null,null,null,null,null,null,null,null,"MN"]
[null,null,null,null,null,null,null,null,null,null,null,null,null,null,null,null,"MS"]
["Third Party Phone #*",null,null,null,null,null,"Fax #",null,null,null,null,null,null,null,null,null,"MO"]
["Third Party Mailing Address*",null,null,null,null,null,null,null,null,null,null,null,null,null,null,null,"MT"]
["Third Party City*",null,null,null,null,null,"State*",null,null,"Zip*",null,null,null,null,null,null,"NE"]
["Third Party Email Address*",null,null,null,null,null,null,null,null,null,null,null,null,null,null,null,"NV"]
["Third Party Taxpayer ID # (SSN/FEIN)*",null,null,null,null,null,"Tax Status*",null,null,null,null,null,null,null,null,null,"NH"]
["Incentive Summary",null,null,null,null,null,null,null,null,null,null,null,null,null,null,null,"NJ"]
["Total Incentive Requested",null,null,null,null,"Total Project Cost  PRE-TAX * REQUIRED *",null,null,null,{"$f":"IF(AND(O8=TRUE,P9=TRUE),\"Project Completion Date\",IF(O8=TRUE, \"Estimated Project Completion Date\", \"Project Completion Date\"))","v":"Project Completion Date"},null,null,null,null,null,null,"NM"]
[{"$f":"MIN(F65, F50*0.5,400000)","v":0},null,null,null,null,null,null,null,null,null,null,null,null,null,null,null,"NY"]
[null,null,null,null,null,null,null,null,null,null,null,null,null,null,null,null,"NC"]
["AGREEMENT",null,null,null,null,null,null,null,null,null,null,null,null,null,null,null,"ND"]
["I understand that in the event funds are reserved based on a pre-notification, the payment of incentives will be based upon the Final Application and program terms and conditions, and that the PNM Business Energy Efficiency program is subject to change or cancellation at any time and without notice. PNM is not responsible for any lost, late, stolen, ineligible, illegible, misdirected or postage-due mail. All completed submissions become the property of PNM and will not be returned. PNM makes no guarantees about the availability of products or rebate forms. By participating in the PNM Business Energy Efficiency program, customers agree to waive any claims and release PNM from any liability for damages of any kind. Rebates are funded by a charge on PNM electric customer bills.",null,null,null,null,null,null,null,null,null,null,null,null,null,null,null,"OH"]
["I have read and understand the program requirements, measure specifications, and Terms & Conditions set forth in this application and agree to abide by those requirements. Furthermore, I concur that I must meet all eligibility criteria in order to be paid under this program.",null,null,null,null,null,null,null,null,null,null,null,null,null,null,null,"OK"]
["As an eligible customer, I verify that the signature below is my own and that the information is correct. I am requesting consideration for participation under this program. By signing this agreement I attest that I understand and agree to abide by all Program terms and conditions.",null,null,null,null,null,null,null,null,null,null,null,null,null,null,null,"OR"]
["Customer Signature (PNM Customer)",null,null,null,null,null,null,"Third Party Signature",null,null,null,null,null,null,null,null,"PA"]
[null,null,null,null,null,"Please sign by hand or via DocuSign®",null,null,null,null,null,null,null,null,null,null,"RI"]
["Print Customer Name",null,null,null,null,null,null,"Print Third Party Name",null,null,null,null,null,null,null,null,"SC"]
[null,null,null,null,null,null,null,null,null,null,null,null,null,null,null,null,"SD"]
["Date",null,null,null,null,null,null,"Date",null,null,null,null,null,null,null,null,"TN"]
[null,null,null,null,null,null,null,null,null,null,null,null,null,null,null,null,"TX"]
[null,null,null,null,null,null,null,null,null,null,null,null,null,null,null,null,"UT"]
[null,null,null,null,null,null,null,null,null,null,null,null,null,null,null,null,"VT"]
[null,null,null,null,null,null,null,null,null,null,null,null,null,null,null,null,"VA"]
[null,"For Office Use Only",null,null,null,{"$f":"SUM(F66:F76)","v":0},null,null,null,null,null,null,null,null,null,null,"WA"]
[null,"Interior Retrofits Incentive",null,null,null,{"$f":"Lighting!N21","v":0},null,null,null,null,null,null,null,null,null,null,"WI"]
[null,"LED Replacing HID Incentive",null,null,null,{"$f":"Lighting!J35","v":0},null,null,null,null,null,null,null,null,null,null,"WV"]
[null,"LED Replacing T5, T8, or T12 incentive",null,null,null,{"$f":"Lighting!J80","v":0},null,null,null,null,null,null,null,null,null,null,"WY"]
[null,"Existing LED Controls Incentive",null,null,null,{"$f":"Lighting!F125","v":0}]
[null,"HVAC Incentive",null,null,null,{"$f":"HVAC!H93","v":0}]
[null,"Food Service Incentive",null,null,null,{"$f":"'Food Service'!J42","v":0}]
[null,"Refrigeration Incentive",null,null,null,{"$f":"Refrigeration!I20","v":0}]
[null,"Pool Pumps Incentive",null,null,null,{"$f":"'Pool Pumps'!J10","v":0}]
[null,"Industrial Incentive",null,null,null,{"$f":"Refrigeration!I20","v":0}]
[null,"Miscellaneous Incentive",null,null,null,{"$f":"Miscellaneous!H44","v":0}]
[null,"Custom Incentive",null,null,null,{"$f":"Custom!I51","v":0}]

{"sheet":"Checklist","index":2,"n_rows":43,"n_cols":3,"rows_kept":43,"cut":false,"hidden":false,"merged":[[29,0,29,2],[40,1,40,2],[41,1,41,2],[42,1,42,2],[30,1,30,2],[34,1,34,2],[39,0,39,2],[38,1,38,2],[31,1,31,2],[32,1,32,2],[33,1,33,2],[35,1,35,2],[37,1,37,2],[36,0,36,2],[28,0,28,2],[24,0,24,2],[21,0,21,2],[17,0,17,2],[22,1,22,2],[27,1,27,2],[23,1,23,2],[18,1,18,2],[25,1,25,2],[26,1,26,2],[10,1,10,2],[11,1,11,2],[13,1,13,2],[14,1,14,2],[5,1,5,2],[6,1,6,2],[7,1,7,2],[8,1,8,2],[12,0,12,2],[9,0,9,2],[0,0,0,3],[2,1,2,2],[3,0,3,2],[1,0,1,2],[4,0,4,2]]}
["APPLICATION CHECKLIST"]
["1) Verify"]
[null,"Submit application within 6 months of project completion, and include the following components:"]
["2) Application Information Form"]
["CUSTOMER INFORMATION"]
[null,"Customer name is the same as it appears on PNM bills."]
[null,"PNM account number is complete and accurate (NOTE: New Construction account information may not be available for Pre-Notification, but is required for the Final Application.)"]
[null,"Taxpayer ID is complete and accurate."]
[null,"First-time customers/payees MUST submit IRS From W-9 with application."]
["CONTRACTOR INFORMATION"]
[null,"Provide complete contact information for project contractor. (We may need to contact your contractor to verify any project details.)"]
[null,"If the job is completed by in-house staff, list Contractor as \"done-in-house.\""]
["INCENTIVE CHECK INFORMATION"]
[null,"Complete contact information and taxpayer ID."]
[null,"Indicate whether the customer or a third party should receive the check. If a third party is to receive the check:"]
[null,null,"Customer must check box indicating third party payment."]
[null,null,"Both the customer and third party must sign the Agreement Form."]
["3) Total Incentives Required"]
[null,"Fill out the following sections:"]
[null,null,"Total Project Cost (pre-tax)"]
[null,null,"Project Completion Date"]
["4) Terms & Conditions of Applications"]
[null,"Customer must read and agree with the Terms & Conditions of the PNM Business Energy Efficiency Program."]
[null,"If a third party is applying on behalf of the customer, customer must sign the Agreement Form, allowing the third party to sign the application on the customer's behalf."]
["5) Incentive Worksheets"]
[null,"Complete the incentive worksheet for each application measure (e.g., lighting, HVAC, refrigeration). Calculations are included where required (e.g., occupancy sensors)."]
[null,"Ensure the measures installed meet the Specifications for those measures, per the Specifications section at the bottom of those measure tabs."]
[null,"Lighting Retrofit Scope of Work From is REQUIRED for all lighting projects (see the 'Lighting SOW' tab) to ensure faster inspection and verification of installed items."]
["6) Additional Documentation"]
["COST ESTIMATE / INVOICES"]
[null,"For Pre-Notification, submit cost estimate or purchase order with your appllication."]
[null,"For Final application, submit invoices dated no more than 6 months prior to rebate application date."]
[null,"List the installation address, on invoices, cost estimate, or purchase order (must be in PNM service territory)."]
[null,"Ensure invoice, cost estimate, or purchase order shows correct model numbers for each measure installed."]
[null,"Ensure invoices indicate payment by the customer (e.g., shows zero balance due, stamped paid, or check number, and paid date are included)."]
[null,"Submit copies of cancelled checks. Total of cancelled checks must match total of invoices (Total Project Cost)."]
["SPECIFICATION SHEETS"]
[null,"Provide a manufacturer's specification sheet for each measure installed (e.g., lamp, ballast, controls, refrigerator, freezer, ice machine, etc.)"]
[null,"Ensure specification sheets include all program eligibility requirements for the measure (e.g., CRI of lamps, ballast factors, IPLV for AC units, etc.). Note: AHRI (Air-conditioning, Heating, and Refrigeration Institute) offers a helpful website for cooling specifications at www.ahridirectory.org."]
["7) Submit Application"]
[null,"Submit completed application to PNM Business Energy Efficiency Program via email (preferred), fax, or postal mail. All contact information is on the HOME tab of this document."]
[null,"If submitting via email, pring a hard copy of the AGREEMENT section of the Applicant Info tab, sign, scan, and email. If using DocuSign® please attach both the completed Excel application and the signed Docusign® PDF. Preferred file type for the completed application is in Excel, while supporting documents are preferred as PDFs."]
[null,"Print a full, final hard copy of all pages of your application for your records."]

{"sheet":"Terms & Conditions","index":3,"n_rows":1,"n_cols":4,"rows_kept":1,"cut":false,"hidden":false,"merged":[]}
[null,null,null,"TERMS & CONDITIONS"]

{"sheet":"Multi-Facility","index":4,"n_rows":401,"n_cols":7,"rows_kept":401,"cut":false,"hidden":false,"merged":[[4,3,4,4],[5,1,5,2],[7,0,7,4],[0,1,0,3]]}
[null,"LIGHTING MULTIPLE FACILITY WORKSHEET"]
["Use this worksheet ONLY if installing the SAME measure in facilities with different service addresses and unique account numbers."]
["If a project encompasses multiple buildings at the same premise, this worksheet is not required."]
["For official use only","Pre-Notification Date:",{"$f":"IF(ISBLANK('Applicant Info'!$K$6),\" \",'Applicant Info'!$K$6)","v":" "},"Final Application Date:",{"$f":"IF(ISBLANK('Applicant Info'!$K$8),\" \",'Applicant Info'!$K$8)","v":" "}]
["Application #",{"$f":"IF('Applicant Info'!J3=\"\",\"\",'Applicant Info'!J3)","v":""},"Business Name:",{"$f":"IF(ISBLANK('Applicant Info'!$A$20),\" \",'Applicant Info'!$A$20)","v":" "}]
["Prepared by:",{"$f":"IF(ISBLANK('Applicant Info'!$A$22),\" \",'Applicant Info'!$A$22)","v":" "},null,"Contact #:",{"$f":"'Applicant Info'!$D$23","v":0}]
[]
["Project Locations "]
["Service Address","Account #","Replacement Equipment Type 1","Replacement Equipment Type 2","Replacement Equipment Qty","Existing Equipment Description","Existing Equipment Qty"]
[]
[]
[]
[]
[]
[]
[]
[]
[]
[]
[]
[]
[]
[]
[]
[]
[]
[]
[]
[]
[]
[]
[]
[]
[]
["Total",null,null,null,{"$f":"SUM(E10:E34)","v":0},null,{"$f":"SUM(G10:G34)","v":0}]
[]
[]
[]
[]
[]
[]
[]
[]
[]
[]
[]
[]
[]
[]
[]
[]
[]
[]
[]
[]
[]
[]
[]
[]
[]
[]
[]
[]
[]
[]
[]
[]
[]
[]
[]
[]
[]
[]
[]
[]
[]
[]
[]
[]
[]
[]
[]
[]
[]
[]
[]
[]
[]
[]
[]
[]
[]
[]
[]
[]
[]
[]
[]
[]
[]
[]
[]
[]
[]
[]
[]
[]
[]
[]
[]
[]
[]
[]
[]
[]
[]
[]
[]
[]
[]
[]
[]
[]
[]
[]
[]
[]
[]
[]
[]
[]
[]
[]
[]
[]
[]
[]
[]
[]
[]
[]
[]
[]
[]
[]
[]
[]
[]
[]
[]
[]
[]
[]
[]
[]
[]
[]
[]
[]
[]
[]
[]
[]
[]
[]
[]
[]
[]
[]
[]
[]
[]
[]
[]
[]
[]
[]
[]
[]
[]
[]
[]
[]
[]
[]
[]
[]
[]
[]
[]
[]
[]
[]
[]
[]
[]
[]
[]
[]
["Measure Type 1"]
["Interior_Lighting"]
["Exterior_Lighting"]
["_24_7_Lighting"]
["Plug_Load_Controls"]
["Custom"]
["HVAC"]
["Envelope"]
["Refrigeration"]
["Food_Service_Equipment"]
["Motors"]
["VSDs"]
[]
["Measure Type 1","Measure Type 2","Unit","Incentive",null,"Measure Type 1"]
["24/7 Lighting","T8, T5 or LED Replacing HID Lamp Only","Watts Reduced",0.25,null,"Interior Lighting"]
["24/7 Lighting","T8, T5 or LED Replacing HID, Entire Fixture","Watts Reduced",0.5,null,"Exterior Lighting"]
["24/7 Lighting","T8, T5 or LED Replacing HID, Retrofit Kit","Watts Reduced",0.3,null,"24/7 Lighting"]
["24/7 Lighting","LED Replacing T5, T8 or T12, Lamp Only","Watts Reduced",0.25,null,"HVAC"]
["24/7 Lighting","LED Replacing T5, T8 or T12, Entire Fixture","Watts Reduced",0.5,null,"Envelope"]
["24/7 Lighting","LED Replacing T5, T8 or T12, Retrofit Kit","Watts Reduced",0.3,null,"Refrigeration"]
["24/7 Lighting","Controls for Existing LED Fixtures","Watts Controlled",0.5,null,"Food Service Equipment"]
["Exterior Lighting","T8, T5 or LED Replacing HID, Lamp Only","Watts Reduced",0.2,null,"Plug Load Controls"]
["Exterior Lighting","T8, T5 or LED Replacing HID, Entire Fixture","Watts Reduced",0.4,null,"Motors"]
["Exterior Lighting","T8, T5 or LED Replacing HID, Retrofit Kit","Watts Reduced",0.25,null,"VSDs"]
["Exterior Lighting","LED Replacing T5, T8 or T12, Lamp Only","Watts Reduced",0.2]
["Exterior Lighting","LED Replacing T5, T8 or T12, Entire Fixture","Watts Reduced",0.4]
["Exterior Lighting","LED Replacing T5, T8 or T12, Retrofit Kit","Watts Reduced",0.25]
["Exterior Lighting","Controls for Existing LED Fixtures","Watts Controlled",0.4]
["Interior Lighting","20W or less LED Lamp replacing Incandescent Lamp ≤ 100W","Lamp",8]
["Interior Lighting","20W or less LED Lamp replacing CFL Lamp ≤ 42W","Lamp",4]
["Interior Lighting","Controls  Occupancy Sensors","Watts Controlled",0.12]
["Interior Lighting","Controls  Daylighting Sensor Controls","Watts Controlled",0.09]
["Interior Lighting","T8, T5 or LED Replacing HID, Lamp Only","Watts Reduced",0.15]
["Interior Lighting","T8, T5 or LED Replacing HID, Entire Fixture","Watts Reduced",0.3]
["Interior Lighting","T8, T5 or LED Replacing HID, Retrofit Kit","Watts Reduced",0.2]
["Interior Lighting","LED Replacing T5, T8 or T12, Lamp Only","Watts Reduced",0.15]
["Interior Lighting","LED Replacing T5, T8 or T12, Entire Fixture","Watts Reduced",0.3]
["Interior Lighting","LED Replacing T5, T8 or T12, Retrofit Kit","Watts Reduced",0.2]
[]
[null,null,"Unit","Incentive"]
["Envelope","Window Film","Sq. Ft. of Glazing",1.2]
[]
[null,null,"Unit","Incentive"]
["Refrigeration","Strip Curtains on Walk-ins and Freezers","Sq. Ft.",3]
["Refrigeration","Night Covers for Displays","Lin. Ft. of Case",10]
["Refrigeration","EC Motor for Reach-in Refrigerator or Freezer Cases","Motor",25]
["Refrigeration","Evaporator Fan Controller - Shade Pole Motor","Motor",40]
["Refrigeration","Anti Sweat Heater Controls","Lin. Ft. of Case",25]
["Refrigeration","LED Refrigeration Case Lighting","Door",40]
["Refrigeration","ENERGY STAR® Solid Door Freezer","Unit",100]
["Refrigeration","ENERGY STAR® Glass Door Freezer","Unit",350]
[]
[null,null,"Unit","Incentive"]
["Food Service Equipment","ENERGY STAR® Steam Cookers","Unit",400]
["Food Service Equipment","Combination Oven","Unit",800]
["Food Service Equipment","ENERGY STAR® Hot Holding Cabinet - 1/2 size","Unit",200]
["Food Service Equipment","ENERGY STAR® Hot Holding Cabinet - 3/4 size","Unit",300]
["Food Service Equipment","ENERGY STAR® Hot Holding Cabinet - Full size","Unit",400]
["Food Service Equipment","ENERGY STAR® Beverage Vending Machine","Unit",80]
["Food Service Equipment","ENERGY STAR® Commercial Vat Fryer","Unit",225]
["Food Service Equipment","ENERGY STAR® Griddle","Unit",125]
[]
[null,null,"Unit","Incentive"]
["High Efficiency Ice Makers","101-200 lbs/24 hours","Unit",100]
["High Efficiency Ice Makers","201-300 lbs/24 hours","Unit",150]
["High Efficiency Ice Makers","301-400 lbs/24 hours","Unit",200]
["High Efficiency Ice Makers","401-500 lbs/24 hours","Unit",250]
["High Efficiency Ice Makers","501-1000 lbs/24 hours","Unit",300]
["High Efficiency Ice Makers","1001-1500 lbs/24 hours","Unit",350]
["High Efficiency Ice Makers",">1500 lbs/24 hours","Unit",400]
[]
[null,null,"Unit","Incentive"]
["Plug Load Controls","Beverage Vending Machine Control","Unit","Contact for offer"]
["Plug Load Controls","Refrigerated Cooler Control","Unit","Contact for offer"]
["Plug Load Controls","Snack Machine Control","Unit","Contact for offer"]
["Plug Load Controls","Plug Load Occupancy Sensors","Unit",25]
[]
[null,null,"Unit","Incentive"]
["Motors","1200 RPM -  1 HP - Open ","motor",1]
["Motors","1200 RPM -  1 HP - Open ","motor",1.5]
["Motors","1200 RPM -  1 HP - Open ","motor",2]
["Motors","1200 RPM -  1 HP - Open ","motor",3]
["Motors","1200 RPM -  1 HP - Open ","motor",4]
["Motors","1200 RPM -  1 HP - Open ","motor",9]
["Motors","1200 RPM -  1 HP - Open ","motor",10]
["Motors","1200 RPM -  1 HP - Open ","motor",11]
["Motors","1200 RPM -  1 HP - Open ","motor",12]
["Motors","1200 RPM -  1 HP - Open ","motor",15]
["Motors","1200 RPM -  1 HP - Open ","motor",17]
["Motors","1200 RPM -  1 HP - Open ","motor",20]
["Motors","1200 RPM -  1 HP - Open ","motor",24]
["Motors","1200 RPM -  1 HP - Open ","motor",25]
["Motors","1200 RPM -  1 HP - Open ","motor",30]
["Motors","1200 RPM -  1 HP - Open ","motor",40]
["Motors","1200 RPM -  1 HP - Open ","motor",50]
["Motors","1200 RPM -  1 HP - Open ","motor",60]
["Motors","1200 RPM -  1 HP - Open ","motor",75]
["Motors","1200 RPM -  1 HP - Open ","motor",1]
["Motors","1200 RPM -  1 HP - Open ","motor",1.5]
["Motors","1200 RPM -  1 HP - Open ","motor",2]
["Motors","1200 RPM -  1 HP - Open ","motor",3]
["Motors","1200 RPM -  1 HP - Open ","motor",4]
["Motors","1200 RPM -  1 HP - Open ","motor",9]
["Motors","1200 RPM -  1 HP - Open ","motor",10]
["Motors","1200 RPM -  1 HP - Open ","motor",11]
["Motors","1200 RPM -  1 HP - Open ","motor",12]
["Motors","1200 RPM -  1 HP - Open ","motor",15]
["Motors","1200 RPM -  1 HP - Open ","motor",17]
["Motors","1200 RPM -  1 HP - Open ","motor",20]
["Motors","1200 RPM -  1 HP - Open ","motor",24]
["Motors","1200 RPM -  1 HP - Open ","motor",25]
["Motors","1200 RPM -  1 HP - Open ","motor",30]
["Motors","1200 RPM -  1 HP - Open ","motor",40]
["Motors","1200 RPM -  1 HP - Open ","motor",50]
["Motors","1200 RPM -  1 HP - Open ","motor",60]
["Motors","1200 RPM -  1 HP - Open ","motor",75]
["Motors","1200 RPM -  1 HP - Open ","motor",1]
["Motors","1200 RPM -  1 HP - Open ","motor",1.5]
["Motors","1200 RPM -  1 HP - Open ","motor",2]
["Motors","1200 RPM -  1 HP - Open ","motor",3]
["Motors","1200 RPM -  1 HP - Open ","motor",4]
["Motors","1200 RPM -  1 HP - Open ","motor",9]
["Motors","1200 RPM -  1 HP - Open ","motor",10]
["Motors","1200 RPM -  1 HP - Open ","motor",11]
["Motors","1200 RPM -  1 HP - Open ","motor",12]
["Motors","1200 RPM -  1 HP - Open ","motor",15]
["Motors","1200 RPM -  1 HP - Open ","motor",17]
["Motors","1200 RPM -  1 HP - Open ","motor",20]
["Motors","1200 RPM -  1 HP - Open ","motor",24]
["Motors","1200 RPM -  1 HP - Open ","motor",25]
["Motors","1200 RPM -  1 HP - Open ","motor",30]
["Motors","1200 RPM -  1 HP - Open ","motor",40]
["Motors","1200 RPM -  1 HP - Open ","motor",50]
["Motors","1200 RPM -  1 HP - Open ","motor",60]
["Motors","1200 RPM -  1 HP - Open ","motor",75]
["Motors","1200 RPM -  1 HP - Open ","motor",1]
["Motors","1200 RPM -  1 HP - Open ","motor",1.5]
["Motors","1200 RPM -  1 HP - Open ","motor",2]
["Motors","1200 RPM -  1 HP - Open ","motor",3]
["Motors","1200 RPM -  1 HP - Open ","motor",4]
["Motors","1200 RPM -  1 HP - Open ","motor",9]
["Motors","1200 RPM -  1 HP - Open ","motor",10]
["Motors","1200 RPM -  1 HP - Open ","motor",11]
["Motors","1200 RPM -  1 HP - Open ","motor",12]
["Motors","1200 RPM -  1 HP - Open ","motor",15]
["Motors","1200 RPM -  1 HP - Open ","motor",17]
["Motors","1200 RPM -  1 HP - Open ","motor",20]
["Motors","1200 RPM -  1 HP - Open ","motor",24]
["Motors","1200 RPM -  1 HP - Open ","motor",25]
["Motors","1200 RPM -  1 HP - Open ","motor",30]
["Motors","1200 RPM -  1 HP - Open ","motor",40]
["Motors","1200 RPM -  1 HP - Open ","motor",50]
["Motors","1200 RPM -  1 HP - Open ","motor",60]
["Motors","1200 RPM -  1 HP - Open ","motor",75]
["Motors","1200 RPM -  1 HP - Open ","motor",1]
["Motors","1200 RPM -  1 HP - Open ","motor",1.5]
["Motors","1200 RPM -  1 HP - Open ","motor",2]
["Motors","1200 RPM -  1 HP - Open ","motor",3]
["Motors","1200 RPM -  1 HP - Open ","motor",4]
["Motors","1200 RPM -  1 HP - Open ","motor",9]
["Motors","1200 RPM -  1 HP - Open ","motor",10]
["Motors","1200 RPM -  1 HP - Open ","motor",11]
["Motors","1200 RPM -  1 HP - Open ","motor",12]
["Motors","1200 RPM -  1 HP - Open ","motor",15]
["Motors","1200 RPM -  1 HP - Open ","motor",17]
["Motors","1200 RPM -  1 HP - Open ","motor",20]
["Motors","1200 RPM -  1 HP - Open ","motor",24]
["Motors","1200 RPM -  1 HP - Open ","motor",25]
["Motors","1200 RPM -  1 HP - Open ","motor",30]
["Motors","1200 RPM -  1 HP - Open ","motor",40]
["Motors","1200 RPM -  1 HP - Open ","motor",50]
["Motors","1200 RPM -  1 HP - Open ","motor",60]
["Motors","1200 RPM -  1 HP - Open ","motor",75]
["Motors","1200 RPM -  1 HP - Open ","motor",1]
["Motors","1200 RPM -  1 HP - Open ","motor",1.5]
["Motors","1200 RPM -  1 HP - Open ","motor",2]
["Motors","1200 RPM -  1 HP - Open ","motor",3]
["Motors","1200 RPM -  1 HP - Open ","motor",4]
["Motors","1200 RPM -  1 HP - Open ","motor",9]
["Motors","1200 RPM -  1 HP - Open ","motor",10]
["Motors","1200 RPM -  1 HP - Open ","motor",11]
["Motors","1200 RPM -  1 HP - Open ","motor",12]
["Motors","1200 RPM -  1 HP - Open ","motor",15]
["Motors","1200 RPM -  1 HP - Open ","motor",17]
["Motors","1200 RPM -  1 HP - Open ","motor",20]
["Motors","1200 RPM -  1 HP - Open ","motor",24]
["Motors","1200 RPM -  1 HP - Open ","motor",25]
["Motors","1200 RPM -  1 HP - Open ","motor",30]
["Motors","1200 RPM -  1 HP - Open ","motor",40]
["Motors","1200 RPM -  1 HP - Open ","motor",50]
["Motors","1200 RPM -  1 HP - Open ","motor",60]
["Motors","1200 RPM -  1 HP - Open ","motor",75]
[]
[]
[null,null,"Unit","Incentive"]
["VSDs","VSD Size (HP)","Hp",50]
[]
[null,null,"Unit","Incentive"]
["HVAC","HVAC Units, contact for offer","Unit","Contact for offer"]
[]
[null,null,"Unit","Incentive"]
["Custom","Per kWh","kWh",7.4999999999999997E-2]

{"sheet":"Lighting SOW","index":5,"n_rows":222,"n_cols":21,"rows_kept":222,"cut":false,"hidden":false,"merged":[[3,19,4,20],[5,19,5,20],[3,1,3,4],[3,6,3,8],[0,2,0,5],[1,1,1,4],[1,6,1,8],[2,1,2,4],[2,6,2,8],[4,0,4,7],[5,0,5,7],[3,17,3,18],[5,9,5,16]]}
["App # (office use only):",{"$f":"IF('Applicant Info'!J3=\"\",\"\",'Applicant Info'!J3)","v":""},"Please complete all info in the white spaces below:"]
["Business Name:",{"$f":"IF('Applicant Info'!A20=\"\",\"\",'Applicant Info'!A20)","v":""},null,null,null,"Date:",{"$f":"IF('Applicant Info'!K6=\"\", IF('Applicant Info'!K8=\"\",\"\",'Applicant Info'!K8),'Applicant Info'!K6)","v":""}]
["Prepared by:",null,null,null,null,"Phone:",{"$f":"IF('Applicant Info'!D23=\"\",\"\",'Applicant Info'!D23)","v":""}]
["Address:",{"$f":"IF('Applicant Info'!E25=\"\",\"\",'Applicant Info'!E25 &\" \"&'Applicant Info'!E26 &\" \" &'Applicant Info'!I26 &\" \"&'Applicant Info'!K26)","v":""},null,null,null,"Email:",{"$f":"'Applicant Info'!$E$24","v":0},null,null,null,null,null,null,null,null,null,null,"Watts controlled\n(Interior ONLY)",null,"Annual Savings*"]
["Lighting Scope of Work / Building Audit Form",null,null,null,null,null,null,null,null,null,null,null,null,null,null,null,null,"Occupancy","Daylighting"]
["Existing Lighting ",null,null,null,null,null,null,null,null,"Proposed Lighting",null,null,null,null,null,null,null,{"$f":"SUMIF(R8:R181,\"YES\",Q8:Q181)","v":0},{"$f":"SUMIF(S8:S181,\"YES\",Q8:Q181)","v":0},"*calculated per figures entered on this form; savings are NOT guaranteed"]
["LOCATION Description","Fixture Type ","Lamp Size\n(Ex: F34T12 or 400MH)","Ballast","Lamps per Fixture","Watts per Fixture","Fixture Qty","Total W","Operating Hours per Week","New or Retrofit","Fixture Type ","DLC or Energy Star Qualified?","Fixture or Lamp Model Number","Lamps per Fixture","Watts per Fixture","Fixture Qty","Total W","Occupancy Control?\n(Y / N)","Daylighting Controls?\n(Y / N)","Savings (W)","Savings (kWh)"]
[null,null,null,null,null,null,null,{"$f":"IF(A8=\"\",\"\",G8*F8)","v":""},null,null,null,null,null,null,null,null,{"$f":"IF(M8=\"\",\"\",O8*P8)","v":""},null,null,{"$f":"IF(L8=\"DNQ\", \"DNQ\",IF(OR(H8=\"\",Q8=\"\"),\"\",H8-Q8))","v":""},{"$f":"IF(L8=\"DNQ\", \"DNQ\", IF(OR(I8=\"\",T8=\"\"),\"\",I8*T8*52/1000))","v":""}]
[null,null,null,null,null,null,null,"",null,null,null,null,null,null,null,null,"",null,null,{"$f":"IF(L9=\"DNQ\", \"DNQ\",IF(OR(H9=\"\",Q9=\"\"),\"\",H9-Q9))","v":""},{"$f":"IF(L9=\"DNQ\", \"DNQ\", IF(OR(I9=\"\",T9=\"\"),\"\",I9*T9*52/1000))","v":""}]
[null,null,null,null,null,null,null,"",null,null,null,null,null,null,null,null,"",null,null,"",""]
[null,null,null,null,null,null,null,"",null,null,null,null,null,null,null,null,"",null,null,"",""]
[null,null,null,null,null,null,null,"",null,null,null,null,null,null,null,null,"",null,null,"",""]
[null,null,null,null,null,null,null,"",null,null,null,null,null,null,null,null,"",null,null,"",""]
[null,null,null,null,null,null,null,"",null,null,null,null,null,null,null,null,"",null,null,"",""]
[null,null,null,null,null,null,null,"",null,null,null,null,null,null,null,null,"",null,null,"",""]
[null,null,null,null,null,null,null,"",null,null,null,null,null,null,null,null,"",null,null,"",""]
[null,null,null,null,null,null,null,"",null,null,null,null,null,null,null,null,"",null,null,"",""]
[null,null,null,null,null,null,null,"",null,null,null,null,null,null,null,null,"",null,null,"",""]
[null,null,null,null,null,null,null,"",null,null,null,null,null,null,null,null,"",null,null,"",""]
[null,null,null,null,null,null,null,"",null,null,null,null,null,null,null,null,"",null,null,"",""]
[null,null,null,null,null,null,null,"",null,null,null,null,null,null,null,null,"",null,null,"",""]
[null,null,null,null,null,null,null,"",null,null,null,null,null,null,null,null,"",null,null,"",""]
[null,null,null,null,null,null,null,"",null,null,null,null,null,null,null,null,"",null,null,"",""]
[null,null,null,null,null,null,null,"",null,null,null,null,null,null,null,null,"",null,null,"",""]
[null,null,null,null,null,null,null,"",null,null,null,null,null,null,null,null,"",null,null,"",""]
[null,null,null,null,null,null,null,"",null,null,null,null,null,null,null,null,"",null,null,"",""]
[null,null,null,null,null,null,null,"",null,null,null,null,null,null,null,null,"",null,null,"",""]
[null,null,null,null,null,null,null,"",null,null,null,null,null,null,null,null,"",null,null,"",""]
[null,null,null,null,null,null,null,"",null,null,null,null,null,null,null,null,"",null,null,"",""]
[null,null,null,null,null,null,null,"",null,null,null,null,null,null,null,null,"",null,null,"",""]
[null,null,null,null,null,null,null,"",null,null,null,null,null,null,null,null,"",null,null,"",""]
[null,null,null,null,null,null,null,"",null,null,null,null,null,null,null,null,"",null,null,"",""]
[null,null,null,null,null,null,null,"",null,null,null,null,null,null,null,null,"",null,null,"",""]
[null,null,null,null,null,null,null,"",null,null,null,null,null,null,null,null,"",null,null,"",""]
[null,null,null,null,null,null,null,"",null,null,null,null,null,null,null,null,"",null,null,"",""]
[null,null,null,null,null,null,null,"",null,null,null,null,null,null,null,null,"",null,null,"",""]
[null,null,null,null,null,null,null,"",null,null,null,null,null,null,null,null,"",null,null,"",""]
[null,null,null,null,null,null,null,"",null,null,null,null,null,null,null,null,"",null,null,"",""]
[null,null,null,null,null,null,null,"",null,null,null,null,null,null,null,null,"",null,null,"",""]
[null,null,null,null,null,null,null,"",null,null,null,null,null,null,null,null,"",null,null,"",""]
[null,null,null,null,null,null,null,"",null,null,null,null,null,null,null,null,"",null,null,"",""]
[null,null,null,null,null,null,null,"",null,null,null,null,null,null,null,null,"",null,null,"",""]
[null,null,null,null,null,null,null,"",null,null,null,null,null,null,null,null,"",null,null,"",""]
[null,null,null,null,null,null,null,"",null,null,null,null,null,null,null,null,"",null,null,"",""]
[null,null,null,null,null,null,null,"",null,null,null,null,null,null,null,null,"",null,null,"",""]
[null,null,null,null,null,null,null,"",null,null,null,null,null,null,null,null,"",null,null,"",""]
[null,null,null,null,null,null,null,"",null,null,null,null,null,null,null,null,"",null,null,"",""]
[null,null,null,null,null,null,null,"",null,null,null,null,null,null,null,null,"",null,null,"",""]
[null,null,null,null,null,null,null,"",null,null,null,null,null,null,null,null,"",null,null,"",""]
[null,null,null,null,null,null,null,"",null,null,null,null,null,null,null,null,"",null,null,"",""]
[null,null,null,null,null,null,null,"",null,null,null,null,null,null,null,null,"",null,null,"",""]
[null,null,null,null,null,null,null,"",null,null,null,null,null,null,null,null,"",null,null,"",""]
[null,null,null,null,null,null,null,"",null,null,null,null,null,null,null,null,"",null,null,"",""]
[null,null,null,null,null,null,null,"",null,null,null,null,null,null,null,null,"",null,null,"",""]
[null,null,null,null,null,null,null,"",null,null,null,null,null,null,null,null,"",null,null,"",""]
[null,null,null,null,null,null,null,"",null,null,null,null,null,null,null,null,"",null,null,"",""]
[null,null,null,null,null,null,null,"",null,null,null,null,null,null,null,null,"",null,null,"",""]
[null,null,null,null,null,null,null,"",null,null,null,null,null,null,null,null,"",null,null,"",""]
[null,null,null,null,null,null,null,"",null,null,null,null,null,null,null,null,"",null,null,"",""]
[null,null,null,null,null,null,null,"",null,null,null,null,null,null,null,null,"",null,null,"",""]
[null,null,null,null,null,null,null,"",null,null,null,null,null,null,null,null,"",null,null,"",""]
[null,null,null,null,null,null,null,"",null,null,null,null,null,null,null,null,"",null,null,"",""]
[null,null,null,null,null,null,null,"",null,null,null,null,null,null,null,null,"",null,null,"",""]
[null,null,null,null,null,null,null,"",null,null,null,null,null,null,null,null,"",null,null,"",""]
[null,null,null,null,null,null,null,"",null,null,null,null,null,null,null,null,"",null,null,"",""]
[null,null,null,null,null,null,null,"",null,null,null,null,null,null,null,null,"",null,null,"",""]
[null,null,null,null,null,null,null,"",null,null,null,null,null,null,null,null,"",null,null,"",""]
[null,null,null,null,null,null,null,"",null,null,null,null,null,null,null,null,"",null,null,"",""]
[null,null,null,null,null,null,null,"",null,null,null,null,null,null,null,null,"",null,null,"",""]
[null,null,null,null,null,null,null,"",null,null,null,null,null,null,null,null,"",null,null,"",""]
[null,null,null,null,null,null,null,"",null,null,null,null,null,null,null,null,"",null,null,"",""]
[null,null,null,null,null,null,null,"",null,null,null,null,null,null,null,null,"",null,null,"",""]
[null,null,null,null,null,null,null,{"$f":"IF(A73=\"\",\"\",G73*F73)","v":""},null,null,null,null,null,null,null,null,{"$f":"IF(M73=\"\",\"\",O73*P73)","v":""},null,null,{"$f":"IF(L73=\"DNQ\", \"DNQ\",IF(OR(H73=\"\",Q73=\"\"),\"\",H73-Q73))","v":""},{"$f":"IF(L73=\"DNQ\", \"DNQ\", IF(OR(I73=\"\",T73=\"\"),\"\",I73*T73*52/1000))","v":""}]
[null,null,null,null,null,null,null,"",null,null,null,null,null,null,null,null,"",null,null,"",""]
[null,null,null,null,null,null,null,"",null,null,null,null,null,null,null,null,"",null,null,"",""]
[null,null,null,null,null,null,null,"",null,null,null,null,null,null,null,null,"",null,null,"",""]
[null,null,null,null,null,null,null,"",null,null,null,null,null,null,null,null,"",null,null,"",""]
[null,null,null,null,null,null,null,"",null,null,null,null,null,null,null,null,"",null,null,"",""]
[null,null,null,null,null,null,null,{"$f":"IF(A79=\"\",\"\",G79*F79)","v":""},null,null,null,null,null,null,null,null,{"$f":"IF(M79=\"\",\"\",O79*P79)","v":""},null,null,"",""]
[null,null,null,null,null,null,null,"",null,null,null,null,null,null,null,null,"",null,null,"",""]
[null,null,null,null,null,null,null,"",null,null,null,null,null,null,null,null,"",null,null,"",""]
[null,null,null,null,null,null,null,"",null,null,null,null,null,null,null,null,"",null,null,"",""]
[null,null,null,null,null,null,null,"",null,null,null,null,null,null,null,null,"",null,null,"",""]
[null,null,null,null,null,null,null,"",null,null,null,null,null,null,null,null,"",null,null,"",""]
[null,null,null,null,null,null,null,"",null,null,null,null,null,null,null,null,"",null,null,"",""]
[null,null,null,null,null,null,null,"",null,null,null,null,null,null,null,null,"",null,null,"",""]
[null,null,null,null,null,null,null,"",null,null,null,null,null,null,null,null,"",null,null,"",""]
[null,null,null,null,null,null,null,"",null,null,null,null,null,null,null,null,"",null,null,"",""]
[null,null,null,null,null,null,null,"",null,null,null,null,null,null,null,null,"",null,null,"",""]
[null,null,null,null,null,null,null,"",null,null,null,null,null,null,null,null,"",null,null,"",""]
[null,null,null,null,null,null,null,"",null,null,null,null,null,null,null,null,"",null,null,"",""]
[null,null,null,null,null,null,null,"",null,null,null,null,null,null,null,null,"",null,null,"",""]
[null,null,null,null,null,null,null,"",null,null,null,null,null,null,null,null,"",null,null,"",""]
[null,null,null,null,null,null,null,"",null,null,null,null,null,null,null,null,"",null,null,"",""]
[null,null,null,null,null,null,null,"",null,null,null,null,null,null,null,null,"",null,null,"",""]
[null,null,null,null,null,null,null,"",null,null,null,null,null,null,null,null,"",null,null,"",""]
[null,null,null,null,null,null,null,"",null,null,null,null,null,null,null,null,"",null,null,"",""]
[null,null,null,null,null,null,null,"",null,null,null,null,null,null,null,null,"",null,null,"",""]
[null,null,null,null,null,null,null,"",null,null,null,null,null,null,null,null,"",null,null,"",""]
[null,null,null,null,null,null,null,"",null,null,null,null,null,null,null,null,"",null,null,"",""]
[null,null,null,null,null,null,null,"",null,null,null,null,null,null,null,null,"",null,null,"",""]
[null,null,null,null,null,null,null,"",null,null,null,null,null,null,null,null,"",null,null,"",""]
[null,null,null,null,null,null,null,"",null,null,null,null,null,null,null,null,"",null,null,"",""]
[null,null,null,null,null,null,null,"",null,null,null,null,null,null,null,null,"",null,null,"",""]
[null,null,null,null,null,null,null,"",null,null,null,null,null,null,null,null,"",null,null,"",""]
[null,null,null,null,null,null,null,"",null,null,null,null,null,null,null,null,"",null,null,"",""]
[null,null,null,null,null,null,null,"",null,null,null,null,null,null,null,null,"",null,null,"",""]
[null,null,null,null,null,null,null,"",null,null,null,null,null,null,null,null,"",null,null,"",""]
[null,null,null,null,null,null,null,"",null,null,null,null,null,null,null,null,"",null,null,"",""]
[null,null,null,null,null,null,null,"",null,null,null,null,null,null,null,null,"",null,null,"",""]
[null,null,null,null,null,null,null,"",null,null,null,null,null,null,null,null,"",null,null,"",""]
[null,null,null,null,null,null,null,"",null,null,null,null,null,null,null,null,"",null,null,"",""]
[null,null,null,null,null,null,null,"",null,null,null,null,null,null,null,null,"",null,null,"",""]
[null,null,null,null,null,null,null,"",null,null,null,null,null,null,null,null,"",null,null,"",""]
[null,null,null,null,null,null,null,"",null,null,null,null,null,null,null,null,"",null,null,"",""]
[null,null,null,null,null,null,null,"",null,null,null,null,null,null,null,null,"",null,null,"",""]
[null,null,null,null,null,null,null,"",null,null,null,null,null,null,null,null,"",null,null,"",""]
[null,null,null,null,null,null,null,"",null,null,null,null,null,null,null,null,"",null,null,"",""]
[null,null,null,null,null,null,null,"",null,null,null,null,null,null,null,null,"",null,null,"",""]
[null,null,null,null,null,null,null,"",null,null,null,null,null,null,null,null,"",null,null,"",""]
[null,null,null,null,null,null,null,"",null,null,null,null,null,null,null,null,"",null,null,"",""]
[null,null,null,null,null,null,null,"",null,null,null,null,null,null,null,null,"",null,null,"",""]
[null,null,null,null,null,null,null,"",null,null,null,null,null,null,null,null,"",null,null,"",""]
[null,null,null,null,null,null,null,"",null,null,null,null,null,null,null,null,"",null,null,"",""]
[null,null,null,null,null,null,null,"",null,null,null,null,null,null,null,null,"",null,null,"",""]
[null,null,null,null,null,null,null,"",null,null,null,null,null,null,null,null,"",null,null,"",""]
[null,null,null,null,null,null,null,"",null,null,null,null,null,null,null,null,"",null,null,"",""]
[null,null,null,null,null,null,null,"",null,null,null,null,null,null,null,null,"",null,null,"",""]
[null,null,null,null,null,null,null,"",null,null,null,null,null,null,null,null,"",null,null,"",""]
[null,null,null,null,null,null,null,"",null,null,null,null,null,null,null,null,"",null,null,"",""]
[null,null,null,null,null,null,null,"",null,null,null,null,null,null,null,null,"",null,null,"",""]
[null,null,null,null,null,null,null,"",null,null,null,null,null,null,null,null,"",null,null,"",""]
[null,null,null,null,null,null,null,"",null,null,null,null,null,null,null,null,"",null,null,"",""]
[null,null,null,null,null,null,null,"",null,null,null,null,null,null,null,null,"",null,null,"",""]
[null,null,null,null,null,null,null,"",null,null,null,null,null,null,null,null,"",null,null,"",""]
[null,null,null,null,null,null,null,"",null,null,null,null,null,null,null,null,"",null,null,"",""]
[null,null,null,null,null,null,null,"",null,null,null,null,null,null,null,null,"",null,null,{"$f":"IF(L137=\"DNQ\", \"DNQ\",IF(OR(H137=\"\",Q137=\"\"),\"\",H137-Q137))","v":""},{"$f":"IF(L137=\"DNQ\", \"DNQ\", IF(OR(I137=\"\",T137=\"\"),\"\",I137*T137*52/1000))","v":""}]
[null,null,null,null,null,null,null,"",null,null,null,null,null,null,null,null,"",null,null,"",""]
[null,null,null,null,null,null,null,"",null,null,null,null,null,null,null,null,"",null,null,"",""]
[null,null,null,null,null,null,null,"",null,null,null,null,null,null,null,null,"",null,null,"",""]
[null,null,null,null,null,null,null,"",null,null,null,null,null,null,null,null,"",null,null,"",""]
[null,null,null,null,null,null,null,"",null,null,null,null,null,null,null,null,"",null,null,"",""]
[null,null,null,null,null,null,null,{"$f":"IF(A143=\"\",\"\",G143*F143)","v":""},null,null,null,null,null,null,null,null,{"$f":"IF(M143=\"\",\"\",O143*P143)","v":""},null,null,"",""]
[null,null,null,null,null,null,null,"",null,null,null,null,null,null,null,null,"",null,null,"",""]
[null,null,null,null,null,null,null,"",null,null,null,null,null,null,null,null,"",null,null,"",""]
[null,null,null,null,null,null,null,"",null,null,null,null,null,null,null,null,"",null,null,"",""]
[null,null,null,null,null,null,null,"",null,null,null,null,null,null,null,null,"",null,null,"",""]
[null,null,null,null,null,null,null,"",null,null,null,null,null,null,null,null,"",null,null,"",""]
[null,null,null,null,null,null,null,"",null,null,null,null,null,null,null,null,"",null,null,"",""]
[null,null,null,null,null,null,null,"",null,null,null,null,null,null,null,null,"",null,null,"",""]
[null,null,null,null,null,null,null,"",null,null,null,null,null,null,null,null,"",null,null,"",""]
[null,null,null,null,null,null,null,"",null,null,null,null,null,null,null,null,"",null,null,"",""]
[null,null,null,null,null,null,null,"",null,null,null,null,null,null,null,null,"",null,null,"",""]
[null,null,null,null,null,null,null,"",null,null,null,null,null,null,null,null,"",null,null,"",""]
[null,null,null,null,null,null,null,"",null,null,null,null,null,null,null,null,"",null,null,"",""]
[null,null,null,null,null,null,null,"",null,null,null,null,null,null,null,null,"",null,null,"",""]
[null,null,null,null,null,null,null,"",null,null,null,null,null,null,null,null,"",null,null,"",""]
[null,null,null,null,null,null,null,"",null,null,null,null,null,null,null,null,"",null,null,"",""]
[null,null,null,null,null,null,null,"",null,null,null,null,null,null,null,null,"",null,null,"",""]
[null,null,null,null,null,null,null,"",null,null,null,null,null,null,null,null,"",null,null,"",""]
[null,null,null,null,null,null,null,"",null,null,null,null,null,null,null,null,"",null,null,"",""]
[null,null,null,null,null,null,null,"",null,null,null,null,null,null,null,null,"",null,null,"",""]
[null,null,null,null,null,null,null,"",null,null,null,null,null,null,null,null,"",null,null,"",""]
[null,null,null,null,null,null,null,"",null,null,null,null,null,null,null,null,"",null,null,"",""]
[null,null,null,null,null,null,null,"",null,null,null,null,null,null,null,null,"",null,null,"",""]
[null,null,null,null,null,null,null,"",null,null,null,null,null,null,null,null,"",null,null,"",""]
[null,null,null,null,null,null,null,"",null,null,null,null,null,null,null,null,"",null,null,"",""]
[null,null,null,null,null,null,null,"",null,null,null,null,null,null,null,null,"",null,null,"",""]
[null,null,null,null,null,null,null,"",null,null,null,null,null,null,null,null,"",null,null,"",""]
[null,null,null,null,null,null,null,"",null,null,null,null,null,null,null,null,"",null,null,"",""]
[null,null,null,null,null,null,null,"",null,null,null,null,null,null,null,null,"",null,null,"",""]
[null,null,null,null,null,null,null,"",null,null,null,null,null,null,null,null,"",null,null,"",""]
[null,null,null,null,null,null,null,"",null,null,null,null,null,null,null,null,"",null,null,"",""]
[null,null,null,null,null,null,null,"",null,null,null,null,null,null,null,null,"",null,null,"",""]
[null,null,null,null,null,null,null,"",null,null,null,null,null,null,null,null,"",null,null,"",""]
[null,null,null,null,null,null,null,"",null,null,null,null,null,null,null,null,"",null,null,"",""]
[null,null,null,null,null,null,null,"",null,null,null,null,null,null,null,null,"",null,null,"",""]
[null,null,null,null,null,null,null,"",null,null,null,null,null,null,null,null,"",null,null,"",""]
[null,null,null,null,null,null,null,"",null,null,null,null,null,null,null,null,"",null,null,"",""]
[null,null,null,null,null,null,null,"",null,null,null,null,null,null,null,null,"",null,null,"",""]
[null,null,null,null,null,null,null,"",null,null,null,null,null,null,null,null,"",null,null,"",""]
[]
[]
[]
["Type",null,"Ballast",null,"Lamps",null,"New or Retro",null,"Control","DLC Energy Star Qualified?"]
[null,null,null,null,null,null,null,null,null,"DLC"]
["Incandescent",null,"Magnetic",null,1,null,"New Fixture",null,"YES","EnergyStar"]
["Fluorescent",null,"Electronic",null,2,null,"Retrofit",null,"NO","DNQ"]
["LED Screw-in",null,"Pulse-start",null,3,null,"Remove"]
["Screw-in CFL",null,"N/A",null,4]
["Hardwired CFL",null,null,null,5]
["2x4 Troffer",null,null,null,6]
["2x2 Troffer",null,null,null,7]
["2' Strip",null,null,null,8]
["4' Strip",null,null,null,9]
["6' Strip",null,null,null,10]
["8' Strip"]
["Wallpack"]
["Pole"]
["HID"]
["Exit INC"]
["Exit LED"]
["LED Lamp"]
["LED Fixture"]
["LED Sign"]
["HighBay T8"]
["HighBay T5"]
["Other"]
[]
[]
["Type2"]
["LED Screw-in"]
["LED 2x4 Troffer"]
["LED 2x2 Troffer"]
["2' LED Strip"]
["4' LED Strip"]
["6' LED Strip"]
["8' LED Strip"]
["LED Wallpack"]
["LED Pole Fixture"]
["LED Sign"]
["Other"]

{"sheet":"Lighting","index":6,"n_rows":327,"n_cols":58,"rows_kept":327,"cut":false,"hidden":false,"merged":[[7,0,7,8],[12,0,12,7],[12,10,12,11],[12,23,12,24],[13,0,13,7],[13,10,13,11],[13,23,13,24],[14,0,14,7],[14,10,14,11],[14,23,14,24],[31,1,31,2],[31,9,31,10],[76,1,76,2],[76,9,76,10],[121,1,121,2],[121,5,121,6],[142,12,142,13],[142,0,142,11],[1,0,2,2],[108,3,108,4],[108,5,108,6],[108,7,108,8],[109,3,109,4],[109,5,109,6],[109,7,109,8],[124,1,124,4],[126,12,126,13],[139,3,139,4],[139,5,139,6],[139,7,139,8],[140,3,140,4],[140,5,140,6],[140,7,140,8],[141,3,141,4],[29,16,31,17],[9,16,11,17],[9,19,11,19],[15,19,17,19],[18,19,20,19],[106,5,106,6],[106,7,106,8],[107,3,107,4],[107,5,107,6],[107,7,107,8],[102,7,102,8],[103,3,103,4],[103,5,103,6],[103,7,103,8],[97,0,97,12],[99,3,99,4],[99,5,99,6],[99,7,99,8],[100,3,100,4],[100,5,100,6],[100,7,100,8],[98,0,98,7],[101,3,101,4],[9,23,9,24],[8,23,8,24],[10,23,10,24],[11,23,11,24],[20,23,20,24],[19,23,19,24],[18,23,18,24],[17,23,17,24],[16,23,16,24],[15,23,15,24],[29,20,31,20],[4,3,4,6],[113,3,113,4],[113,5,113,6],[113,7,113,8],[114,3,114,4],[114,5,114,6],[114,7,114,8],[110,3,110,4],[110,5,110,6],[110,7,110,8],[111,3,111,4],[111,5,111,6],[111,7,111,8],[112,3,112,4],[112,7,112,8],[112,5,112,6],[104,3,104,4],[104,5,104,6],[104,7,104,8],[105,3,105,4],[105,5,105,6],[105,7,105,8],[106,3,106,4],[0,0,0,1],[27,0,27,12],[71,0,71,12],[0,3,0,8],[1,3,1,4],[2,3,2,8],[3,3,3,8],[5,3,5,6],[64,3,64,4],[64,5,64,6],[64,7,64,8],[65,3,65,4],[65,5,65,6],[65,7,65,8],[66,3,66,4],[66,5,66,6],[66,7,66,8],[61,3,61,4],[61,5,61,6],[61,7,61,8],[62,3,62,4],[62,5,62,6],[62,7,62,8],[63,3,63,4],[141,5,141,6],[141,7,141,8],[136,3,136,4],[136,5,136,6],[136,7,136,8],[137,3,137,4],[137,5,137,6],[137,7,137,8],[138,3,138,4],[138,5,138,6],[138,7,138,8],[133,3,133,4],[133,5,133,6],[133,7,133,8],[134,3,134,4],[134,5,134,6],[134,7,134,8],[135,3,135,4],[135,5,135,6],[135,7,135,8],[130,3,130,4],[130,5,130,6],[130,7,130,8],[131,3,131,4],[131,5,131,6],[131,7,131,8],[132,3,132,4],[132,5,132,6],[132,7,132,8],[127,3,127,4],[127,5,127,6],[127,7,127,8],[128,3,128,4],[128,5,128,6],[128,7,128,8],[129,3,129,4],[129,5,129,6],[129,7,129,8],[126,3,126,4],[126,5,126,6],[126,7,126,8],[123,1,123,2],[123,5,123,6],[124,5,124,6],[118,1,119,2],[118,3,118,4],[118,5,119,6],[120,1,120,2],[120,5,120,6],[122,1,122,2],[122,5,122,6],[125,0,125,5],[101,5,101,6],[101,7,101,8],[102,3,102,4],[102,5,102,6],[94,3,94,4],[94,5,94,6],[94,7,94,8],[95,3,95,4],[95,5,95,6],[95,7,95,8],[96,3,96,4],[96,5,96,6],[96,7,96,8],[91,3,91,4],[91,5,91,6],[91,7,91,8],[92,3,92,4],[92,5,92,6],[92,7,92,8],[93,3,93,4],[93,5,93,6],[93,7,93,8],[88,3,88,4],[88,5,88,6],[88,7,88,8],[89,3,89,4],[89,5,89,6],[89,7,89,8],[90,3,90,4],[90,5,90,6],[90,7,90,8],[85,3,85,4],[85,5,85,6],[85,7,85,8],[86,3,86,4],[86,5,86,6],[86,7,86,8],[87,3,87,4],[87,5,87,6],[87,7,87,8],[82,3,82,4],[82,5,82,6],[82,7,82,8],[83,3,83,4],[83,5,83,6],[83,7,83,8],[84,3,84,4],[84,5,84,6],[84,7,84,8],[77,1,77,2],[77,9,77,10],[78,1,78,2],[78,9,78,10],[79,1,79,8],[79,9,79,10],[81,3,81,4],[81,5,81,6],[81,7,81,8],[73,1,74,2],[73,3,73,4],[73,5,73,6],[73,7,73,8],[73,9,74,10],[75,1,75,2],[75,9,75,10],[34,9,34,10],[30,1,30,2],[32,1,32,2],[33,1,33,2],[34,1,34,8],[67,3,67,4],[67,5,67,6],[67,7,67,8],[68,3,68,4],[68,5,68,6],[68,7,68,8],[69,3,69,4],[69,5,69,6],[69,7,69,8],[63,5,63,6],[63,7,63,8],[60,3,60,4],[51,3,51,4],[51,5,51,6],[51,7,51,8],[54,3,54,4],[54,5,54,6],[54,7,54,8],[55,3,55,4],[55,5,55,6],[55,7,55,8],[58,5,58,6],[58,7,58,8],[59,3,59,4],[59,5,59,6],[59,7,59,8],[58,3,58,4],[52,0,52,12],[60,5,60,6],[60,7,60,8],[56,7,56,8],[57,3,57,4],[57,5,57,6],[57,7,57,8],[48,5,48,6],[48,7,48,8],[45,3,45,4],[49,3,49,4],[49,5,49,6],[49,7,49,8],[50,3,50,4],[50,5,50,6],[50,7,50,8],[0,12,0,13],[6,0,6,1],[35,0,35,5],[53,0,53,8],[70,0,70,12],[56,3,56,4],[56,5,56,6],[11,0,11,7],[11,10,11,11],[15,0,15,7],[15,10,15,11],[10,0,10,7],[42,3,42,4],[42,5,42,6],[42,7,42,8],[43,3,43,4],[43,5,43,6],[43,7,43,8],[44,3,44,4],[44,5,44,6],[44,7,44,8],[17,10,17,11],[17,0,17,7],[18,10,18,11],[36,5,36,6],[36,3,36,4],[38,3,38,4],[145,0,146,13],[147,0,148,13],[39,17,39,18],[18,0,18,7],[19,0,19,13],[28,3,28,4],[28,5,28,6],[28,7,28,8],[28,1,29,2],[28,9,29,10],[37,3,37,4],[37,5,37,6],[37,7,37,8],[39,3,39,4],[39,5,39,6],[39,7,39,8],[40,3,40,4],[40,5,40,6],[40,7,40,8],[47,7,47,8],[48,3,48,4],[149,0,150,13],[116,0,116,12],[115,0,115,12],[80,0,80,6],[8,0,8,13],[9,0,9,8],[20,0,20,12],[9,10,9,11],[38,5,38,6],[38,7,38,8],[33,9,33,10],[32,9,32,10],[30,9,30,10],[45,5,45,6],[45,7,45,8],[46,3,46,4],[46,5,46,6],[46,7,46,8],[47,3,47,4],[47,5,47,6],[41,3,41,4],[41,5,41,6],[41,7,41,8],[36,7,36,8]]}
[null,null,null,"RETROFIT LIGHTING INCENTIVES"]
["Click a link at right to jump to that section:",null,null,"1. Interior Retrofits"]
[null,null,null,"2. LED Replacing HID (Lamps, Fixtures & Retrofit kits)"]
[null,null,null,"3. LED Replacing T5, T8 or T12 (Lamps, Fixtures & Retrofit Kits)"]
[null,null,null,"4. Controls for Existing LED Fixtures"]
[null,null,null,"5. Specifications for this section"]
["Applicant: fill in gray fields"]
["IMPORTANT NOTICE: Only qualified LED lighting is eligible for a rebate. No fluorescent replacements are eligible for rebates."]
["1. Interior Retrofits"]
["Equipment Type*",null,null,null,null,null,null,null,null,"Incentive","Unit",null,"# of Units","Incentive Subtotal"]
["LED Lighting"]
["20W or less LED Lamp replacing Incandescent Lamp ≤ 100W",null,null,null,null,null,null,null,null,2,"Lamp",null,null,{"$f":"J12*M12","v":0}]
["20W or less LED Lamp replacing CFL Lamp ≤ 42W",null,null,null,null,null,null,null,null,1,"Lamp",null,null,{"$f":"J13*M13","v":0}]
["LED Exit Signs replacing Incandescent Exit Signs",null,null,null,null,null,null,null,null,10,"LED Sign",null,null,0]
["LED Exit Signs replacing CFL Exit Signs",null,null,null,null,null,null,null,null,10,"LED Sign",null,null,0]
["LED Open Signs",null,null,null,null,null,null,null,null,20,"LED Sign",null,null,0]
["Interior Lighting Controls (Refer to \"Lighting SOW\" Columns R and S)                                                                                                                       "]
["Occupancy Sensors",null,null,null,null,null,null,null,null,0.16,"Watts Controlled",null,null,{"$f":"J18*M18","v":0}]
["Daylighting Sensor Controls",null,null,null,null,null,null,null,null,0.1,"Watts Controlled",null,null,{"$f":"J19*M19","v":0}]
[]
["Total Interior Retrofits Incentive",null,null,null,null,null,null,null,null,null,null,null,null,{"$f":"SUM(N12:N19)","v":0}]
[]
["*Please provide a description of the retrofit, including any lighting layouts, fixture counts or calculation spreadsheets."]
["** A dwelling unit is defined as an interior space that is residential in nature (i.e. hotel rooms, dormitories, retirement and senior"]
[" living communities, etc.). For Multi-family apartments apply through the PNM Multifamily Program."]
["***Watts Reduced = old connected wattage - new connected wattage"]
[]
["2. LED Replacing HID (Lamps, Fixtures & Retrofit kits)"]
[null,"Type of Retrofit",null,"Fixture Replacing Fixture",null,"Lamp Replacing Lamp",null,"Fixture to Retrofit Kit",null,"Total Incentive"]
[null,null,null,"Incentive","Watts Reduced","Incentive","Watts Reduced","Incentive","Watts Reduced",null,null,null,null,null,null,null,"Recommend increasing to these levels"]
[null,"Interior",null,0.42,{"$f":"SUMIFS($N$38:$N$52,$B$38:$B$52,$B31,$C$38:$C$52,D$29)-SUMIFS($N$56:$N$70,$B$56:$B$70,$B31,$C$56:$C$70,D$29)","v":0},0.21,{"$f":"SUMIFS($N$38:$N$52,$B$38:$B$52,$B31,$C$38:$C$52,F$29)-SUMIFS($N$56:$N$70,$B$56:$B$70,$B31,$C$56:$C$70,F$29)","v":0},0.32,{"$f":"SUMIFS($N$38:$N$52,$B$38:$B$52,$B31,$C$38:$C$52,H$29)-SUMIFS($N$56:$N$70,$B$56:$B$70,$B31,$C$56:$C$70,H$29)","v":0},{"$f":"IF(OR(D31*E31+F31*G31+H31*I31<0,$N$71=\"\",$N$71=0), 0, D31*E31+F31*G31+H31*I31)","v":0}]
[null,"Interior 18 Hour",null,0.9,{"$f":"SUMIFS($N$38:$N$52,$B$38:$B$52,$B32,$C$38:$C$52,D$29)-SUMIFS($N$56:$N$70,$B$56:$B$70,$B32,$C$56:$C$70,D$29)","v":0},0.48,{"$f":"SUMIFS($N$38:$N$52,$B$38:$B$52,$B32,$C$38:$C$52,F$29)-SUMIFS($N$56:$N$70,$B$56:$B$70,$B32,$C$56:$C$70,F$29)","v":0},0.63,{"$f":"SUMIFS($N$38:$N$52,$B$38:$B$52,$B32,$C$38:$C$52,H$29)-SUMIFS($N$56:$N$70,$B$56:$B$70,$B32,$C$56:$C$70,H$29)","v":0},{"$f":"IF(OR(D32*E32+F32*G32+H32*I32<0,$N$71=\"\",$N$71=0), 0, D32*E32+F32*G32+H32*I32)","v":0}]
[null,"Exterior",null,0.53,{"$f":"SUMIFS($N$38:$N$52,$B$38:$B$52,$B33,$C$38:$C$52,D$29)-SUMIFS($N$56:$N$70,$B$56:$B$70,$B33,$C$56:$C$70,D$29)","v":0},0.27,{"$f":"SUMIFS($N$38:$N$52,$B$38:$B$52,$B33,$C$38:$C$52,F$29)-SUMIFS($N$56:$N$70,$B$56:$B$70,$B33,$C$56:$C$70,F$29)","v":0},0.37,{"$f":"SUMIFS($N$38:$N$52,$B$38:$B$52,$B33,$C$38:$C$52,H$29)-SUMIFS($N$56:$N$70,$B$56:$B$70,$B33,$C$56:$C$70,H$29)","v":0},{"$f":"IF(OR(D33*E33+F33*G33+H33*I33<0,$N$71=\"\",$N$71=0), 0, D33*E33+F33*G33+H33*I33)","v":0},null,null,null,null,null,null,{"$f":"J35","v":0}]
[null,"24 Hour/Garage/3-Shift",null,1.26,{"$f":"SUMIFS($N$38:$N$52,$B$38:$B$52,$B34,$C$38:$C$52,D$29)-SUMIFS($N$56:$N$70,$B$56:$B$70,$B34,$C$56:$C$70,D$29)","v":0},0.63,{"$f":"SUMIFS($N$38:$N$52,$B$38:$B$52,$B34,$C$38:$C$52,F$29)-SUMIFS($N$56:$N$70,$B$56:$B$70,$B34,$C$56:$C$70,F$29)","v":0},0.84,{"$f":"SUMIFS($N$38:$N$52,$B$38:$B$52,$B34,$C$38:$C$52,H$29)-SUMIFS($N$56:$N$70,$B$56:$B$70,$B34,$C$56:$C$70,H$29)","v":0},{"$f":"IF(OR(D34*E34+F34*G34+H34*I34<0,$N$71=\"\",$N$71=0), 0, D34*E34+F34*G34+H34*I34)","v":0}]
[null,"Total High Efficiency LED replacing HID Incentive",null,null,null,null,null,null,null,{"$f":"SUM(J31:K34)","v":0}]
["Existing equipment: HID fixtures and/or lamps being removed"]
["#","Measure Type","Retrofit Type","Fixture Type",null,"Ballast Type",null,"Description",null,"Lamps/ Fixture","Lamp Wattage","Fixture Quantity","Fixture Wattage","Base\nWatts"]
[1,null,null,null,null,null,null,null,null,{"$f":"IF($H38=\"\",\"\",VLOOKUP($H38,$BB:$BF,3,FALSE))","v":""},{"$f":"IF($H38=\"\",\"\",VLOOKUP($H38,$BB:$BF,4,FALSE))","v":""},null,{"$f":"IF($H38=\"\",\"\",VLOOKUP($H38,$BB:$BF,5,FALSE))","v":""},{"$f":"IF((IF($H38=\"\",\"\",M38*L38))=0,\"Missing Value\",(IF($H38=\"\",\"\",M38*L38)))","v":""}]
[2,null,null,null,null,null,null,null,null,"","",null,"",""]
[3,null,null,null,null,null,null,null,null,"","",null,"",""]
[4,null,null,null,null,null,null,null,null,"","",null,"",""]
[5,null,null,null,null,null,null,null,null,"","",null,"",""]
[6,null,null,null,null,null,null,null,null,"","",null,"",""]
[7,null,null,null,null,null,null,null,null,"","",null,"",{"$f":"IF((IF($H44=\"\",\"\",M44*L44))=0,\"Missing Value\",(IF($H44=\"\",\"\",M44*L44)))","v":""}]
[8,null,null,null,null,null,null,null,null,"","",null,"",""]
[9,null,null,null,null,null,null,null,null,"","",null,"",""]
[10,null,null,null,null,null,null,null,null,"","",null,"",""]
[11,null,null,null,null,null,null,null,null,"","",null,"",""]
[12,null,null,null,null,null,null,null,null,"","",null,"",""]
[13,null,null,null,null,null,null,null,null,"","",null,"",""]
[14,null,null,null,null,null,null,null,null,"","",null,"",""]
[15,null,null,null,null,null,null,null,null,"","",null,"",""]
["Subtotal HID Base Case Wattage",null,null,null,null,null,null,null,null,null,null,null,null,{"$f":"IF(SUM(N38:N52)=0,\"\",SUM(N38:N52))","v":""}]
["Replacement equipment: New LED lamps, fixtures, or fixture retrofit kit being installed"]
["#","Measure Type","Retrofit Type","Fixture Type",null,"Fixture or Ballast   Sub Type",null,"Description \n(type in model number)",null,"Lamps/ Fixture","Lamp Wattage","Fixture Quantity","Fixture Wattage","Installed Watts"]
[1,null,null,null,null,null,null,null,null,null,null,null,{"$f":"IF($H56=\"\",\"\",J56*K56)","v":""},{"$f":"IF((IF($H56=\"\",\"\",M56*L56))=0,\"Missing Value\",(IF($H56=\"\",\"\",M56*L56)))","v":""}]
[2,null,null,null,null,null,null,null,null,null,null,null,"",""]
[3,null,null,null,null,null,null,null,null,null,null,null,"",""]
[4,null,null,null,null,null,null,null,null,null,null,null,"",""]
[5,null,null,null,null,null,null,null,null,null,null,null,"",""]
[6,null,null,null,null,null,null,null,null,null,null,null,"",""]
[7,null,null,null,null,null,null,null,null,null,null,null,"",""]
[8,null,null,null,null,null,null,null,null,null,null,null,"",""]
[9,null,null,null,null,null,null,null,null,null,null,null,{"$f":"IF($H64=\"\",\"\",J64*K64)","v":""},{"$f":"IF((IF($H64=\"\",\"\",M64*L64))=0,\"Missing Value\",(IF($H64=\"\",\"\",M64*L64)))","v":""}]
[10,null,null,null,null,null,null,null,null,null,null,null,"",""]
[11,null,null,null,null,null,null,null,null,null,null,null,"",""]
[12,null,null,null,null,null,null,null,null,null,null,null,"",""]
[13,null,null,null,null,null,null,null,null,null,null,null,"",""]
[14,null,null,null,null,null,null,null,null,null,null,null,"",""]
[15,null,null,null,null,null,null,null,null,null,null,null,"","",null,null,null,"Ranges and lookup values for calculated lighting tables. Use caution when editing ranges that are used for data validation lists"]
["Subtotal Installed LED Fixture Wattage",null,null,null,null,null,null,null,null,null,null,null,null,{"$f":"IF(SUM(N56:N70)=0,\"\",SUM(N56:N70))","v":""},null,null,null,"(tips: no symbols allowed, no spaces allowed unless removed with substitute function, any change to a range could delete it, so it must be re-created, use ctrl shift F3 to create a range, range name must begin and end with a letter and no spaces)"]
["3. LED Replacing T5, T8 or T12 (Lamps, Fixtures & Retrofit Kits)",null,null,null,null,null,null,null,null,null,null,null,null,null,null,null,null,"TABLE 1: EXISTING HID"]
[null,null,null,null,null,null,null,null,null,null,null,null,null,null,null,null,null,"Measure Type",null,"1. Retrofit Type",null,null,null,null,"2. Fixture Type",null,null,null,null,"3. Ballast Type",null,null,null,null,null,null,null,null,null,"4. Description",null,null,null,null,null,null,null,null,null,null,null,null,"5. Description lookup (all measures)"]
[null,"Type of Retrofit",null,"Fixture Replacing Fixture",null,"Lamp Replacing Lamp",null,"Fixture to Retrofit Kit",null,"Total Incentive",null,null,null,null,null,null,null,null,null,null,null,null,null,null,"HIDFixturereplacingFixture","HIDLampreplacingLamp","HIDFixturetoRetrofitKit",null,null,"CFL","HPS","I/H","MV","MH",null,null,null,null,null,null,null,null,null,null,null,null,null,null,null,null,null,null,"TYPE","DESCRIPTION","Ballast Type","LAMP / FIXTURE","WATT / LAMP","WATT / FIXTURE"]
[null,null,null,"Incentive","Watts Reduced","Incentive","Watts Reduced","Incentive","Watts Reduced",null,null,null,null,null,null,null,null,"MeasureType",null,"1. Retrofit Type",null,null,null,null,"CFL","CFL","CFL",null,null,"HIDCFL","HIDHighPressureSodium","HIDIncanorHalogen","HIDMercuryVapor","HIDMetalHalide",null,null,null,null,null,"HighPressureSodiumMagnetic","IncanorHalogenNone",null,"MercuryVaporMagnetic","MetalHalideElectronic","MetalHalideMagnetic","FixturetoRetrofitKitFixturetoRetrofitKit","CFLNone",null,null,null,null,null,"CFL","25 Watt Compact Fluorescent","None",1,25,25]
[null,"Interior",null,0.42,{"$f":"SUMIFS($N$83:$N$97,$B$83:$B$97,$B76,$C$83:$C$97,D$74)-SUMIFS($N$101:$N$115,$B$101:$B$115,$B76,$C$101:$C$115,D$74)","v":0},0.21,{"$f":"SUMIFS($N$83:$N$97,$B$83:$B$97,$B76,$C$83:$C$97,F$74)-SUMIFS($N$101:$N$115,$B$101:$B$115,$B76,$C$101:$C$115,F$74)","v":0},0.32,{"$f":"SUMIFS($N$83:$N$97,$B$83:$B$97,$B76,$C$83:$C$97,H$74)-SUMIFS($N$101:$N$115,$B$101:$B$115,$B76,$C$101:$C$115,H$74)","v":0},{"$f":"IF(OR($D76*$E76+$F76*$G76+$H76*$I76<0,$N$116=\"\",$N$116=0), 0,$D76* $E76+$F76*$G76+$H76*$I76)","v":0},null,null,null,null,null,null,null,"Interior",null,"Fixture replacing Fixture",null,null,null,null,"High Pressure Sodium","High Pressure Sodium","High Pressure Sodium",null,null,"None","Magnetic","None","Magnetic","Magnetic",null,null,null,null,null,"35 Watt HPS Lamp, Magnetic ballast","110 Watt Incandescent or Halogen Lamp",null,"40 Watt MV Lamp","20 Watt MH Lamp, Electronic Ballast","32 Watt MH Lamp, Magnetic ballast","Fixture to Retrofit Kit","25 Watt Compact Fluorescent",null,null,null,null,null,"CFL","30 Watt Compact Fluorescent","None",1,30,30]
[null,"Interior 18 Hour",null,0.9,{"$f":"SUMIFS($N$83:$N$97,$B$83:$B$97,$B77,$C$83:$C$97,D$74)-SUMIFS($N$101:$N$115,$B$101:$B$115,$B77,$C$101:$C$115,D$74)","v":0},0.48,{"$f":"SUMIFS($N$83:$N$97,$B$83:$B$97,$B77,$C$83:$C$97,F$74)-SUMIFS($N$101:$N$115,$B$101:$B$115,$B77,$C$101:$C$115,F$74)","v":0},0.63,{"$f":"SUMIFS($N$83:$N$97,$B$83:$B$97,$B77,$C$83:$C$97,H$74)-SUMIFS($N$101:$N$115,$B$101:$B$115,$B77,$C$101:$C$115,H$74)","v":0},{"$f":"IF(OR($D77*$E77+$F77*$G77+$H77*$I77<0,$N$116=\"\",$N$116=0), 0,$D77* $E77+$F77*$G77+$H77*$I77)","v":0},null,null,null,null,null,null,{"$f":"J80","v":0},"Interior 18 Hour",null,"Lamp replacing Lamp",null,null,null,null,"Incan or Halogen","Incan or Halogen","Incan or Halogen",null,null,null,null,null,null,"Electronic",null,null,null,null,null,"50 Watt HPS Lamp, Magnetic ballast","116 Watt Incandescent or Halogen Lamp",null,"50 Watt MV Lamp","22 Watt MH Lamp, Electronic Ballast","39 Watt MH Lamp, Magnetic ballast",null,"30 Watt Compact Fluorescent",null,null,null,null,null,"CFL","35 Watt Compact Fluorescent","None",1,35,35]
[null,"Exterior",null,0.53,{"$f":"SUMIFS($N$83:$N$97,$B$83:$B$97,$B78,$C$83:$C$97,D$74)-SUMIFS($N$101:$N$115,$B$101:$B$115,$B78,$C$101:$C$115,D$74)","v":0},0.27,{"$f":"SUMIFS($N$83:$N$97,$B$83:$B$97,$B78,$C$83:$C$97,F$74)-SUMIFS($N$101:$N$115,$B$101:$B$115,$B78,$C$101:$C$115,F$74)","v":0},0.37,{"$f":"SUMIFS($N$83:$N$97,$B$83:$B$97,$B78,$C$83:$C$97,H$74)-SUMIFS($N$101:$N$115,$B$101:$B$115,$B78,$C$101:$C$115,H$74)","v":0},{"$f":"IF(OR($D78*$E78+$F78*$G78+$H78*$I78<0,$N$116=\"\",$N$116=0), 0,$D78* $E78+$F78*$G78+$H78*$I78)","v":0},null,null,null,null,null,null,null,"Exterior",null,"Fixture to Retrofit Kit",null,null,null,null,"Mercury Vapor","Mercury Vapor","Mercury Vapor",null,null,null,null,null,null,null,null,null,null,null,null,"70 Watt HPS Lamp, Magnetic ballast","120 Watt Incandescent or Halogen Lamp",null,"75 Watt MV Lamp","39 Watt MH Lamp, Electronic Ballast","50 Watt MH Lamp, Magnetic ballast",null,"35 Watt Compact Fluorescent",null,null,null,null,null,"CFL","40 Watt Compact Fluorescent","None",1,40,40]
[null,"24 Hour/Garage/3-Shift",null,1.26,{"$f":"SUMIFS($N$83:$N$97,$B$83:$B$97,$B79,$C$83:$C$97,D$74)-SUMIFS($N$101:$N$115,$B$101:$B$115,$B79,$C$101:$C$115,D$74)","v":0},0.63,{"$f":"SUMIFS($N$83:$N$97,$B$83:$B$97,$B79,$C$83:$C$97,F$74)-SUMIFS($N$101:$N$115,$B$101:$B$115,$B79,$C$101:$C$115,F$74)","v":0},0.84,{"$f":"SUMIFS($N$83:$N$97,$B$83:$B$97,$B79,$C$83:$C$97,H$74)-SUMIFS($N$101:$N$115,$B$101:$B$115,$B79,$C$101:$C$115,H$74)","v":0},{"$f":"IF(OR($D79*$E79+$F79*$G79+$H79*$I79<0,$N$116=\"\",$N$116=0), 0,$D79* $E79+$F79*$G79+$H79*$I79)","v":0},null,null,null,null,null,null,null,"24 Hour/Garage/3-Shift",null,null,null,null,null,null,"Metal Halide","Metal Halide","Metal Halide",null,null,null,null,null,null,null,null,null,null,null,null,"100 Watt HPS Lamp, Magnetic ballast","125 Watt Incandescent or Halogen Lamp",null,"100 Watt MV Lamp","50 Watt MH Lamp, Electronic Ballast","70 Watt MH Lamp, Magnetic ballast",null,"40 Watt Compact Fluorescent",null,null,null,null,null,"CFL","45 Watt Compact Fluorescent","None",1,45,45]
[null,"Total High Efficiency LED Replacing T5, T8, or T12 Incentive",null,null,null,null,null,null,null,{"$f":"SUM(J76:K79)","v":0},null,null,null,null,null,null,null,null,null,null,null,null,null,null,null,null,null,null,null,null,null,null,null,null,null,null,null,null,null,"150 Watt HPS Lamp, Magnetic ballast","130 Watt Incandescent or Halogen Lamp",null,"160 Watt MV self-ballasted Lamp","70 Watt MH Lamp, Electronic Ballast","100 Watt MH Lamp, Magnetic ballast",null,"45 Watt Compact Fluorescent",null,null,null,null,null,"CFL","50 Watt Compact Fluorescent","None",1,50,50]
["Existing equipment: T5, T8 or T12 fixtures and/or lamps being removed",null,null,null,null,null,null,null,null,null,null,null,null,null,null,null,null,null,null,null,null,null,null,null,null,null,null,null,null,null,null,null,null,null,null,null,null,null,null,"200 Watt HPS Lamp, Magnetic ballast","135 Watt Incandescent or Halogen Lamp",null,"175 Watt MV Lamp","100 Watt MH Lamp, Electronic Ballast","125 Watt MH Lamp, Magnetic ballast",null,"50 Watt Compact Fluorescent",null,null,null,null,null,"CFL","55 Watt Compact Fluorescent","None",1,55,55]
["#","Measure Type","Retrofit Type","Fixture Type",null,"Ballast Type",null,"Description",null,"Lamps/ Fixture","Lamp Wattage","Fixture Quantity","Fixture Wattage","Base\nWatts",null,null,null,null,null,null,null,null,null,null,null,null,null,null,null,null,null,null,null,null,null,null,null,null,null,"250 Watt HPS Lamp, Magnetic ballast","150 Watt Incandescent or Halogen Lamp",null,"250 Watt MV Lamp","150 Watt MH Lamp, Electronic Ballast","150 Watt MH Lamp, Magnetic Ballast",null,"55 Watt Compact Fluorescent",null,null,null,null,null,"CFL","60 Watt Compact Fluorescent","None",1,60,60]
[1,null,null,null,null,null,null,null,null,{"$f":"IF($H83=\"\",\"\",VLOOKUP($H83,$BB:$BF,3,FALSE))","v":""},{"$f":"IF($H83=\"\",\"\",VLOOKUP($H83,$BB:$BF,4,FALSE))","v":""},null,{"$f":"IF($H83=\"\",\"\",VLOOKUP($H83,$BB:$BF,5,FALSE))","v":""},{"$f":"IF((IF($H83=\"\",\"\",M83*L83))=0,\"Missing Value\",(IF($H83=\"\",\"\",M83*L83)))","v":""},null,null,null,null,null,null,null,null,null,null,null,null,null,null,null,null,null,null,null,null,null,null,null,null,null,"310 Watt HPS Lamp, Magnetic ballast","160 Watt Incandescent or Halogen Lamp",null,"400 Watt MV Lamp","175 Watt MH Lamp, Electronic Ballast","175 Watt MH Lamp, Magnetic ballast",null,"60 Watt Compact Fluorescent",null,null,null,null,null,"CFL","65 Watt Compact Fluorescent","None",1,65,65]
[2,null,null,null,null,null,null,null,null,"","",null,"","",null,null,null,null,null,null,null,null,null,null,null,null,null,null,null,null,null,null,null,null,null,null,null,null,null,"360 Watt HPS Lamp, Magnetic ballast","170 Watt Incandescent or Halogen Lamp",null,"700 Watt MV Lamp","200 Watt MH Lamp, Electronic Ballast","200 Watt MH Lamp, Magnetic ballast",null,"65 Watt Compact Fluorescent",null,null,null,null,null,"CFL","70 Watt Compact Fluorescent","None",1,70,70]
[3,null,null,null,null,null,null,null,null,"","",null,"","",null,null,null,null,null,null,null,null,null,null,null,null,null,null,null,null,null,null,null,null,null,null,null,null,null,"400 Watt HPS Lamp, Magnetic ballast","200 Watt Incandescent or Halogen Lamp",null,"1000 Watt MV Lamp","250 Watt MH Lamp, Electronic Ballast","250 Watt MH Lamp, Magnetic ballast",null,"70 Watt Compact Fluorescent",null,null,null,null,null,"CFL","75 Watt Compact Fluorescent","None",1,75,75]
[4,null,null,null,null,null,null,null,null,"","",null,"","",null,null,null,null,null,null,null,null,null,null,null,null,null,null,null,null,null,null,null,null,null,null,null,null,null,"1000 Watt HPS Lamp, Magnetic ballast","250 Watt Incandescent or Halogen Lamp",null,null,"320 Watt MH Lamp, Electronic Ballast","320 Watt MH Lamp, Magnetic ballast",null,"75 Watt Compact Fluorescent",null,null,null,null,null,"CFL","80 Watt Compact Fluorescent","None",1,80,80]
[5,null,null,null,null,null,null,null,null,"","",null,"","",null,null,null,null,null,null,null,null,null,null,null,null,null,null,null,null,null,null,null,null,null,null,null,null,null,null,"300 Watt Incandescent or Halogen Lamp",null,null,"350 Watt MH Lamp, Electronic Ballast","350 Watt MH Lamp, Magnetic ballast",null,"80 Watt Compact Fluorescent",null,null,null,null,null,"CFL","85 Watt Compact Fluorescent","None",1,85,85]
[6,null,null,null,null,null,null,null,null,"","",null,"","",null,null,null,null,null,null,null,null,null,null,null,null,null,null,null,null,null,null,null,null,null,null,null,null,null,null,"400 Watt Incandescent or Halogen Lamp",null,null,"400 Watt MH Lamp, Electronic Ballast","360 Watt MH Lamp, Magnetic ballast",null,"85 Watt Compact Fluorescent",null,null,null,null,null,"CFL","90 Watt Compact Fluorescent","None",1,90,90]
[7,null,null,null,null,null,null,null,null,"","",null,"","",null,null,null,null,null,null,null,null,null,null,null,null,null,null,null,null,null,null,null,null,null,null,null,null,null,null,"448 Watt Incandescent or Halogen Lamp",null,null,null,"400 Watt MH Lamp, Magnetic ballast",null,"90 Watt Compact Fluorescent",null,null,null,null,null,"CFL","95 Watt Compact Fluorescent","None",1,95,95]
[8,null,null,null,null,null,null,null,null,"","",null,"","",null,null,null,null,null,null,null,null,null,null,null,null,null,null,null,null,null,null,null,null,null,null,null,null,null,null,"500 Watt Incandescent or Halogen Lamp",null,null,null,"450 Watt MH Lamp, Magnetic ballast",null,"95 Watt Compact Fluorescent",null,null,null,null,null,"CFL","100 Watt Compact Fluorescent","None",1,100,100]
[9,null,null,null,null,null,null,null,null,"","",null,"","",null,null,null,null,null,null,null,null,null,null,null,null,null,null,null,null,null,null,null,null,null,null,null,null,null,null,"750 Watt Incandescent or Halogen Lamp",null,null,null,"750 Watt MH Lamp, Magnetic ballast",null,"100 Watt Compact Fluorescent",null,null,null,null,null,"CFL","105 Watt Compact Fluorescent","None",1,105,105]
[10,null,null,null,null,null,null,null,null,"","",null,"","",null,null,null,"TABLE 2: REPLACEMENT FROM HID",null,null,null,null,null,null,"2. Fixture Type",null,null,null,null,"3. Ballast Type",null,null,null,null,null,null,null,null,null,null,"1000 Watt Incandescent or Halogen Lamp",null,null,null,"1000 Watt MH Lamp, Magnetic ballast",null,"105 Watt Compact Fluorescent",null,null,null,null,null,"CFL","110 Watt Compact Fluorescent","None",1,110,110]
[11,null,null,null,null,null,null,null,null,"","",null,"","",null,null,null,null,null,null,null,null,null,null,"RFixturereplacingFixture","RLampreplacingLamp","RFixturetoRetrofitKit",null,null,"RT5R","RT8R","RFUTT8R","RLEDR","RRetrofitKitR",null,null,null,null,null,null,"1500 Watt Incandescent or Halogen Lamp",null,null,null,"1500 Watt MH Lamp, Magnetic ballast",null,"110 Watt Compact Fluorescent",null,null,null,null,null,"High Pressure Sodium","35 Watt HPS Lamp, Magnetic ballast","Magnetic",1,35,46]
[12,null,null,null,null,null,null,null,null,"","",null,"","",null,null,null,null,null,null,null,null,null,null,"LED","LED","Retrofit Kit",null,null,"PRS Elec","Electronic HO","Electronic","Flood and Spot LEDs Over 20W","LED Retrofit Kit",null,null,null,null,null,null,"2000 Watt Incandescent or Halogen Lamp",null,null,null,null,null,null,null,null,null,null,null,"High Pressure Sodium","50 Watt HPS Lamp, Magnetic ballast","Magnetic",1,50,66]
[13,null,null,null,null,null,null,null,null,"","",null,"","",null,null,null,null,null,null,null,null,null,null,null,null,null,null,null,null,"Electronic Std","Electronic HO","Downlight Can Fixture Over 20W",null,null,null,null,null,null,null,null,null,null,null,null,null,null,null,null,null,null,null,"High Pressure Sodium","70 Watt HPS Lamp, Magnetic ballast","Magnetic",1,70,95]
[14,null,null,null,null,null,null,null,null,"","",null,"","",null,null,null,null,null,null,null,null,null,null,null,null,null,null,null,null,null,null,"Outdoor Pole/Arm-Mounted Area LEDs",null,null,null,null,null,null,null,null,null,null,null,null,null,null,null,null,null,null,null,"High Pressure Sodium","100 Watt HPS Lamp, Magnetic ballast","Magnetic",1,100,138]
[15,null,null,null,null,null,null,null,null,"","",null,"","",null,null,null,null,null,null,null,null,null,null,null,null,null,null,null,null,null,null,"Outdoor Wall-Mounted Area LEDs",null,null,null,null,null,null,null,null,null,null,null,null,null,null,null,null,null,null,null,"High Pressure Sodium","150 Watt HPS Lamp, Magnetic ballast","Magnetic",1,150,188]
["Subtotal T5, T8 or T12 Base Case Wattage",null,null,null,null,null,null,null,null,null,null,null,null,{"$f":"IF(SUM(N83:N97)=0,\"\",SUM(N83:N97))","v":""},null,null,null,null,null,null,null,null,null,null,null,null,null,null,null,null,null,null,"Fuel Pump Canopy LEDs",null,null,null,null,null,null,null,null,null,null,null,null,null,null,null,null,null,null,null,"High Pressure Sodium","200 Watt HPS Lamp, Magnetic ballast","Magnetic",1,200,250]
["Replacement equipment: LED lamps, fixtures, or fixture retrofit kits being installed",null,null,null,null,null,null,null,null,null,null,null,null,null,null,null,null,null,null,null,null,null,null,null,null,null,null,null,null,null,null,null,"Parking Garage LEDs",null,null,null,null,null,null,null,null,null,null,null,null,null,null,null,null,null,null,null,"High Pressure Sodium","250 Watt HPS Lamp, Magnetic ballast","Magnetic",1,250,295]
["#","Measure Type","Retrofit Type","Fixture Type",null,"LED Fixture Sub Type",null,"Description \n(type in model number)",null,"Lamps/ Fixture","Lamp Wattage","Fixture Quantity","Fixture Wattage","Installed Watts",null,null,null,null,null,null,null,null,null,null,null,null,null,null,null,null,null,null,"High-Bay LEDs ",null,null,null,null,null,null,null,null,null,null,null,null,null,null,null,null,null,null,null,"High Pressure Sodium","310 Watt HPS Lamp, Magnetic ballast","Magnetic",1,310,365]
[1,null,null,null,null,null,null,null,null,null,null,null,{"$f":"IF($H101=\"\",\"\",J101*K101)","v":""},{"$f":"IF((IF($H101=\"\",\"\",M101*L101))=0,\"Missing Value\",(IF($H101=\"\",\"\",M101*L101)))","v":""},null,null,null,null,null,null,null,null,null,null,null,null,null,null,null,null,null,null,"Low-Bay LEDs ",null,null,null,null,null,null,null,null,null,null,null,null,null,null,null,null,null,null,null,"High Pressure Sodium","360 Watt HPS Lamp, Magnetic ballast","Magnetic",1,360,414]
[2,null,null,null,null,null,null,null,null,null,null,null,"","",null,null,null,null,null,null,null,null,null,null,null,null,null,null,null,null,null,null,"Indoor Wall-Mounted Area LEDs",null,null,null,null,null,null,null,null,null,null,null,null,null,null,null,null,null,null,null,"High Pressure Sodium","400 Watt HPS Lamp, Magnetic ballast","Magnetic",1,400,465]
[3,null,null,null,null,null,null,null,null,null,null,null,"","",null,null,null,null,null,null,null,null,null,null,null,null,null,null,null,null,null,null,"Stairwell and Passageway LEDs",null,null,null,null,null,null,null,null,null,null,null,null,null,null,null,null,null,null,null,"High Pressure Sodium","1000 Watt HPS Lamp, Magnetic ballast","Magnetic",1,1000,1100]
[4,null,null,null,null,null,null,null,null,null,null,null,"","",null,null,null,null,null,null,null,null,null,null,null,null,null,null,null,null,null,null,"Signage",null,null,null,null,null,null,null,null,null,null,null,null,null,null,null,null,null,null,null,"Incan or Halogen","110 Watt Incandescent or Halogen Lamp","None",1,110,110]
[5,null,null,null,null,null,null,null,null,null,null,null,"","",null,null,null,null,null,null,null,null,null,null,null,null,null,null,null,null,null,null,"Bollards",null,null,null,null,null,null,null,null,null,null,null,null,null,null,null,null,null,null,null,"Incan or Halogen","116 Watt Incandescent or Halogen Lamp","None",1,116,116]
[6,null,null,null,null,null,null,null,null,null,null,null,"","",null,null,null,null,null,null,null,null,null,null,null,null,null,null,null,null,null,null,"Display Case LEDs",null,null,null,null,null,null,null,null,null,null,null,null,null,null,null,null,null,null,null,"Incan or Halogen","120 Watt Incandescent or Halogen Lamp","None",1,120,120]
[7,null,null,null,null,null,null,null,null,null,null,null,"","",null,null,null,null,null,null,null,null,null,null,null,null,null,null,null,null,null,null,"1x4 Luminaires",null,null,null,null,null,null,null,null,null,null,null,null,null,null,null,null,null,null,null,"Incan or Halogen","125 Watt Incandescent or Halogen Lamp","None",1,125,125]
[8,null,null,null,null,null,null,null,null,null,null,null,"","",null,null,null,null,null,null,null,null,null,null,null,null,null,null,null,null,null,null,"2x2 Luminaires",null,null,null,null,null,null,null,null,null,null,null,null,null,null,null,null,null,null,null,"Incan or Halogen","130 Watt Incandescent or Halogen Lamp","None",1,130,130]
[9,null,null,null,null,null,null,null,null,null,null,null,"","",null,null,null,null,null,null,null,null,null,null,null,null,null,null,null,null,null,null,"2x4 Luminaires",null,null,null,null,null,null,null,null,null,null,null,null,null,null,null,null,null,null,null,"Incan or Halogen","135 Watt Incandescent or Halogen Lamp","None",1,135,135]
[10,null,null,null,null,null,null,null,null,null,null,null,"","",null,null,null,null,null,null,null,null,null,null,null,null,null,null,null,null,null,null,"1x8 Luminaires",null,null,null,null,null,null,null,null,null,null,null,null,null,null,null,null,null,null,null,"Incan or Halogen","150 Watt Incandescent or Halogen Lamp","None",1,150,150]
[11,null,null,null,null,null,null,null,null,null,null,null,"","",null,null,null,null,null,null,null,null,null,null,null,null,null,null,null,null,null,null,null,null,null,null,null,null,null,null,null,null,null,null,null,null,null,null,null,null,null,null,"Incan or Halogen","160 Watt Incandescent or Halogen Lamp","None",1,160,160]
[12,null,null,null,null,null,null,null,null,null,null,null,"","",null,null,null,null,null,null,null,null,null,null,null,null,null,null,null,null,null,null,null,null,null,null,null,null,null,null,null,null,null,null,null,null,null,null,null,null,null,null,"Incan or Halogen","170 Watt Incandescent or Halogen Lamp","None",1,170,170]
[13,null,null,null,null,null,null,null,null,null,null,null,"","",null,null,null,null,null,null,null,null,null,null,null,null,null,null,null,null,null,null,null,null,null,null,null,null,null,null,null,null,null,null,null,null,null,null,null,null,null,null,"Incan or Halogen","200 Watt Incandescent or Halogen Lamp","None",1,200,200]
[14,null,null,null,null,null,null,null,null,null,null,null,"","",null,null,null,null,null,null,null,null,null,null,null,null,null,null,null,null,null,null,null,null,null,null,null,null,null,null,null,null,null,null,null,null,null,null,null,null,null,null,"Incan or Halogen","250 Watt Incandescent or Halogen Lamp","None",1,250,250]
[15,null,null,null,null,null,null,null,null,null,null,null,"","",null,null,null,null,null,null,null,null,null,null,null,null,null,null,null,null,null,null,null,null,null,null,null,null,null,null,null,null,null,null,null,null,null,null,null,null,null,null,"Incan or Halogen","300 Watt Incandescent or Halogen Lamp","None",1,300,300]
["Subtotal Installed LED Fixture Wattage",null,null,null,null,null,null,null,null,null,null,null,null,{"$f":"IF(SUM(N101:N115)=0,\"\",SUM(N101:N115))","v":""},null,null,null,null,null,null,null,null,null,null,null,null,null,null,null,null,null,null,null,null,null,null,null,null,null,null,null,null,null,null,null,null,null,null,null,null,null,null,"Incan or Halogen","400 Watt Incandescent or Halogen Lamp","None",1,400,400]
["4. Controls for Existing LED Fixtures (Refer to Section 1 for Interior Controls)",null,null,null,null,null,null,null,null,null,null,null,null,null,null,null,null,null,null,null,null,null,null,null,"2. Fixture Type",null,null,null,null,"3. Ballast Type",null,null,null,null,null,null,null,null,null,null,null,null,null,null,null,null,null,null,null,null,null,null,"Incan or Halogen","448 Watt Incandescent or Halogen Lamp","None",1,448,448]
[null,null,null,null,null,null,null,null,null,null,null,null,null,null,null,null,null,"TMeasureType",null,"TRetrofitType",null,null,null,null,"TFixturereplacingFixture","TLampreplacingLamp","TFixturetoRetrofitKit",null,null,"FUT12","FUT8","T12","T8","F2RK","T5",null,null,null,null,null,null,null,null,null,null,null,null,null,null,null,null,null,"Incan or Halogen","500 Watt Incandescent or Halogen Lamp","None",1,500,500]
[null,"Type of Retrofit",null,"Controlled Fixture",null,"Total Incentive",null,null,null,null,null,null,null,null,null,null,null,"Interior",null,"Fixture replacing Fixture",null,null,null,null,"T5","T5","T5",null,null,"TFUT12T","TFUT8T","TT12T","TT8T","TFixturetoRetrofitKitT","TT5T",null,null,null,null,"FUT12Magnetic","FUT8Electronic","FUT8ElectronicHO","T12Magnetic","T8ElectronicHO","T8ElectronicStd","T5PRSElec",null,null,null,null,null,null,"Incan or Halogen","750 Watt Incandescent or Halogen Lamp","None",1,750,750]
[null,null,null,"Incentive","Watts Reduced",null,null,null,null,null,null,null,null,null,null,null,null,"Interior 18 Hour",null,"Lamp replacing Lamp",null,null,null,null,"T8","T8","T8",null,null,"Magnetic","Electronic","Magnetic","Electronic HO","Fixture to Retrofit Kit","PRS Elec",null,null,null,null,"(1) U-Tube, T12 STD Lamp, STD Mag Ballast, 34 Watt Lamps","(1) U-Tube, T8 Standard ballast, 32 Watt Lamp","(1) U-Tube, T8 High Output Ballast, 32 Watt Lamp","(1) 24\" T12, STD Lamps, 20 Watt Lamps","(1) 24\", T8, High Output Ballast, 17 Watt Lamps","(1) 24\", T8, Std Elec Ballast, 17 Watt Lamps","(1) 22\" T-5 14W Lamp (1) Prog Start or PRS Ballast, HLO (.95<BF<1.1)",null,null,null,null,null,null,"Incan or Halogen","1000 Watt Incandescent or Halogen Lamp","None",1,1000,1000]
[null,"Interior",null,"NA","NA","NA",null,null,null,null,null,null,null,null,null,null,null,"Exterior",null,"Fixture to Retrofit Kit",null,null,null,null,"T12","T12","T12",null,null,null,"Electronic HO",null,"Electronic Std",null,null,null,null,null,null,"(1) U-Tube, T12 STD Lamp, STD Mag Ballast, 40 Watt Lamps","(2) U-Tube, T8 Standard ballast, 32 Watt Lamp","(2) U-Tube, T8 High Output Ballast, 32 Watt Lamp","(1) 36\" T12, STD  Lamps Mag-STD, 30 Watt Lamps","(1) 36\", T8, High Output Ballast, 25 Watt Lamps","(1) 36\", T8, Std Elec Ballast, 25 Watt Lamps","(1) 22\" T-5 24W HO Lamp (1) Prog Start or PRS Ballast, HLO (.95<BF<1)",null,null,null,null,null,null,"Incan or Halogen","1500 Watt Incandescent or Halogen Lamp","None",1,1500,1500]
[null,"Interior 18 Hour",null,"NA","NA","NA",null,null,null,null,null,null,null,null,null,null,{"$f":"+F125","v":0},"24 Hour/Garage/3-Shift",null,null,null,null,null,null,"FUT8","FUT8","FUT8",null,null,null,null,null,null,null,null,null,null,null,null,"(2) U-Tube, T12 STD Lamp, STD Mag Ballast, 34 Watt Lamps",null,null,"(1) 48\" T12, ES Lamp, Magnetic Ballast-STD, 34 Watt Lamps","(1) 48\", T8,  High Output Ballast, 28 Watt Lamps","(1) 48\", T8, Std Ballast, 25 Watt Lamps","(1) 34\" T-5 21W Lamp (1) Prog Start or PRS Ballast, HLO (.95<BF<1.1)",null,null,null,null,null,null,"Incan or Halogen","2000 Watt Incandescent or Halogen Lamp","None",1,2000,2000]
[null,"Exterior",null,0.42,{"$f":"SUMIFS($N$128:$N$142,$B$128:$B$142,$B123,$D$128:$D$142,D$119)","v":0},{"$f":"D123*E123","v":0},null,null,null,null,null,null,null,null,null,null,null,null,null,null,null,null,null,null,"FUT12","FUT12","FUT12",null,null,null,null,null,null,null,null,null,null,null,null,"(2) U-Tube, T12 STD Lamp, STD Mag Ballast, 40 Watt Lamps",null,null,"(1) 48\" T12, STD Lamp, Magnetic Ballast-STD, 40 Watt Lamps","(1) 48\", T8, High Output Ballast, 25 Watt Lamps","(1) 48\", T8, Std Ballast, 28 Watt Lamps","(1) 34\" T-5 39W HO Lamp (1) Prog Start or PRS Ballast, HLO (.95<BF<1.1)",null,null,null,null,null,null,"Mercury Vapor","40 Watt MV Lamp","Magnetic",1,40,50]
[null,"24 Hour/Garage/3-Shift",null,0.53,{"$f":"SUMIFS($N$128:$N$142,$B$128:$B$142,$B124,$D$128:$D$142,D$119)","v":0},{"$f":"D124*E124","v":0},null,null,null,null,null,null,null,null,null,null,null,null,null,null,null,null,null,null,null,null,null,null,null,null,null,null,null,null,null,null,null,null,null,null,null,null,"(1) 48\" T12, STD Lamp, Magnetic Ballast-STD, 40 Watt Lamps","(1) 48\", T8, High Output Ballast, 32 Watt Lamps","(1) 48\", T8, Std Ballast, 32 Watt Lamps","(1) 45.8\" T-5 28W Lamp (1) Prog Start or PRS Ballast, HLO (.95<BF<1.1)",null,null,null,null,null,null,"Mercury Vapor","50 Watt MV Lamp","Magnetic",1,50,74]
[null,"Controls on Existing LED Fixtures",null,null,null,{"$f":"SUM(F121:G124)","v":0},null,null,null,null,null,null,null,null,null,null,null,null,null,null,null,null,null,null,null,null,null,null,null,null,null,null,null,null,null,null,null,null,null,null,null,null,"(1) 48\" T12, HO Lamps, 60 Watt Lamps","(1) 96\", T8, High Output Ballast, 57 Watt Lamps","(1) 96\", T8 Std Ballast, 57 Watt Lamps","(1) 45.8\" T-5 54W HO Lamps (1) Prog RS Ballast, HLO(.95<BF<1.1)",null,null,null,null,null,null,"Mercury Vapor","75 Watt MV Lamp","Magnetic",1,75,93]
["Controlled Existing LED Fixture with High and Low Settings",null,null,null,null,null,null,null,null,null,null,null,null,null,null,null,null,null,null,null,null,null,null,null,null,null,null,null,null,null,null,null,null,null,null,null,null,null,null,null,null,null,"(1) 72\" T12, HO Lamps, 85 Watt Lamps","(1) 96\", T8, High Output Ballast, 59 Watt Lamps","(1) 96\", T8 Std Ballast, 59 Watt Lamps","(1) 57.6\" T-5 35W Lamp (1) Prog Start or PRS Ballast, HLO (.95<BF<1.1)",null,null,null,null,null,null,"Mercury Vapor","100 Watt MV Lamp","Magnetic",1,100,125]
["#","Measure Type","Retrofit Type","Fixture Type",null,"Sub Type",null,"Description (type in)",null,"Fixture Quantity","High Setting Wattage","Low Setting Wattage","Weighted Average Watts Reduced",null,null,null,null,null,null,null,null,null,null,null,null,null,null,null,null,null,null,null,null,null,null,null,null,null,null,null,null,null,"(1) 96\" T12, ES Lamps Mag-STD, 60 Watt Lamps","(1) 96\", T8, High Output Ballast, 86 Watt Lamps","(1) 96\", T8 Std Ballast, 86 Watt Lamps","(1) 57.6\" T-5 80W HO Lamp (1) Prog Start or PRS Ballast, HLO (.95<BF<1.1)",null,null,null,null,null,null,"Mercury Vapor","160 Watt MV self-ballasted Lamp","Magnetic",1,160,160]
[1,null,{"$f":"IFERROR(VLOOKUP($B128,$R$173:$U$175,3,FALSE),\"\")","v":""},{"$f":"IFERROR(VLOOKUP($B128,$R$173:$U$175,4,FALSE),\"\")","v":""},{"$f":"VLOOKUP($B128,$R$173:$U$175,3,FALSE)","v":{"$error":"#N/A"}},null,null,null,null,null,null,null,null,{"$f":"IF((IF($H128=\"\",\"\",(ROUND(((K128-L128)*0.85*J128),0))))=0,\"Missing Value\",(IF($H128=\"\",\"\",(ROUND(((K128-L128)*0.85*J128),0)))))","v":""},null,null,null,null,null,null,null,null,null,null,null,null,null,null,null,null,null,null,null,null,null,null,null,null,null,null,null,null,"(1) 96\" T12, STD Lamps Mag-STD, 75 Watt Lamps","(2) 24\", T8, High Output Ballast, 17 Watt Lamps","(2) 24\", T8, Std Elec Ballast, 17 Watt Lamps","(10) 45.8\" T-5 54W HO Lamps (5) Prog RS Ballast, HLO (.95<BF<1.1)",null,null,null,null,null,null,"Mercury Vapor","175 Watt MV Lamp","Magnetic",1,175,205]
[2,null,"","",{"$error":"#N/A"},null,null,null,null,null,null,null,null,{"$f":"IF((IF($H129=\"\",\"\",(ROUND(((K129-L129)*0.85*J129),0))))=0,\"Missing Value\",(IF($H129=\"\",\"\",(ROUND(((K129-L129)*0.85*J129),0)))))","v":""},null,null,null,null,null,null,null,null,null,null,null,null,null,null,null,null,null,null,null,null,null,null,null,null,null,null,null,null,"(1) 96\" T12, ES HO Lamps Mag-STD, 95 Watt Lamps","(2) 36\", T8, High Output Ballast, 25 Watt Lamps","(2) 36\", T8, Std Elec Ballast, 25 Watt Lamps","(12) 45.8\" T-5 54W HO Lamps (6) Prog RS Ballast, HLO (.95<BF<1.1)",null,null,null,null,null,null,"Mercury Vapor","250 Watt MV Lamp","Magnetic",1,250,290]
[3,null,"","",{"$error":"#N/A"},null,null,null,null,null,null,null,null,"",null,null,null,null,null,null,null,null,null,null,null,null,null,null,null,null,null,null,null,null,null,null,null,null,null,null,null,null,"(1) 96\" T12, STD HO Lamps Mag-STD, 110 Watt Lamps","(2) 48\", T8,  High Output Ballast, 28 Watt Lamps","(2) 48\", T8, Std Ballast, 25 Watt Lamps","(2) 22\" T-5 14W Lamps (1) Prog Start or PRS Ballast, HLO (.95<BF<1.1)",null,null,null,null,null,null,"Mercury Vapor","400 Watt MV Lamp","Magnetic",1,400,455]
[4,null,"","",{"$error":"#N/A"},null,null,null,null,null,null,null,null,"",null,null,null,null,null,null,null,null,null,null,null,null,null,null,null,null,null,null,null,null,null,null,null,null,null,null,null,null,"(1) 108\" T12 F108, HO Lamps, 124 Watt Lamps","(2) 48\", T8, High Output Ballast, 25 Watt Lamps","(2) 48\", T8, Std Ballast, 28 Watt Lamps","(2) 22\" T-5 24W HO Lamps (1) Prog Start or PRS Ballast, HLO (.95<BF<1)",null,null,null,null,null,null,"Mercury Vapor","700 Watt MV Lamp","Magnetic",1,700,780]
[5,null,"","",{"$error":"#N/A"},null,null,null,null,null,null,null,null,"",null,null,null,null,null,null,null,null,null,null,null,null,null,null,null,null,null,null,null,null,null,null,null,null,null,null,null,null,"(1) 114\" T12 F117, HO Lamps, 132 Watt Lamps","(2) 48\", T8, High Output Ballast, 32 Watt Lamps","(2) 48\", T8, Std Ballast, 32 Watt Lamps","(2) 34\" T-5 21W Lamps (1) Prog.Start or PRS Ballast HLO (.95<BF<1.1)",null,null,null,null,null,null,"Mercury Vapor","1000 Watt MV Lamp","Magnetic",1,1000,1075]
[6,null,"","",{"$error":"#N/A"},null,null,null,null,null,null,null,null,"",null,null,null,null,null,null,null,null,null,null,null,null,null,null,null,null,null,null,null,null,null,null,null,null,null,null,null,null,"(2) 24\" T12, STD Lamps, 20 Watt Lamps","(2) 96\", T8, High Output Ballast, 57 Watt Lamps","(2) 96\", T8 Std Ballast, 57 Watt Lamps","(2) 34\" T-5 39W HO Lamps (1) Prog Start or PRS Ballast, HLO (.95<BF<1.1)",null,null,null,null,null,null,"Metal Halide","20 Watt MH Lamp, Electronic Ballast","Electronic",1,20,24]
[7,null,"","",{"$error":"#N/A"},null,null,null,null,null,null,null,null,"",null,null,null,null,null,null,null,null,null,null,null,null,null,null,null,null,null,null,null,null,null,null,null,null,null,null,null,null,"(2) 36\" T12, STD  Lamps Mag-STD, 30 Watt Lamps","(2) 96\", T8, High Output Ballast, 59 Watt Lamps","(2) 96\", T8 Std Ballast, 59 Watt Lamps","(2) 45.8\" T-5 28W Lamps (1) Prog Start or PRS Ballast, HLO (.95<BF<1.1)",null,null,null,null,null,null,"Metal Halide","22 Watt MH Lamp, Electronic Ballast","Electronic",1,22,26]
[8,null,"","",{"$error":"#N/A"},null,null,null,null,null,null,null,null,"",null,null,null,null,null,null,null,null,null,null,null,null,null,null,null,null,null,null,null,null,null,null,null,null,null,null,null,null,"(2) 40\" T12 F42, HO Lamps, 55 Watt Lamps","(2) 96\", T8, High Output Ballast, 86 Watt Lamps","(2) 96\", T8 Std Ballast, 86 Watt Lamps","(2) 45.8\" T-5 49W HO Lamps, (1) Prog Start or RS Ballast, HLO (.95<BF<1.1)",null,null,null,null,null,null,"Metal Halide","39 Watt MH Lamp, Electronic Ballast","Electronic",1,39,44]
[9,null,"","",{"$error":"#N/A"},null,null,null,null,null,null,null,null,"",null,null,null,null,null,null,null,null,null,null,null,null,null,null,null,null,null,null,null,null,null,null,null,null,null,null,null,null,"(2) 48\" T12, ES Lamp, Magnetic Ballast-STD, 34 Watt Lamps","(3) 24\", T8, High Output Ballast, 17 Watt Lamps","(3) 24\", T8, Std Elec Ballast, 17 Watt Lamps","(2) 45.8\" T-5 54W HO Lamps (1) Prog RS Ballast, HLO (.95<BF<1.1)",null,null,null,null,null,null,"Metal Halide","50 Watt MH Lamp, Electronic Ballast","Electronic",1,50,56]
[10,null,"","",{"$error":"#N/A"},null,null,null,null,null,null,null,null,"",null,null,null,null,null,null,null,null,null,null,null,null,null,null,null,null,null,null,null,null,null,null,null,null,null,null,null,null,"(2) 48\" T12, HO Lamps, 60 Watt Lamps","(3) 36\", T8, High Output Ballast, 25 Watt Lamps","(3) 36\", T8, Std Elec Ballast, 25 Watt Lamps","(2) 57.6\" T-5 35W Lamps (1) Prog Start or PRS Ballast, HLO (.95<BF<1.1)",null,null,null,null,null,null,"Metal Halide","70 Watt MH Lamp, Electronic Ballast","Electronic",1,70,78]
[11,null,"","",{"$error":"#N/A"},null,null,null,null,null,null,null,null,"",null,null,null,null,null,null,null,null,null,null,"2. Fixture Type",null,null,null,null,"3. Ballast Type",null,null,null,null,null,null,null,null,null,null,null,null,"(2) 48\" T12, STD Lamp, Magnetic Ballast-STD, 40 Watt Lamps","(3) 48\", T8,  High Output Ballast, 28 Watt Lamps","(3) 48\", T8, Std Ballast, 25 Watt Lamps","(2) 57.6\" T-5 80W HO Lamps (1) Prog Start or PRS Ballast, HLO (.95<BF<1.1)",null,null,null,null,null,null,"Metal Halide","100 Watt MH Lamp, Electronic Ballast","Electronic",1,100,109]
[12,null,"","",{"$error":"#N/A"},null,null,null,null,null,null,null,null,"",null,null,null,null,null,null,null,null,null,null,"RTFixturereplacingFixture","RTLampreplacingLamp","RTFixturetoRetrofitKit",null,null,"RTLEDR","RTRetrofitKitR",null,null,null,null,null,null,null,null,null,null,null,"(2) 72\" T12, HO Lamps, 85 Watt Lamps","(3) 48\", T8, High Output Ballast, 25 Watt Lamps","(3) 48\", T8, Std Ballast, 28 Watt Lamps","(3) 22\" T-5 14W Lamps (2) Prog Start or PRS Ballasts, HLO (.95<BF<1.1)",null,null,null,null,null,null,"Metal Halide","150 Watt MH Lamp, Electronic Ballast","Electronic",1,150,163]
[13,null,"","",{"$error":"#N/A"},null,null,null,null,null,null,null,null,"",null,null,null,null,null,null,null,null,null,null,"LED","LED","Retrofit Kit",null,null,"Flood and Spot LEDs Over 20W","LED Retrofit Kit",null,null,null,null,null,null,null,null,null,null,null,"(2) 96\" T12, ES Lamps Mag-STD, 60 Watt Lamps","(3) 48\", T8, High Output Ballast, 32 Watt Lamps","(3) 48\", T8, Std Ballast, 32 Watt Lamps","(3) 22\" T-5 24W HO Lamps (2) Prog Start or PRS Ballasts, HLO (.95<BF<1.1)",null,null,null,null,null,null,"Metal Halide","175 Watt MH Lamp, Electronic Ballast","Electronic",1,175,191]
[14,null,"","",{"$error":"#N/A"},null,null,null,null,null,null,null,null,"",null,null,null,null,null,null,null,null,null,null,null,null,null,null,null,"Downlight Can Fixture Over 20W",null,null,null,null,null,null,null,null,null,null,null,null,"(2) 96\" T12, STD Lamps Mag-STD, 75 Watt Lamps","(3) 96\", T8, High Output Ballast, 57 Watt Lamps","(3) 96\", T8 Std Ballast, 57 Watt Lamps","(3) 34\" T-5 21W Lamps (2) Prog Start or PRS Ballasts, HLO (.95<BF<1.1)",null,null,null,null,null,null,"Metal Halide","200 Watt MH Lamp, Electronic Ballast","Electronic",1,200,216]
[15,null,"","",{"$error":"#N/A"},null,null,null,null,null,null,null,null,"",null,null,null,null,null,null,null,null,null,null,null,null,null,null,null,"Parking Garage LEDs",null,null,null,null,null,null,null,null,null,null,null,null,"(2) 96\" T12, ES HO Lamps Mag-STD, 95 Watt Lamps","(4) 36\", T8, High Output Ballast, 25 Watt Lamps","(4) 36\", T8, Std Elec Ballast, 25 Watt Lamps","(3) 45.8\" T-5 54W HO Lamps, Prog RS (2) Ballast, HLO (.95<BF<1.1)",null,null,null,null,null,null,"Metal Halide","250 Watt MH Lamp, Electronic Ballast","Electronic",1,250,266]
["Subtotal Controls on LED Fixtures",null,null,null,null,null,null,null,null,null,null,null,{"$f":"IF(SUM(N128:N142)=0,\"\",SUM(N128:N142))","v":""},null,null,null,null,null,null,null,null,null,null,null,null,null,null,null,null,"High-Bay LEDs ",null,null,null,null,null,null,null,null,null,null,null,null,"(2) 96\" T12, STD HO Lamps Mag-STD, 110 Watt Lamps","(4) 48\", T8,  High Output Ballast, 28 Watt Lamps","(4) 48\", T8, Std Ballast, 25 Watt Lamps","(3) 57.6\" T-5 35W Lamps (2) Prog Start or PRS Ballasts, HLO (.95<BF<1.1)",null,null,null,null,null,null,"Metal Halide","320 Watt MH Lamp, Electronic Ballast","Electronic",1,320,341]
[null,null,null,null,null,null,null,null,null,null,null,null,null,null,null,null,null,null,null,null,null,null,null,null,null,null,null,null,null,"Low-Bay LEDs ",null,null,null,null,null,null,null,null,null,null,null,null,"(3) 36\" T12, STD  Lamps Mag-STD, 30 Watt Lamps","(4) 48\", T8, High Output Ballast, 25 Watt Lamps","(4) 48\", T8, Std Ballast, 28 Watt Lamps","(4) 22\" T-5 14W Lamps (2) Prog Start or PRS Ballasts, HLO (.95<BF<1.1)",null,null,null,null,null,null,"Metal Halide","350 Watt MH Lamp, Electronic Ballast","Electronic",1,350,371]
[null,null,null,null,null,null,null,null,null,null,null,null,null,null,null,null,null,null,null,null,null,null,null,null,null,null,null,null,null,"Indoor Wall-Mounted Area LEDs",null,null,null,null,null,null,null,null,null,null,null,null,"(3) 48\" T12, ES Lamp, Magnetic Ballast-STD, 34 Watt Lamps","(4) 48\", T8, High Output Ballast, 32 Watt Lamps","(4) 48\", T8, Std Ballast, 32 Watt Lamps","(4) 22\" T-5 24W HO Lamps (2) Prog Start or PRS Ballasts, HLO (.95<BF<1.1)",null,null,null,null,null,null,"Metal Halide","400 Watt MH Lamp, Electronic Ballast","Electronic",1,400,424]
["IMPORTANT NOTICE: Only qualified LED lighting is eligible for a rebate. No fluorescent replacements are eligible for rebates.",null,null,null,null,null,null,null,null,null,null,null,null,null,null,null,null,null,null,null,null,null,null,null,null,null,null,null,null,"Stairwell and Passageway LEDs",null,null,null,null,null,null,null,null,null,null,null,null,"(3) 48\" T12, STD Lamp, Magnetic Ballast-STD, 40 Watt Lamps","(4) 96\", T8, High Output Ballast, 57 Watt Lamps","(4) 96\", T8 Std Ballast, 25 Watt Lamps","(4) 34\" T-5 39W HO Lamps (2 )Prog.Start or PRS Ballasts, HLO (.95<BF<1.1)",null,null,null,null,null,null,"Metal Halide","450 Watt MH Lamp, Electronic Ballast","Electronic",1,450,465]
[null,null,null,null,null,null,null,null,null,null,null,null,null,null,null,null,null,null,null,null,null,null,null,null,null,null,null,null,null,"Bollards",null,null,null,null,null,null,null,null,null,null,null,null,"(3) 96\" T12, ES Lamps Mag-STD, 60 Watt Lamps","(4) 96\", T8, High Output Ballast, 59 Watt Lamps","(4) 96\", T8 Std Ballast, 57 Watt Lamps","(4) 34\" T-5 39W Lamps (2) Prog Start or PRS Ballasts, HLO (.95<BF<1.1)",null,null,null,null,null,null,"Metal Halide","32 Watt MH Lamp, Magnetic ballast","Magnetic",1,32,42]
["Lighting Scope of Work is REQUIRED for all lighting measures.",null,null,null,null,null,null,null,null,null,null,null,null,null,null,null,null,null,null,null,null,null,null,null,null,null,null,null,null,"Display Case LEDs",null,null,null,null,null,null,null,null,null,null,null,null,"(3) 96\" T12, ES HO Lamps Mag-STD, 95 Watt Lamps","(4) 96\", T8, High Output Ballast, 86 Watt Lamps","(4) 96\", T8 Std Ballast, 59 Watt Lamps","(4) 45.8\" T-5 28W Lamps (2) Prog Start or PRS Ballasts, HLO (.95<BF<1.1)",null,null,null,null,null,null,"Metal Halide","39 Watt MH Lamp, Magnetic ballast","Magnetic",1,39,56]
[null,null,null,null,null,null,null,null,null,null,null,null,null,null,null,null,null,null,null,null,null,null,null,null,null,null,null,null,null,"1x4 Luminaires",null,null,null,null,null,null,null,null,null,null,null,null,"(3) 96\" T12, STD HO Lamps Mag-STD, 110 Watt Lamps","(6) 48\", T8,  High Output Ballast, 28 Watt Lamps","(4) 96\", T8 Std Ballast, 86 Watt Lamps","(4) 45.8\" T-5 49W HO Lamps, (2) Prog Start or RS Ballast, HLO (.95<BF<1.1)",null,null,null,null,null,null,"Metal Halide","50 Watt MH Lamp, Magnetic ballast","Magnetic",1,50,67]
["In no case will the program pay a rebate for lamps and retrofit kits that have been installed in fixtures with cracked, broken or yellowed lenses.",null,null,null,null,null,null,null,null,null,null,null,null,null,null,null,null,null,null,null,null,null,null,null,null,null,null,null,null,"2x2 Luminaires",null,null,null,null,null,null,null,null,null,null,null,null,"(4) 24\" T12, STD Lamps, 20 Watt Lamps","(6) 48\", T8, High Output Ballast, 32 Watt Lamps","(6) 48\", T8, Std Ballast, 28 Watt Lamps","(4) 45.8\" T-5 54W HO Lamps, (2) Prog RS Ballast, HLO (.95<BF<1.1)",null,null,null,null,null,null,"Metal Halide","70 Watt MH Lamp, Magnetic ballast","Magnetic",1,70,94]
[null,null,null,null,null,null,null,null,null,null,null,null,null,null,null,null,null,null,null,null,null,null,null,null,null,null,null,null,null,"2x4 Luminaires",null,null,null,null,null,null,null,null,null,null,null,null,"(4) 36\" T12, STD  Lamps Mag-STD, 30 Watt Lamps","(6) 96\", T8, High Output Ballast, 57 Watt Lamps","(6) 48\", T8, Std Ballast, 32 Watt Lamps","(4) 45.8\" T-5 54W HO Lamps, (2) Prog RS Ballast, HLO (.95<BF<1.1), alt 1",null,null,null,null,null,null,"Metal Halide","100 Watt MH Lamp, Magnetic ballast","Magnetic",1,100,127]
[null,null,null,null,null,null,null,null,null,null,null,null,null,null,null,null,null,null,null,null,null,null,null,null,null,null,null,null,null,"1x8 Luminaires",null,null,null,null,null,null,null,null,null,null,null,null,"(4) 48\" T12, ES Lamp, Magnetic Ballast-STD, 34 Watt Lamps","(6) 96\", T8, High Output Ballast, 59 Watt Lamps","(6) 96\", T8 Std Ballast, 57 Watt Lamps","(5) 45.9\" T-5 54W Lamps (2) Prog.Start or PRS Ballasts, HLO (.95<BF<1.1)",null,null,null,null,null,null,"Metal Halide","125 Watt MH Lamp, Magnetic ballast","Magnetic",1,125,150]
[null,null,null,null,null,null,null,null,null,null,null,null,null,null,null,null,null,null,null,null,null,null,null,null,null,null,null,null,null,null,null,null,null,null,null,null,null,null,null,null,null,null,"(4) 48\" T12, STD Lamp, Magnetic Ballast-STD, 40 Watt Lamps","(6) 96\", T8, High Output Ballast, 86 Watt Lamps","(6) 96\", T8 Std Ballast, 59 Watt Lamps","(6) 45.8\" T-5 54W HO Lamps (3) Prog RS Ballast, HLO(.95<BF<1.1)",null,null,null,null,null,null,"Metal Halide","150 Watt MH Lamp, Magnetic Ballast","Magnetic",1,150,184]
[null,null,null,null,null,null,null,null,null,null,null,null,null,null,null,null,null,null,null,null,null,null,null,null,null,null,null,null,null,null,null,null,null,null,null,null,null,null,null,null,null,null,"(4) 96\" T12, ES Lamps Mag-STD, 60 Watt Lamps",null,"(6) 96\", T8 Std Ballast, 86 Watt Lamps","(6) 45.8\" T-5 54W HO Lamps (3) Prog RS Ballast, HLO(.95<BF<1.1), alt 1",null,null,null,null,null,null,"Metal Halide","175 Watt MH Lamp, Magnetic ballast","Magnetic",1,175,209]
[null,null,null,null,null,null,null,null,null,null,null,null,null,null,null,null,null,null,null,null,null,null,null,null,null,null,null,null,null,null,null,null,null,null,null,null,null,null,null,null,null,null,"(4) 96\" T12, ES HO Lamps Mag-STD, 95 Watt Lamps",null,null,"(6) 45.9\" T-5 49W HO Lamps, (3) Prog Start or RS Ballast, HLO (.95<BF<1.1)",null,null,null,null,null,null,"Metal Halide","200 Watt MH Lamp, Magnetic ballast","Magnetic",1,200,232]
[null,null,null,null,null,null,null,null,null,null,null,null,null,null,null,null,null,null,null,null,null,null,null,null,null,null,null,null,null,null,null,null,null,null,null,null,null,null,null,null,null,null,"(4) 96\" T12, STD HO Lamps Mag-STD, 110 Watt Lamps",null,null,"(8) 45.8\" T-5 49W HO Lamps, (4) Prog Start or RS Ballast, HLO(.95<BF<1.1)",null,null,null,null,null,null,"Metal Halide","250 Watt MH Lamp, Magnetic ballast","Magnetic",1,250,291]
[null,null,null,null,null,null,null,null,null,null,null,null,null,null,null,null,null,null,null,null,null,null,null,null,null,null,null,null,null,null,null,null,null,null,null,null,null,null,null,null,null,null,null,null,null,null,null,null,null,null,null,null,"Metal Halide","320 Watt MH Lamp, Magnetic ballast","Magnetic",1,320,367]
[null,null,null,null,null,null,null,null,null,null,null,null,null,null,null,null,null,null,null,null,null,null,null,null,null,null,null,null,null,null,null,null,null,null,null,null,null,null,null,null,null,null,null,null,null,null,null,null,null,null,null,null,"Metal Halide","350 Watt MH Lamp, Magnetic ballast","Magnetic",1,350,395]
[null,null,null,null,null,null,null,null,null,null,null,null,null,null,null,null,null,null,null,null,null,null,null,null,null,null,null,null,null,null,null,null,null,null,null,null,null,null,null,null,null,null,null,null,null,null,null,null,null,null,null,null,"Metal Halide","360 Watt MH Lamp, Magnetic ballast","Magnetic",1,360,418]
[null,null,null,null,null,null,null,null,null,null,null,null,null,null,null,null,null,null,null,null,null,null,null,null,null,null,null,null,null,null,null,null,null,null,null,null,null,null,null,null,null,null,null,null,null,null,null,null,null,null,null,null,"Metal Halide","400 Watt MH Lamp, Magnetic ballast","Magnetic",1,400,456]
[null,null,null,null,null,null,null,null,null,null,null,null,null,null,null,null,null,null,null,null,null,null,null,null,null,null,null,null,null,null,null,null,null,null,null,null,null,null,null,null,null,null,null,null,null,null,null,null,null,null,null,null,"Metal Halide","450 Watt MH Lamp, Magnetic ballast","Magnetic",1,450,507]
[null,null,null,null,null,null,null,null,null,null,null,null,null,null,null,null,null,null,null,null,null,null,null,null,null,null,null,null,null,null,null,null,null,null,null,null,null,null,null,null,null,null,null,null,null,null,null,null,null,null,null,null,"Metal Halide","750 Watt MH Lamp, Magnetic ballast","Magnetic",1,750,814]
[null,null,null,null,null,null,null,null,null,null,null,null,null,null,null,null,null,null,null,null,null,null,null,null,null,null,null,null,null,null,null,null,null,null,null,null,null,null,null,null,null,null,null,null,null,null,null,null,null,null,null,null,"Metal Halide","1000 Watt MH Lamp, Magnetic ballast","Magnetic",1,1000,1077]
[null,null,null,null,null,null,null,null,null,null,null,null,null,null,null,null,null,null,null,null,null,null,null,null,null,null,null,null,null,null,null,null,null,null,null,null,null,null,null,null,null,null,null,null,null,null,null,null,null,null,null,null,"Metal Halide","1500 Watt MH Lamp, Magnetic ballast","Magnetic",1,1500,1608]
[null,null,null,null,null,null,null,null,null,null,null,null,null,null,null,null,null,null,null,null,null,null,null,null,null,null,null,null,null,null,null,null,null,null,null,null,null,null,null,null,null,null,null,null,null,null,null,null,null,null,null,null,"T8","(1) 24\", T8, Std Elec Ballast, 17 Watt Lamps","Electronic Std",1,17,16]
[null,null,null,null,null,null,null,null,null,null,null,null,null,null,null,null,null,null,null,null,null,null,null,null,null,null,null,null,null,null,null,null,null,null,null,null,null,null,null,null,null,null,null,null,null,null,null,null,null,null,null,null,"T8","(1) 24\", T8, High Output Ballast, 17 Watt Lamps","Electronic HO",1,17,20]
[null,null,null,null,null,null,null,null,null,null,null,null,null,null,null,null,null,null,null,null,null,null,null,null,null,null,null,null,null,null,null,null,null,null,null,null,null,null,null,null,null,null,null,null,null,null,null,null,null,null,null,null,"T8","(1) 36\", T8, Std Elec Ballast, 25 Watt Lamps","Electronic Std",1,25,23]
[null,null,null,null,null,null,null,null,null,null,null,null,null,null,null,null,null,null,null,null,null,null,null,null,null,null,null,null,null,null,null,null,null,null,null,null,null,null,null,null,null,null,null,null,null,null,null,null,null,null,null,null,"T8","(1) 36\", T8, High Output Ballast, 25 Watt Lamps","Electronic HO",1,25,28]
[null,null,null,null,null,null,null,null,null,null,null,null,null,null,null,null,null,null,null,null,null,null,null,null,null,null,null,null,null,null,null,null,null,null,null,null,null,null,null,null,null,null,null,null,null,null,null,null,null,null,null,null,"T8","(1) 48\", T8, Std Ballast, 25 Watt Lamps","Electronic Std",1,25,23]
[null,null,null,null,null,null,null,null,null,null,null,null,null,null,null,null,null,null,null,null,null,null,null,null,null,null,null,null,null,null,null,null,null,null,null,null,null,null,null,null,null,null,null,null,null,null,null,null,null,null,null,null,"T8","(1) 48\", T8, High Output Ballast, 25 Watt Lamps","Electronic HO",1,25,28]
[null,null,null,null,null,null,null,null,null,null,null,null,null,null,null,null,null,null,null,null,null,null,null,null,null,null,null,null,null,null,null,null,null,null,null,null,null,null,null,null,null,null,null,null,null,null,null,null,null,null,null,null,"T8","(1) 48\", T8, Std Ballast, 28 Watt Lamps","Electronic Std",1,28,25]
[null,null,null,null,null,null,null,null,null,null,null,null,null,null,null,null,null,null,"2. Fixture Type",null,null,null,null,null,null,null,null,null,null,null,null,null,null,null,null,null,null,null,null,null,null,null,null,null,null,null,null,null,null,null,null,null,"T8","(1) 48\", T8,  High Output Ballast, 28 Watt Lamps","Electronic HO",1,28,32]
[null,null,null,null,null,null,null,null,null,null,null,null,null,null,null,null,null,null,null,"Retrofit Type","Fixture Type",null,null,null,null,null,null,null,null,null,null,null,null,null,null,null,null,null,null,null,null,null,null,null,null,null,null,null,null,null,null,null,"T8","(1) 48\", T8, Std Ballast, 32 Watt Lamps","Electronic Std",1,32,30]
[null,null,null,null,null,null,null,null,null,null,null,null,null,null,null,null,null,"CMeasureType",null,"LED","Controlled Fixture",null,null,null,null,null,null,null,null,null,null,null,null,null,null,null,null,null,null,null,null,null,null,null,null,null,null,null,null,null,null,null,"T8","(1) 48\", T8, High Output Ballast, 32 Watt Lamps","Electronic HO",1,32,36]
[null,null,null,null,null,null,null,null,null,null,null,null,null,null,null,null,null,"Exterior",null,"LED","Controlled Fixture",null,null,null,null,null,null,null,null,null,null,null,null,null,null,null,null,null,null,null,null,null,null,null,null,null,null,null,null,null,null,null,"T8","(1) 96\", T8 Std Ballast, 57 Watt Lamps","Electronic Std",1,57,52]
[null,null,null,null,null,null,null,null,null,null,null,null,null,null,null,null,null,"24 Hour/Garage/3-Shift",null,null,null,null,null,null,null,null,null,null,null,null,null,null,null,null,null,null,null,null,null,null,null,null,null,null,null,null,null,null,null,null,null,null,"T8","(1) 96\", T8, High Output Ballast, 57 Watt Lamps","Electronic HO",1,57,59]
[null,null,null,null,null,null,null,null,null,null,null,null,null,null,null,null,null,null,null,null,null,null,null,null,null,null,null,null,null,null,null,null,null,null,null,null,null,null,null,null,null,null,null,null,null,null,null,null,null,null,null,null,"T8","(1) 96\", T8 Std Ballast, 59 Watt Lamps","Electronic Std",1,59,55]
[null,null,null,null,null,null,null,null,null,null,null,null,null,null,null,null,null,null,null,null,null,null,null,null,null,null,null,null,null,null,null,null,null,null,null,null,null,null,null,null,null,null,null,null,null,null,null,null,null,null,null,null,"T8","(1) 96\", T8, High Output Ballast, 59 Watt Lamps","Electronic HO",1,59,62]
[null,null,null,null,null,null,null,null,null,null,null,null,null,null,null,null,null,null,null,null,null,null,null,null,null,null,null,null,null,null,null,null,null,null,null,null,null,null,null,null,null,null,null,null,null,null,null,null,null,null,null,null,"T8","(1) 96\", T8 Std Ballast, 86 Watt Lamps","Electronic Std",1,86,82]
[null,null,null,null,null,null,null,null,null,null,null,null,null,null,null,null,null,null,null,null,null,null,null,null,null,null,null,null,null,null,null,null,null,null,null,null,null,null,null,null,null,null,null,null,null,null,null,null,null,null,null,null,"T8","(1) 96\", T8, High Output Ballast, 86 Watt Lamps","Electronic HO",1,86,90]
[null,null,null,null,null,null,null,null,null,null,null,null,null,null,null,null,null,null,null,null,null,null,null,null,null,null,null,null,null,null,null,null,null,null,null,null,null,null,null,null,null,null,null,null,null,null,null,null,null,null,null,null,"T8","(2) 24\", T8, Std Elec Ballast, 17 Watt Lamps","Electronic Std",2,17,32]
[null,null,null,null,null,null,null,null,null,null,null,null,null,null,null,null,null,null,null,null,null,null,null,null,null,null,null,null,null,null,null,null,null,null,null,null,null,null,null,null,null,null,null,null,null,null,null,null,null,null,null,null,"T8","(2) 24\", T8, High Output Ballast, 17 Watt Lamps","Electronic HO",2,17,40]
[null,null,null,null,null,null,null,null,null,null,null,null,null,null,null,null,null,null,null,null,null,null,null,null,null,null,null,null,null,null,null,null,null,null,null,null,null,null,null,null,null,null,null,null,null,null,null,null,null,null,null,null,"T8","(2) 36\", T8, Std Elec Ballast, 25 Watt Lamps","Electronic Std",2,25,46]
[null,null,null,null,null,null,null,null,null,null,null,null,null,null,null,null,null,null,null,null,null,null,null,null,null,null,null,null,null,null,null,null,null,null,null,null,null,null,null,null,null,null,null,null,null,null,null,null,null,null,null,null,"T8","(2) 36\", T8, High Output Ballast, 25 Watt Lamps","Electronic HO",2,25,56]
[null,null,null,null,null,null,null,null,null,null,null,null,null,null,null,null,null,null,null,null,null,null,null,null,null,null,null,null,null,null,null,null,null,null,null,null,null,null,null,null,null,null,null,null,null,null,null,null,null,null,null,null,"T8","(2) 48\", T8, Std Ballast, 25 Watt Lamps","Electronic Std",2,25,46]
[null,null,null,null,null,null,null,null,null,null,null,null,null,null,null,null,null,null,null,null,null,null,null,null,null,null,null,null,null,null,null,null,null,null,null,null,null,null,null,null,null,null,null,null,null,null,null,null,null,null,null,null,"T8","(2) 48\", T8, High Output Ballast, 25 Watt Lamps","Electronic HO",2,25,56]
[null,null,null,null,null,null,null,null,null,null,null,null,null,null,null,null,null,null,null,null,null,null,null,null,null,null,null,null,null,null,null,null,null,null,null,null,null,null,null,null,null,null,null,null,null,null,null,null,null,null,null,null,"T8","(2) 48\", T8, Std Ballast, 28 Watt Lamps","Electronic Std",2,28,50]
[null,null,null,null,null,null,null,null,null,null,null,null,null,null,null,null,null,null,null,null,null,null,null,null,null,null,null,null,null,null,null,null,null,null,null,null,null,null,null,null,null,null,null,null,null,null,null,null,null,null,null,null,"T8","(2) 48\", T8,  High Output Ballast, 28 Watt Lamps","Electronic HO",2,28,64]
[null,null,null,null,null,null,null,null,null,null,null,null,null,null,null,null,null,null,null,null,null,null,null,null,null,null,null,null,null,null,null,null,null,null,null,null,null,null,null,null,null,null,null,null,null,null,null,null,null,null,null,null,"T8","(2) 48\", T8, Std Ballast, 32 Watt Lamps","Electronic Std",2,32,60]
[null,null,null,null,null,null,null,null,null,null,null,null,null,null,null,null,null,null,null,null,null,null,null,null,null,null,null,null,null,null,null,null,null,null,null,null,null,null,null,null,null,null,null,null,null,null,null,null,null,null,null,null,"T8","(2) 48\", T8, High Output Ballast, 32 Watt Lamps","Electronic HO",2,32,72]
[null,null,null,null,null,null,null,null,null,null,null,null,null,null,null,null,null,null,null,null,null,null,null,null,null,null,null,null,null,null,null,null,null,null,null,null,null,null,null,null,null,null,null,null,null,null,null,null,null,null,null,null,"T8","(2) 96\", T8 Std Ballast, 57 Watt Lamps","Electronic Std",2,57,100]
[null,null,null,null,null,null,null,null,null,null,null,null,null,null,null,null,null,null,null,null,null,null,null,null,null,null,null,null,null,null,null,null,null,null,null,null,null,null,null,null,null,null,null,null,null,null,null,null,null,null,null,null,"T8","(2) 96\", T8, High Output Ballast, 57 Watt Lamps","Electronic HO",2,57,105]
[null,null,null,null,null,null,null,null,null,null,null,null,null,null,null,null,null,null,null,null,null,null,null,null,null,null,null,null,null,null,null,null,null,null,null,null,null,null,null,null,null,null,null,null,null,null,null,null,null,null,null,null,"T8","(2) 96\", T8 Std Ballast, 59 Watt Lamps","Electronic Std",2,59,109]
[null,null,null,null,null,null,null,null,null,null,null,null,null,null,null,null,null,null,null,null,null,null,null,null,null,null,null,null,null,null,null,null,null,null,null,null,null,null,null,null,null,null,null,null,null,null,null,null,null,null,null,null,"T8","(2) 96\", T8, High Output Ballast, 59 Watt Lamps","Electronic HO",2,59,160]
[null,null,null,null,null,null,null,null,null,null,null,null,null,null,null,null,null,null,null,null,null,null,null,null,null,null,null,null,null,null,null,null,null,null,null,null,null,null,null,null,null,null,null,null,null,null,null,null,null,null,null,null,"T8","(2) 96\", T8 Std Ballast, 86 Watt Lamps","Electronic Std",2,86,164]
[null,null,null,null,null,null,null,null,null,null,null,null,null,null,null,null,null,null,null,null,null,null,null,null,null,null,null,null,null,null,null,null,null,null,null,null,null,null,null,null,null,null,null,null,null,null,null,null,null,null,null,null,"T8","(2) 96\", T8, High Output Ballast, 86 Watt Lamps","Electronic HO",2,86,180]
[null,null,null,null,null,null,null,null,null,null,null,null,null,null,null,null,null,null,null,null,null,null,null,null,null,null,null,null,null,null,null,null,null,null,null,null,null,null,null,null,null,null,null,null,null,null,null,null,null,null,null,null,"T8","(3) 24\", T8, Std Elec Ballast, 17 Watt Lamps","Electronic Std",3,17,48]
[null,null,null,null,null,null,null,null,null,null,null,null,null,null,null,null,null,null,null,null,null,null,null,null,null,null,null,null,null,null,null,null,null,null,null,null,null,null,null,null,null,null,null,null,null,null,null,null,null,null,null,null,"T8","(3) 24\", T8, High Output Ballast, 17 Watt Lamps","Electronic HO",3,17,60]
[null,null,null,null,null,null,null,null,null,null,null,null,null,null,null,null,null,null,null,null,null,null,null,null,null,null,null,null,null,null,null,null,null,null,null,null,null,null,null,null,null,null,null,null,null,null,null,null,null,null,null,null,"T8","(3) 36\", T8, Std Elec Ballast, 25 Watt Lamps","Electronic Std",3,25,69]
[null,null,null,null,null,null,null,null,null,null,null,null,null,null,null,null,null,null,null,null,null,null,null,null,null,null,null,null,null,null,null,null,null,null,null,null,null,null,null,null,null,null,null,null,null,null,null,null,null,null,null,null,"T8","(3) 36\", T8, High Output Ballast, 25 Watt Lamps","Electronic HO",3,25,84]
[null,null,null,null,null,null,null,null,null,null,null,null,null,null,null,null,null,null,null,null,null,null,null,null,null,null,null,null,null,null,null,null,null,null,null,null,null,null,null,null,null,null,null,null,null,null,null,null,null,null,null,null,"T8","(3) 48\", T8, Std Ballast, 25 Watt Lamps","Electronic Std",3,25,69]
[null,null,null,null,null,null,null,null,null,null,null,null,null,null,null,null,null,null,null,null,null,null,null,null,null,null,null,null,null,null,null,null,null,null,null,null,null,null,null,null,null,null,null,null,null,null,null,null,null,null,null,null,"T8","(3) 48\", T8, High Output Ballast, 25 Watt Lamps","Electronic HO",3,25,84]
[null,null,null,null,null,null,null,null,null,null,null,null,null,null,null,null,null,null,null,null,null,null,null,null,null,null,null,null,null,null,null,null,null,null,null,null,null,null,null,null,null,null,null,null,null,null,null,null,null,null,null,null,"T8","(3) 48\", T8, Std Ballast, 28 Watt Lamps","Electronic Std",3,28,75]
[null,null,null,null,null,null,null,null,null,null,null,null,null,null,null,null,null,null,null,null,null,null,null,null,null,null,null,null,null,null,null,null,null,null,null,null,null,null,null,null,null,null,null,null,null,null,null,null,null,null,null,null,"T8","(3) 48\", T8,  High Output Ballast, 28 Watt Lamps","Electronic HO",3,28,96]
[null,null,null,null,null,null,null,null,null,null,null,null,null,null,null,null,null,null,null,null,null,null,null,null,null,null,null,null,null,null,null,null,null,null,null,null,null,null,null,null,null,null,null,null,null,null,null,null,null,null,null,null,"T8","(3) 48\", T8, Std Ballast, 32 Watt Lamps","Electronic Std",3,32,90]
[null,null,null,null,null,null,null,null,null,null,null,null,null,null,null,null,null,null,null,null,null,null,null,null,null,null,null,null,null,null,null,null,null,null,null,null,null,null,null,null,null,null,null,null,null,null,null,null,null,null,null,null,"T8","(3) 48\", T8, High Output Ballast, 32 Watt Lamps","Electronic HO",3,32,108]
[null,null,null,null,null,null,null,null,null,null,null,null,null,null,null,null,null,null,null,null,null,null,null,null,null,null,null,null,null,null,null,null,null,null,null,null,null,null,null,null,null,null,null,null,null,null,null,null,null,null,null,null,"T8","(3) 96\", T8 Std Ballast, 57 Watt Lamps","Electronic Std",3,57,156]
[null,null,null,null,null,null,null,null,null,null,null,null,null,null,null,null,null,null,null,null,null,null,null,null,null,null,null,null,null,null,null,null,null,null,null,null,null,null,null,null,null,null,null,null,null,null,null,null,null,null,null,null,"T8","(3) 96\", T8, High Output Ballast, 57 Watt Lamps","Electronic HO",3,57,177]
[null,null,null,null,null,null,null,null,null,null,null,null,null,null,null,null,null,null,null,null,null,null,null,null,null,null,null,null,null,null,null,null,null,null,null,null,null,null,null,null,null,null,null,null,null,null,null,null,null,null,null,null,"T8","(3) 96\", T8 Std Ballast, 59 Watt Lamps","Electronic Std",3,59,165]
[null,null,null,null,null,null,null,null,null,null,null,null,null,null,null,null,null,null,null,null,null,null,null,null,null,null,null,null,null,null,null,null,null,null,null,null,null,null,null,null,null,null,null,null,null,null,null,null,null,null,null,null,"T8","(3) 96\", T8, High Output Ballast, 59 Watt Lamps","Electronic HO",3,59,186]
[null,null,null,null,null,null,null,null,null,null,null,null,null,null,null,null,null,null,null,null,null,null,null,null,null,null,null,null,null,null,null,null,null,null,null,null,null,null,null,null,null,null,null,null,null,null,null,null,null,null,null,null,"T8","(3) 96\", T8 Std Ballast, 86 Watt Lamps","Electronic Std",3,86,246]
[null,null,null,null,null,null,null,null,null,null,null,null,null,null,null,null,null,null,null,null,null,null,null,null,null,null,null,null,null,null,null,null,null,null,null,null,null,null,null,null,null,null,null,null,null,null,null,null,null,null,null,null,"T8","(3) 96\", T8, High Output Ballast, 86 Watt Lamps","Electronic HO",3,86,270]
[null,null,null,null,null,null,null,null,null,null,null,null,null,null,null,null,null,null,null,null,null,null,null,null,null,null,null,null,null,null,null,null,null,null,null,null,null,null,null,null,null,null,null,null,null,null,null,null,null,null,null,null,"T8","(4) 24\", T8, Std Elec Ballast, 17 Watt Lamps","Electronic Std",4,17,64]
[null,null,null,null,null,null,null,null,null,null,null,null,null,null,null,null,null,null,null,null,null,null,null,null,null,null,null,null,null,null,null,null,null,null,null,null,null,null,null,null,null,null,null,null,null,null,null,null,null,null,null,null,"T8","(4) 24\", T8, High Output Ballast, 17 Watt Lamps","Electronic HO",4,17,80]
[null,null,null,null,null,null,null,null,null,null,null,null,null,null,null,null,null,null,null,null,null,null,null,null,null,null,null,null,null,null,null,null,null,null,null,null,null,null,null,null,null,null,null,null,null,null,null,null,null,null,null,null,"T8","(4) 36\", T8, Std Elec Ballast, 25 Watt Lamps","Electronic Std",4,25,92]
[null,null,null,null,null,null,null,null,null,null,null,null,null,null,null,null,null,null,null,null,null,null,null,null,null,null,null,null,null,null,null,null,null,null,null,null,null,null,null,null,null,null,null,null,null,null,null,null,null,null,null,null,"T8","(4) 36\", T8, High Output Ballast, 25 Watt Lamps","Electronic HO",4,25,112]
[null,null,null,null,null,null,null,null,null,null,null,null,null,null,null,null,null,null,null,null,null,null,null,null,null,null,null,null,null,null,null,null,null,null,null,null,null,null,null,null,null,null,null,null,null,null,null,null,null,null,null,null,"T8","(4) 48\", T8, Std Ballast, 25 Watt Lamps","Electronic Std",4,25,138]
[null,null,null,null,null,null,null,null,null,null,null,null,null,null,null,null,null,null,null,null,null,null,null,null,null,null,null,null,null,null,null,null,null,null,null,null,null,null,null,null,null,null,null,null,null,null,null,null,null,null,null,null,"T8","(4) 48\", T8, High Output Ballast, 25 Watt Lamps","Electronic HO",4,25,112]
[null,null,null,null,null,null,null,null,null,null,null,null,null,null,null,null,null,null,null,null,null,null,null,null,null,null,null,null,null,null,null,null,null,null,null,null,null,null,null,null,null,null,null,null,null,null,null,null,null,null,null,null,"T8","(4) 48\", T8, Std Ballast, 28 Watt Lamps","Electronic Std",4,28,100]
[null,null,null,null,null,null,null,null,null,null,null,null,null,null,null,null,null,null,null,null,null,null,null,null,null,null,null,null,null,null,null,null,null,null,null,null,null,null,null,null,null,null,null,null,null,null,null,null,null,null,null,null,"T8","(4) 48\", T8,  High Output Ballast, 28 Watt Lamps","Electronic HO",4,28,128]
[null,null,null,null,null,null,null,null,null,null,null,null,null,null,null,null,null,null,null,null,null,null,null,null,null,null,null,null,null,null,null,null,null,null,null,null,null,null,null,null,null,null,null,null,null,null,null,null,null,null,null,null,"T8","(4) 48\", T8, Std Ballast, 32 Watt Lamps","Electronic Std",4,32,120]
[null,null,null,null,null,null,null,null,null,null,null,null,null,null,null,null,null,null,null,null,null,null,null,null,null,null,null,null,null,null,null,null,null,null,null,null,null,null,null,null,null,null,null,null,null,null,null,null,null,null,null,null,"T8","(4) 48\", T8, High Output Ballast, 32 Watt Lamps","Electronic HO",4,32,144]
[null,null,null,null,null,null,null,null,null,null,null,null,null,null,null,null,null,null,null,null,null,null,null,null,null,null,null,null,null,null,null,null,null,null,null,null,null,null,null,null,null,null,null,null,null,null,null,null,null,null,null,null,"T8","(4) 96\", T8 Std Ballast, 25 Watt Lamps","Electronic Std",4,25,138]
[null,null,null,null,null,null,null,null,null,null,null,null,null,null,null,null,null,null,null,null,null,null,null,null,null,null,null,null,null,null,null,null,null,null,null,null,null,null,null,null,null,null,null,null,null,null,null,null,null,null,null,null,"T8","(4) 96\", T8 Std Ballast, 57 Watt Lamps","Electronic Std",4,57,208]
[null,null,null,null,null,null,null,null,null,null,null,null,null,null,null,null,null,null,null,null,null,null,null,null,null,null,null,null,null,null,null,null,null,null,null,null,null,null,null,null,null,null,null,null,null,null,null,null,null,null,null,null,"T8","(4) 96\", T8, High Output Ballast, 57 Watt Lamps","Electronic HO",4,57,236]
[null,null,null,null,null,null,null,null,null,null,null,null,null,null,null,null,null,null,null,null,null,null,null,null,null,null,null,null,null,null,null,null,null,null,null,null,null,null,null,null,null,null,null,null,null,null,null,null,null,null,null,null,"T8","(4) 96\", T8 Std Ballast, 59 Watt Lamps","Electronic Std",4,59,220]
[null,null,null,null,null,null,null,null,null,null,null,null,null,null,null,null,null,null,null,null,null,null,null,null,null,null,null,null,null,null,null,null,null,null,null,null,null,null,null,null,null,null,null,null,null,null,null,null,null,null,null,null,"T8","(4) 96\", T8, High Output Ballast, 59 Watt Lamps","Electronic HO",4,59,248]
[null,null,null,null,null,null,null,null,null,null,null,null,null,null,null,null,null,null,null,null,null,null,null,null,null,null,null,null,null,null,null,null,null,null,null,null,null,null,null,null,null,null,null,null,null,null,null,null,null,null,null,null,"T8","(4) 96\", T8 Std Ballast, 86 Watt Lamps","Electronic Std",4,86,328]
[null,null,null,null,null,null,null,null,null,null,null,null,null,null,null,null,null,null,null,null,null,null,null,null,null,null,null,null,null,null,null,null,null,null,null,null,null,null,null,null,null,null,null,null,null,null,null,null,null,null,null,null,"T8","(4) 96\", T8, High Output Ballast, 86 Watt Lamps","Electronic HO",4,86,360]
[null,null,null,null,null,null,null,null,null,null,null,null,null,null,null,null,null,null,null,null,null,null,null,null,null,null,null,null,null,null,null,null,null,null,null,null,null,null,null,null,null,null,null,null,null,null,null,null,null,null,null,null,"T8","(6) 48\", T8, Std Ballast, 28 Watt Lamps","Electronic Std",6,28,150]
[null,null,null,null,null,null,null,null,null,null,null,null,null,null,null,null,null,null,null,null,null,null,null,null,null,null,null,null,null,null,null,null,null,null,null,null,null,null,null,null,null,null,null,null,null,null,null,null,null,null,null,null,"T8","(6) 48\", T8,  High Output Ballast, 28 Watt Lamps","Electronic HO",6,28,192]
[null,null,null,null,null,null,null,null,null,null,null,null,null,null,null,null,null,null,null,null,null,null,null,null,null,null,null,null,null,null,null,null,null,null,null,null,null,null,null,null,null,null,null,null,null,null,null,null,null,null,null,null,"T8","(6) 48\", T8, Std Ballast, 32 Watt Lamps","Electronic Std",6,32,180]
[null,null,null,null,null,null,null,null,null,null,null,null,null,null,null,null,null,null,null,null,null,null,null,null,null,null,null,null,null,null,null,null,null,null,null,null,null,null,null,null,null,null,null,null,null,null,null,null,null,null,null,null,"T8","(6) 48\", T8, High Output Ballast, 32 Watt Lamps","Electronic HO",6,32,216]
[null,null,null,null,null,null,null,null,null,null,null,null,null,null,null,null,null,null,null,null,null,null,null,null,null,null,null,null,null,null,null,null,null,null,null,null,null,null,null,null,null,null,null,null,null,null,null,null,null,null,null,null,"T8","(6) 96\", T8 Std Ballast, 57 Watt Lamps","Electronic Std",6,57,312]
[null,null,null,null,null,null,null,null,null,null,null,null,null,null,null,null,null,null,null,null,null,null,null,null,null,null,null,null,null,null,null,null,null,null,null,null,null,null,null,null,null,null,null,null,null,null,null,null,null,null,null,null,"T8","(6) 96\", T8, High Output Ballast, 57 Watt Lamps","Electronic HO",6,57,354]
[null,null,null,null,null,null,null,null,null,null,null,null,null,null,null,null,null,null,null,null,null,null,null,null,null,null,null,null,null,null,null,null,null,null,null,null,null,null,null,null,null,null,null,null,null,null,null,null,null,null,null,null,"T8","(6) 96\", T8 Std Ballast, 59 Watt Lamps","Electronic Std",6,59,330]
[null,null,null,null,null,null,null,null,null,null,null,null,null,null,null,null,null,null,null,null,null,null,null,null,null,null,null,null,null,null,null,null,null,null,null,null,null,null,null,null,null,null,null,null,null,null,null,null,null,null,null,null,"T8","(6) 96\", T8, High Output Ballast, 59 Watt Lamps","Electronic HO",6,59,372]
[null,null,null,null,null,null,null,null,null,null,null,null,null,null,null,null,null,null,null,null,null,null,null,null,null,null,null,null,null,null,null,null,null,null,null,null,null,null,null,null,null,null,null,null,null,null,null,null,null,null,null,null,"T8","(6) 96\", T8 Std Ballast, 86 Watt Lamps","Electronic Std",6,86,492]
[null,null,null,null,null,null,null,null,null,null,null,null,null,null,null,null,null,null,null,null,null,null,null,null,null,null,null,null,null,null,null,null,null,null,null,null,null,null,null,null,null,null,null,null,null,null,null,null,null,null,null,null,"T8","(6) 96\", T8, High Output Ballast, 86 Watt Lamps","Electronic HO",6,86,540]
[null,null,null,null,null,null,null,null,null,null,null,null,null,null,null,null,null,null,null,null,null,null,null,null,null,null,null,null,null,null,null,null,null,null,null,null,null,null,null,null,null,null,null,null,null,null,null,null,null,null,null,null,"FUT8","(1) U-Tube, T8 Standard ballast, 32 Watt Lamp","Electronic",1,32,30]
[null,null,null,null,null,null,null,null,null,null,null,null,null,null,null,null,null,null,null,null,null,null,null,null,null,null,null,null,null,null,null,null,null,null,null,null,null,null,null,null,null,null,null,null,null,null,null,null,null,null,null,null,"FUT8","(1) U-Tube, T8 High Output Ballast, 32 Watt Lamp","Electronic HO",1,32,36]
[null,null,null,null,null,null,null,null,null,null,null,null,null,null,null,null,null,null,null,null,null,null,null,null,null,null,null,null,null,null,null,null,null,null,null,null,null,null,null,null,null,null,null,null,null,null,null,null,null,null,null,null,"FUT8","(2) U-Tube, T8 Standard ballast, 32 Watt Lamp","Electronic",2,32,60]
[null,null,null,null,null,null,null,null,null,null,null,null,null,null,null,null,null,null,null,null,null,null,null,null,null,null,null,null,null,null,null,null,null,null,null,null,null,null,null,null,null,null,null,null,null,null,null,null,null,null,null,null,"FUT8","(2) U-Tube, T8 High Output Ballast, 32 Watt Lamp","Electronic HO",2,32,72]
[null,null,null,null,null,null,null,null,null,null,null,null,null,null,null,null,null,null,null,null,null,null,null,null,null,null,null,null,null,null,null,null,null,null,null,null,null,null,null,null,null,null,null,null,null,null,null,null,null,null,null,null,"T12","(1) 24\" T12, STD Lamps, 20 Watt Lamps","Magnetic",1,20,25]
[null,null,null,null,null,null,null,null,null,null,null,null,null,null,null,null,null,null,null,null,null,null,null,null,null,null,null,null,null,null,null,null,null,null,null,null,null,null,null,null,null,null,null,null,null,null,null,null,null,null,null,null,"T12","(1) 36\" T12, STD  Lamps Mag-STD, 30 Watt Lamps","Magnetic",1,30,38]
[null,null,null,null,null,null,null,null,null,null,null,null,null,null,null,null,null,null,null,null,null,null,null,null,null,null,null,null,null,null,null,null,null,null,null,null,null,null,null,null,null,null,null,null,null,null,null,null,null,null,null,null,"T12","(1) 40\" T12 F42, HO Lamps, 55 Watt Lamps","Magnetic",1,55,63]
[null,null,null,null,null,null,null,null,null,null,null,null,null,null,null,null,null,null,null,null,null,null,null,null,null,null,null,null,null,null,null,null,null,null,null,null,null,null,null,null,null,null,null,null,null,null,null,null,null,null,null,null,"T12","(1) 48\" T12, ES Lamp, Magnetic Ballast-STD, 34 Watt Lamps","Magnetic",1,34,42]
[null,null,null,null,null,null,null,null,null,null,null,null,null,null,null,null,null,null,null,null,null,null,null,null,null,null,null,null,null,null,null,null,null,null,null,null,null,null,null,null,null,null,null,null,null,null,null,null,null,null,null,null,"T12","(1) 48\" T12, STD Lamp, Magnetic Ballast-STD, 40 Watt Lamps","Magnetic",1,40,48]
[null,null,null,null,null,null,null,null,null,null,null,null,null,null,null,null,null,null,null,null,null,null,null,null,null,null,null,null,null,null,null,null,null,null,null,null,null,null,null,null,null,null,null,null,null,null,null,null,null,null,null,null,"T12","(1) 48\" T12, HO Lamps, 60 Watt Lamps","Magnetic",1,60,68]
[null,null,null,null,null,null,null,null,null,null,null,null,null,null,null,null,null,null,null,null,null,null,null,null,null,null,null,null,null,null,null,null,null,null,null,null,null,null,null,null,null,null,null,null,null,null,"(1) 96\" T12, STD HO Lamps Mag-STD, 110 Watt Lamps",null,null,null,null,null,"T12","(1) 72\" T12, HO Lamps, 85 Watt Lamps","Magnetic",1,85,102]
[null,null,null,null,null,null,null,null,null,null,null,null,null,null,null,null,null,null,null,null,null,null,null,null,null,null,null,null,null,null,null,null,null,null,null,null,null,null,null,null,null,null,null,null,null,null,null,null,null,null,null,null,"T12","(1) 96\" T12, ES Lamps Mag-STD, 60 Watt Lamps","Magnetic",1,60,75]
[null,null,null,null,null,null,null,null,null,null,null,null,null,null,null,null,null,null,null,null,null,null,null,null,null,null,null,null,null,null,null,null,null,null,null,null,null,null,null,null,null,null,null,null,null,null,null,null,null,null,null,null,"T12","(1) 96\" T12, STD Lamps Mag-STD, 75 Watt Lamps","Magnetic",1,75,82]
[null,null,null,null,null,null,null,null,null,null,null,null,null,null,null,null,null,null,null,null,null,null,null,null,null,null,null,null,null,null,null,null,null,null,null,null,null,null,null,null,null,null,null,null,null,null,null,null,null,null,null,null,"T12","(1) 96\" T12, ES HO Lamps Mag-STD, 95 Watt Lamps","Magnetic",1,95,120]
[null,null,null,null,null,null,null,null,null,null,null,null,null,null,null,null,null,null,null,null,null,null,null,null,null,null,null,null,null,null,null,null,null,null,null,null,null,null,null,null,null,null,null,null,null,null,null,null,null,null,null,null,"T12","(1) 96\" T12, STD HO Lamps Mag-STD, 110 Watt Lamps","Magnetic",1,110,138]
[null,null,null,null,null,null,null,null,null,null,null,null,null,null,null,null,null,null,null,null,null,null,null,null,null,null,null,null,null,null,null,null,null,null,null,null,null,null,null,null,null,null,null,null,null,null,null,null,null,null,null,null,"T12","(1) 108\" T12 F108, HO Lamps, 124 Watt Lamps","Magnetic",1,124,132]
[null,null,null,null,null,null,null,null,null,null,null,null,null,null,null,null,null,null,null,null,null,null,null,null,null,null,null,null,null,null,null,null,null,null,null,null,null,null,null,null,null,null,null,null,null,null,null,null,null,null,null,null,"T12","(1) 114\" T12 F117, HO Lamps, 132 Watt Lamps","Magnetic",1,132,140]
[null,null,null,null,null,null,null,null,null,null,null,null,null,null,null,null,null,null,null,null,null,null,null,null,null,null,null,null,null,null,null,null,null,null,null,null,null,null,null,null,null,null,null,null,null,null,null,null,null,null,null,null,"FUT12","(1) U-Tube, T12 STD Lamp, STD Mag Ballast, 34 Watt Lamps","Magnetic",1,34,42]
[null,null,null,null,null,null,null,null,null,null,null,null,null,null,null,null,null,null,null,null,null,null,null,null,null,null,null,null,null,null,null,null,null,null,null,null,null,null,null,null,null,null,null,null,null,null,null,null,null,null,null,null,"FUT12","(1) U-Tube, T12 STD Lamp, STD Mag Ballast, 40 Watt Lamps","Magnetic",1,40,48]
[null,null,null,null,null,null,null,null,null,null,null,null,null,null,null,null,null,null,null,null,null,null,null,null,null,null,null,null,null,null,null,null,null,null,null,null,null,null,null,null,null,null,null,null,null,null,null,null,null,null,null,null,"T12","(2) 24\" T12, STD Lamps, 20 Watt Lamps","Magnetic",2,20,50]
[null,null,null,null,null,null,null,null,null,null,null,null,null,null,null,null,null,null,null,null,null,null,null,null,null,null,null,null,null,null,null,null,null,null,null,null,null,null,null,null,null,null,null,null,null,null,null,null,null,null,null,null,"T12","(2) 36\" T12, STD  Lamps Mag-STD, 30 Watt Lamps","Magnetic",2,30,76]
[null,null,null,null,null,null,null,null,null,null,null,null,null,null,null,null,null,null,null,null,null,null,null,null,null,null,null,null,null,null,null,null,null,null,null,null,null,null,null,null,null,null,null,null,null,null,null,null,null,null,null,null,"T12","(2) 40\" T12 F42, HO Lamps, 55 Watt Lamps","Magnetic",1,55,126]
[null,null,null,null,null,null,null,null,null,null,null,null,null,null,null,null,null,null,null,null,null,null,null,null,null,null,null,null,null,null,null,null,null,null,null,null,null,null,null,null,null,null,null,null,null,null,null,null,null,null,null,null,"T12","(2) 48\" T12, ES Lamp, Magnetic Ballast-STD, 34 Watt Lamps","Magnetic",2,34,84]
[null,null,null,null,null,null,null,null,null,null,null,null,null,null,null,null,null,null,null,null,null,null,null,null,null,null,null,null,null,null,null,null,null,null,null,null,null,null,null,null,null,null,null,null,null,null,null,null,null,null,null,null,"T12","(2) 48\" T12, STD Lamp, Magnetic Ballast-STD, 40 Watt Lamps","Magnetic",2,40,96]
[null,null,null,null,null,null,null,null,null,null,null,null,null,null,null,null,null,null,null,null,null,null,null,null,null,null,null,null,null,null,null,null,null,null,null,null,null,null,null,null,null,null,null,null,null,null,null,null,null,null,null,null,"T12","(2) 48\" T12, HO Lamps, 60 Watt Lamps",null,2,60,136]
[null,null,null,null,null,null,null,null,null,null,null,null,null,null,null,null,null,null,null,null,null,null,null,null,null,null,null,null,null,null,null,null,null,null,null,null,null,null,null,null,null,null,null,null,null,null,null,null,null,null,null,null,"T12","(2) 72\" T12, HO Lamps, 85 Watt Lamps","Magnetic",2,85,204]
[null,null,null,null,null,null,null,null,null,null,null,null,null,null,null,null,null,null,null,null,null,null,null,null,null,null,null,null,null,null,null,null,null,null,null,null,null,null,null,null,null,null,null,null,null,null,null,null,null,null,null,null,"T12","(2) 96\" T12, ES Lamps Mag-STD, 60 Watt Lamps","Magnetic",2,60,150]
[null,null,null,null,null,null,null,null,null,null,null,null,null,null,null,null,null,null,null,null,null,null,null,null,null,null,null,null,null,null,null,null,null,null,null,null,null,null,null,null,null,null,null,null,null,null,null,null,null,null,null,null,"T12","(2) 96\" T12, STD Lamps Mag-STD, 75 Watt Lamps","Magnetic",1,75,194]
[null,null,null,null,null,null,null,null,null,null,null,null,null,null,null,null,null,null,null,null,null,null,null,null,null,null,null,null,null,null,null,null,null,null,null,null,null,null,null,null,null,null,null,null,null,null,null,null,null,null,null,null,"T12","(2) 96\" T12, ES HO Lamps Mag-STD, 95 Watt Lamps","Magnetic",2,95,240]
[null,null,null,null,null,null,null,null,null,null,null,null,null,null,null,null,null,null,null,null,null,null,null,null,null,null,null,null,null,null,null,null,null,null,null,null,null,null,null,null,null,null,null,null,null,null,null,null,null,null,null,null,"T12","(2) 96\" T12, STD HO Lamps Mag-STD, 110 Watt Lamps","Magnetic",2,110,276]
[null,null,null,null,null,null,null,null,null,null,null,null,null,null,null,null,null,null,null,null,null,null,null,null,null,null,null,null,null,null,null,null,null,null,null,null,null,null,null,null,null,null,null,null,null,null,null,null,null,null,null,null,"T12","(2) 108\" T12 F108, HO Lamps, 124 Watt Lamps","Magnetic",2,124,264]
[null,null,null,null,null,null,null,null,null,null,null,null,null,null,null,null,null,null,null,null,null,null,null,null,null,null,null,null,null,null,null,null,null,null,null,null,null,null,null,null,null,null,null,null,null,null,null,null,null,null,null,null,"T12","(2) 114\" T12 F117, HO Lamps, 132 Watt Lamps","Magnetic",2,132,280]
[null,null,null,null,null,null,null,null,null,null,null,null,null,null,null,null,null,null,null,null,null,null,null,null,null,null,null,null,null,null,null,null,null,null,null,null,null,null,null,null,null,null,null,null,null,null,null,null,null,null,null,null,"FUT12","(2) U-Tube, T12 STD Lamp, STD Mag Ballast, 34 Watt Lamps","Magnetic",2,34,84]
[null,null,null,null,null,null,null,null,null,null,null,null,null,null,null,null,null,null,null,null,null,null,null,null,null,null,null,null,null,null,null,null,null,null,null,null,null,null,null,null,null,null,null,null,null,null,null,null,null,null,null,null,"FUT12","(2) U-Tube, T12 STD Lamp, STD Mag Ballast, 40 Watt Lamps","Magnetic",2,40,96]
[null,null,null,null,null,null,null,null,null,null,null,null,null,null,null,null,null,null,null,null,null,null,null,null,null,null,null,null,null,null,null,null,null,null,null,null,null,null,null,null,null,null,null,null,null,null,null,null,null,null,null,null,"T12","(3) 24\" T12, STD Lamps, 20 Watt Lamps","Magnetic",3,20,75]
[null,null,null,null,null,null,null,null,null,null,null,null,null,null,null,null,null,null,null,null,null,null,null,null,null,null,null,null,null,null,null,null,null,null,null,null,null,null,null,null,null,null,null,null,null,null,null,null,null,null,null,null,"T12","(3) 36\" T12, STD  Lamps Mag-STD, 30 Watt Lamps","Magnetic",3,30,114]
[null,null,null,null,null,null,null,null,null,null,null,null,null,null,null,null,null,null,null,null,null,null,null,null,null,null,null,null,null,null,null,null,null,null,null,null,null,null,null,null,null,null,null,null,null,null,null,null,null,null,null,null,"T12","(3) 48\" T12, ES Lamp, Magnetic Ballast-STD, 34 Watt Lamps","Magnetic",3,34,126]
[null,null,null,null,null,null,null,null,null,null,null,null,null,null,null,null,null,null,null,null,null,null,null,null,null,null,null,null,null,null,null,null,null,null,null,null,null,null,null,null,null,null,null,null,null,null,null,null,null,null,null,null,"T12","(3) 48\" T12, STD Lamp, Magnetic Ballast-STD, 40 Watt Lamps","Magnetic",3,40,144]
[null,null,null,null,null,null,null,null,null,null,null,null,null,null,null,null,null,null,null,null,null,null,null,null,null,null,null,null,null,null,null,null,null,null,null,null,null,null,null,null,null,null,null,null,null,null,null,null,null,null,null,null,"T12","(3) 96\" T12, ES Lamps Mag-STD, 60 Watt Lamps","Magnetic",3,60,225]
[null,null,null,null,null,null,null,null,null,null,null,null,null,null,null,null,null,null,null,null,null,null,null,null,null,null,null,null,null,null,null,null,null,null,null,null,null,null,null,null,null,null,null,null,null,null,null,null,null,null,null,null,"T12","(3) 96\" T12, ES HO Lamps Mag-STD, 95 Watt Lamps","Magnetic",3,95,360]
[null,null,null,null,null,null,null,null,null,null,null,null,null,null,null,null,null,null,null,null,null,null,null,null,null,null,null,null,null,null,null,null,null,null,null,null,null,null,null,null,null,null,null,null,null,null,null,null,null,null,null,null,"T12","(3) 96\" T12, STD HO Lamps Mag-STD, 110 Watt Lamps","Magnetic",3,110,414]
[null,null,null,null,null,null,null,null,null,null,null,null,null,null,null,null,null,null,null,null,null,null,null,null,null,null,null,null,null,null,null,null,null,null,null,null,null,null,null,null,null,null,null,null,null,null,null,null,null,null,null,null,"T12","(4) 24\" T12, STD Lamps, 20 Watt Lamps","Magnetic",4,20,100]
[null,null,null,null,null,null,null,null,null,null,null,null,null,null,null,null,null,null,null,null,null,null,null,null,null,null,null,null,null,null,null,null,null,null,null,null,null,null,null,null,null,null,null,null,null,null,null,null,null,null,null,null,"T12","(4) 36\" T12, STD  Lamps Mag-STD, 30 Watt Lamps","Magnetic",4,30,152]
[null,null,null,null,null,null,null,null,null,null,null,null,null,null,null,null,null,null,null,null,null,null,null,null,null,null,null,null,null,null,null,null,null,null,null,null,null,null,null,null,null,null,null,null,null,null,null,null,null,null,null,null,"T12","(4) 48\" T12, ES Lamp, Magnetic Ballast-STD, 34 Watt Lamps","Magnetic",4,34,168]
[null,null,null,null,null,null,null,null,null,null,null,null,null,null,null,null,null,null,null,null,null,null,null,null,null,null,null,null,null,null,null,null,null,null,null,null,null,null,null,null,null,null,null,null,null,null,null,null,null,null,null,null,"T12","(4) 48\" T12, STD Lamp, Magnetic Ballast-STD, 40 Watt Lamps","Magnetic",4,40,192]
[null,null,null,null,null,null,null,null,null,null,null,null,null,null,null,null,null,null,null,null,null,null,null,null,null,null,null,null,null,null,null,null,null,null,null,null,null,null,null,null,null,null,null,null,null,null,null,null,null,null,null,null,"T12","(4) 96\" T12, ES Lamps Mag-STD, 60 Watt Lamps","Magnetic",4,60,300]
[null,null,null,null,null,null,null,null,null,null,null,null,null,null,null,null,null,null,null,null,null,null,null,null,null,null,null,null,null,null,null,null,null,null,null,null,null,null,null,null,null,null,null,null,null,null,null,null,null,null,null,null,"T12","(4) 96\" T12, ES HO Lamps Mag-STD, 95 Watt Lamps","Magnetic",4,95,480]
[null,null,null,null,null,null,null,null,null,null,null,null,null,null,null,null,null,null,null,null,null,null,null,null,null,null,null,null,null,null,null,null,null,null,null,null,null,null,null,null,null,null,null,null,null,null,null,null,null,null,null,null,"T12","(4) 96\" T12, STD HO Lamps Mag-STD, 110 Watt Lamps","PRS Elec",4,110,552]
[null,null,null,null,null,null,null,null,null,null,null,null,null,null,null,null,null,null,null,null,null,null,null,null,null,null,null,null,null,null,null,null,null,null,null,null,null,null,null,null,null,null,null,null,null,null,null,null,null,null,null,null,"T5","(1) 22\" T-5 14W Lamp (1) Prog Start or PRS Ballast, HLO (.95<BF<1.1)","PRS Elec",1,14,18]
[null,null,null,null,null,null,null,null,null,null,null,null,null,null,null,null,null,null,null,null,null,null,null,null,null,null,null,null,null,null,null,null,null,null,null,null,null,null,null,null,null,null,null,null,null,null,null,null,null,null,null,null,"T5","(1) 22\" T-5 24W HO Lamp (1) Prog Start or PRS Ballast, HLO (.95<BF<1)","PRS Elec",1,24,27]
[null,null,null,null,null,null,null,null,null,null,null,null,null,null,null,null,null,null,null,null,null,null,null,null,null,null,null,null,null,null,null,null,null,null,null,null,null,null,null,null,null,null,null,null,null,null,null,null,null,null,null,null,"T5","(1) 34\" T-5 21W Lamp (1) Prog Start or PRS Ballast, HLO (.95<BF<1.1)","PRS Elec",1,21,25]
[null,null,null,null,null,null,null,null,null,null,null,null,null,null,null,null,null,null,null,null,null,null,null,null,null,null,null,null,null,null,null,null,null,null,null,null,null,null,null,null,null,null,null,null,null,null,null,null,null,null,null,null,"T5","(1) 34\" T-5 39W HO Lamp (1) Prog Start or PRS Ballast, HLO (.95<BF<1.1)","PRS Elec",1,39,44]
[null,null,null,null,null,null,null,null,null,null,null,null,null,null,null,null,null,null,null,null,null,null,null,null,null,null,null,null,null,null,null,null,null,null,null,null,null,null,null,null,null,null,null,null,null,null,null,null,null,null,null,null,"T5","(1) 45.8\" T-5 28W Lamp (1) Prog Start or PRS Ballast, HLO (.95<BF<1.1)","PRS Elec",1,28,33]
[null,null,null,null,null,null,null,null,null,null,null,null,null,null,null,null,null,null,null,null,null,null,null,null,null,null,null,null,null,null,null,null,null,null,null,null,null,null,null,null,null,null,null,null,null,null,null,null,null,null,null,null,"T5","(1) 45.8\" T-5 54W HO Lamps (1) Prog RS Ballast, HLO(.95<BF<1.1)","PRS Elec",1,54,62]
[null,null,null,null,null,null,null,null,null,null,null,null,null,null,null,null,null,null,null,null,null,null,null,null,null,null,null,null,null,null,null,null,null,null,null,null,null,null,null,null,null,null,null,null,null,null,null,null,null,null,null,null,"T5","(1) 57.6\" T-5 35W Lamp (1) Prog Start or PRS Ballast, HLO (.95<BF<1.1)","PRS Elec",1,35,40]
[null,null,null,null,null,null,null,null,null,null,null,null,null,null,null,null,null,null,null,null,null,null,null,null,null,null,null,null,null,null,null,null,null,null,null,null,null,null,null,null,null,null,null,null,null,null,null,null,null,null,null,null,"T5","(1) 57.6\" T-5 80W HO Lamp (1) Prog Start or PRS Ballast, HLO (.95<BF<1.1)","PRS Elec",1,80,90]
[null,null,null,null,null,null,null,null,null,null,null,null,null,null,null,null,null,null,null,null,null,null,null,null,null,null,null,null,null,null,null,null,null,null,null,null,null,null,null,null,null,null,null,null,null,null,null,null,null,null,null,null,"T5","(2) 22\" T-5 14W Lamps (1) Prog Start or PRS Ballast, HLO (.95<BF<1.1)","PRS Elec",2,14,33]
[null,null,null,null,null,null,null,null,null,null,null,null,null,null,null,null,null,null,null,null,null,null,null,null,null,null,null,null,null,null,null,null,null,null,null,null,null,null,null,null,null,null,null,null,null,null,null,null,null,null,null,null,"T5","(2) 22\" T-5 24W HO Lamps (1) Prog Start or PRS Ballast, HLO (.95<BF<1)","PRS Elec",2,24,52]
[null,null,null,null,null,null,null,null,null,null,null,null,null,null,null,null,null,null,null,null,null,null,null,null,null,null,null,null,null,null,null,null,null,null,null,null,null,null,null,null,null,null,null,null,null,null,null,null,null,null,null,null,"T5","(2) 34\" T-5 21W Lamps (1) Prog.Start or PRS Ballast HLO (.95<BF<1.1)","PRS Elec",2,21,48]
[null,null,null,null,null,null,null,null,null,null,null,null,null,null,null,null,null,null,null,null,null,null,null,null,null,null,null,null,null,null,null,null,null,null,null,null,null,null,null,null,null,null,null,null,null,null,null,null,null,null,null,null,"T5","(2) 34\" T-5 39W HO Lamps (1) Prog Start or PRS Ballast, HLO (.95<BF<1.1)","PRS Elec",2,39,86]
[null,null,null,null,null,null,null,null,null,null,null,null,null,null,null,null,null,null,null,null,null,null,null,null,null,null,null,null,null,null,null,null,null,null,null,null,null,null,null,null,null,null,null,null,null,null,null,null,null,null,null,null,"T5","(2) 45.8\" T-5 28W Lamps (1) Prog Start or PRS Ballast, HLO (.95<BF<1.1)","PRS Elec",2,28,63]
[null,null,null,null,null,null,null,null,null,null,null,null,null,null,null,null,null,null,null,null,null,null,null,null,null,null,null,null,null,null,null,null,null,null,null,null,null,null,null,null,null,null,null,null,null,null,null,null,null,null,null,null,"T5","(2) 45.8\" T-5 49W HO Lamps, (1) Prog Start or RS Ballast, HLO (.95<BF<1.1)","PRS Elec",2,49,98]
[null,null,null,null,null,null,null,null,null,null,null,null,null,null,null,null,null,null,null,null,null,null,null,null,null,null,null,null,null,null,null,null,null,null,null,null,null,null,null,null,null,null,null,null,null,null,null,null,null,null,null,null,"T5","(2) 45.8\" T-5 54W HO Lamps (1) Prog RS Ballast, HLO (.95<BF<1.1)","PRS Elec",2,54,117]
[null,null,null,null,null,null,null,null,null,null,null,null,null,null,null,null,null,null,null,null,null,null,null,null,null,null,null,null,null,null,null,null,null,null,null,null,null,null,null,null,null,null,null,null,null,null,null,null,null,null,null,null,"T5","(2) 57.6\" T-5 35W Lamps (1) Prog Start or PRS Ballast, HLO (.95<BF<1.1)","PRS Elec",2,35,78]
[null,null,null,null,null,null,null,null,null,null,null,null,null,null,null,null,null,null,null,null,null,null,null,null,null,null,null,null,null,null,null,null,null,null,null,null,null,null,null,null,null,null,null,null,null,null,null,null,null,null,null,null,"T5","(2) 57.6\" T-5 80W HO Lamps (1) Prog Start or PRS Ballast, HLO (.95<BF<1.1)","PRS Elec",2,80,180]
[null,null,null,null,null,null,null,null,null,null,null,null,null,null,null,null,null,null,null,null,null,null,null,null,null,null,null,null,null,null,null,null,null,null,null,null,null,null,null,null,null,null,null,null,null,null,null,null,null,null,null,null,"T5","(3) 22\" T-5 14W Lamps (2) Prog Start or PRS Ballasts, HLO (.95<BF<1.1)","PRS Elec",3,14,51]
[null,null,null,null,null,null,null,null,null,null,null,null,null,null,null,null,null,null,null,null,null,null,null,null,null,null,null,null,null,null,null,null,null,null,null,null,null,null,null,null,null,null,null,null,null,null,null,null,null,null,null,null,"T5","(3) 22\" T-5 24W HO Lamps (2) Prog Start or PRS Ballasts, HLO (.95<BF<1.1)","PRS Elec",3,24,79]
[null,null,null,null,null,null,null,null,null,null,null,null,null,null,null,null,null,null,null,null,null,null,null,null,null,null,null,null,null,null,null,null,null,null,null,null,null,null,null,null,null,null,null,null,null,null,null,null,null,null,null,null,"T5","(3) 34\" T-5 21W Lamps (2) Prog Start or PRS Ballasts, HLO (.95<BF<1.1)","PRS Elec",3,21,73]
[null,null,null,null,null,null,null,null,null,null,null,null,null,null,null,null,null,null,null,null,null,null,null,null,null,null,null,null,null,null,null,null,null,null,null,null,null,null,null,null,null,null,null,null,null,null,null,null,null,null,null,null,"T5","(3) 34\" T-5 39W HO Lamps (2) Prog Start or PRS Ballasts, HLO (.95<BF<1.1)","PRS Elec",3,39,130]
[null,null,null,null,null,null,null,null,null,null,null,null,null,null,null,null,null,null,null,null,null,null,null,null,null,null,null,null,null,null,null,null,null,null,null,null,null,null,null,null,null,null,null,null,null,null,null,null,null,null,null,null,"T5","(3) 45.8\" T-5 28W Lamps (2) Prog Start or PRS Ballasts, HLO(.95<BF<1.1)","PRS Elec",3,28,96]
[null,null,null,null,null,null,null,null,null,null,null,null,null,null,null,null,null,null,null,null,null,null,null,null,null,null,null,null,null,null,null,null,null,null,null,null,null,null,null,null,null,null,null,null,null,null,null,null,null,null,null,null,"T5","(3) 45.8\" T-5 49W HO Lamps, (1) Prog Start or RS Ballast, HLO (.95<BF<1.1)","PRS Elec",3,49,147]
[null,null,null,null,null,null,null,null,null,null,null,null,null,null,null,null,null,null,null,null,null,null,null,null,null,null,null,null,null,null,null,null,null,null,null,null,null,null,null,null,null,null,null,null,null,null,null,null,null,null,null,null,"T5","(3) 45.8\" T-5 54W HO Lamps, Prog RS (2) Ballast, HLO (.95<BF<1.1)","PRS Elec",3,54,179]
[null,null,null,null,null,null,null,null,null,null,null,null,null,null,null,null,null,null,null,null,null,null,null,null,null,null,null,null,null,null,null,null,null,null,null,null,null,null,null,null,null,null,null,null,null,null,null,null,null,null,null,null,"T5","(3) 57.6\" T-5 35W Lamps (2) Prog Start or PRS Ballasts, HLO (.95<BF<1.1)","PRS Elec",3,35,118]
[null,null,null,null,null,null,null,null,null,null,null,null,null,null,null,null,null,null,null,null,null,null,null,null,null,null,null,null,null,null,null,null,null,null,null,null,null,null,null,null,null,null,null,null,null,null,null,null,null,null,null,null,"T5","(4) 22\" T-5 14W Lamps (2) Prog Start or PRS Ballasts, HLO (.95<BF<1.1)","PRS Elec",4,14,66]
[null,null,null,null,null,null,null,null,null,null,null,null,null,null,null,null,null,null,null,null,null,null,null,null,null,null,null,null,null,null,null,null,null,null,null,null,null,null,null,null,null,null,null,null,null,null,null,null,null,null,null,null,"T5","(4) 22\" T-5 24W HO Lamps (2) Prog Start or PRS Ballasts, HLO (.95<BF<1.1)","PRS Elec",4,24,104]
[null,null,null,null,null,null,null,null,null,null,null,null,null,null,null,null,null,null,null,null,null,null,null,null,null,null,null,null,null,null,null,null,null,null,null,null,null,null,null,null,null,null,null,null,null,null,null,null,null,null,null,null,"T5","(4) 34\" T-5 39W HO Lamps (2 )Prog.Start or PRS Ballasts, HLO (.95<BF<1.1)","PRS Elec",4,39,172]
[null,null,null,null,null,null,null,null,null,null,null,null,null,null,null,null,null,null,null,null,null,null,null,null,null,null,null,null,null,null,null,null,null,null,null,null,null,null,null,null,null,null,null,null,null,null,null,null,null,null,null,null,"T5","(4) 34\" T-5 39W Lamps (2) Prog Start or PRS Ballasts, HLO (.95<BF<1.1)","PRS Elec",4,21,96]
[null,null,null,null,null,null,null,null,null,null,null,null,null,null,null,null,null,null,null,null,null,null,null,null,null,null,null,null,null,null,null,null,null,null,null,null,null,null,null,null,null,null,null,null,null,null,null,null,null,null,null,null,"T5","(4) 45.8\" T-5 28W Lamps (2) Prog Start or PRS Ballasts, HLO (.95<BF<1.1)","PRS Elec",4,28,126]
[null,null,null,null,null,null,null,null,null,null,null,null,null,null,null,null,null,null,null,null,null,null,null,null,null,null,null,null,null,null,null,null,null,null,null,null,null,null,null,null,null,null,null,null,null,null,null,null,null,null,null,null,"T5","(4) 45.8\" T-5 49W HO Lamps, (2) Prog Start or RS Ballast, HLO (.95<BF<1.1)","PRS Elec",4,49,196]
[null,null,null,null,null,null,null,null,null,null,null,null,null,null,null,null,null,null,null,null,null,null,null,null,null,null,null,null,null,null,null,null,null,null,null,null,null,null,null,null,null,null,null,null,null,null,null,null,null,null,null,null,"T5","(4) 45.8\" T-5 54W HO Lamps, (2) Prog RS Ballast, HLO (.95<BF<1.1)","PRS Elec",4,54,234]
[null,null,null,null,null,null,null,null,null,null,null,null,null,null,null,null,null,null,null,null,null,null,null,null,null,null,null,null,null,null,null,null,null,null,null,null,null,null,null,null,null,null,null,null,null,null,null,null,null,null,null,null,"T5","(4) 45.8\" T-5 54W HO Lamps, (2) Prog RS Ballast, HLO (.95<BF<1.1), alt 1","PRS Elec",4,54,220]
[null,null,null,null,null,null,null,null,null,null,null,null,null,null,null,null,null,null,null,null,null,null,null,null,null,null,null,null,null,null,null,null,null,null,null,null,null,null,null,null,null,null,null,null,null,null,null,null,null,null,null,null,"T5","(5) 45.9\" T-5 54W Lamps (2) Prog.Start or PRS Ballasts, HLO (.95<BF<1.1)","PRS Elec",5,54,296]
[null,null,null,null,null,null,null,null,null,null,null,null,null,null,null,null,null,null,null,null,null,null,null,null,null,null,null,null,null,null,null,null,null,null,null,null,null,null,null,null,null,null,null,null,null,null,null,null,null,null,null,null,"T5","(6) 45.8\" T-5 54W HO Lamps (3) Prog RS Ballast, HLO(.95<BF<1.1)","PRS Elec",6,54,351]
[null,null,null,null,null,null,null,null,null,null,null,null,null,null,null,null,null,null,null,null,null,null,null,null,null,null,null,null,null,null,null,null,null,null,null,null,null,null,null,null,null,null,null,null,null,null,null,null,null,null,null,null,"T5","(6) 45.8\" T-5 54W HO Lamps (3) Prog RS Ballast, HLO(.95<BF<1.1), alt 1","PRS Elec",6,54,354]
[null,null,null,null,null,null,null,null,null,null,null,null,null,null,null,null,null,null,null,null,null,null,null,null,null,null,null,null,null,null,null,null,null,null,null,null,null,null,null,null,null,null,null,null,null,null,null,null,null,null,null,null,"T5","(6) 45.9\" T-5 49W HO Lamps, (3) Prog Start or RS Ballast, HLO (.95<BF<1.1)","PRS Elec",6,49,294]
[null,null,null,null,null,null,null,null,null,null,null,null,null,null,null,null,null,null,null,null,null,null,null,null,null,null,null,null,null,null,null,null,null,null,null,null,null,null,null,null,null,null,null,null,null,null,null,null,null,null,null,null,"T5","(8) 45.8\" T-5 49W HO Lamps, (4) Prog Start or RS Ballast, HLO(.95<BF<1.1)","PRS Elec",8,49,392]
[null,null,null,null,null,null,null,null,null,null,null,null,null,null,null,null,null,null,null,null,null,null,null,null,null,null,null,null,null,null,null,null,null,null,null,null,null,null,null,null,null,null,null,null,null,null,null,null,null,null,null,null,"T5","(10) 45.8\" T-5 54W HO Lamps (5) Prog RS Ballast, HLO (.95<BF<1.1)","PRS Elec",10,54,585]
[null,null,null,null,null,null,null,null,null,null,null,null,null,null,null,null,null,null,null,null,null,null,null,null,null,null,null,null,null,null,null,null,null,null,null,null,null,null,null,null,null,null,null,null,null,null,null,null,null,null,null,null,"T5","(12) 45.8\" T-5 54W HO Lamps (6) Prog RS Ballast, HLO (.95<BF<1.1)",null,12,54,702]

{"sheet":"HVAC","index":7,"n_rows":151,"n_cols":50,"rows_kept":151,"cut":false,"hidden":false,"merged":[[2,0,2,8],[90,0,90,8],[89,0,89,7],[84,1,84,2],[85,1,85,2],[86,1,86,2],[87,1,87,2],[88,1,88,2],[88,3,88,4],[88,5,88,6],[86,5,86,6],[87,5,87,6],[86,3,86,4],[87,3,87,4],[77,0,77,8],[78,5,78,6],[79,5,79,6],[80,5,80,6],[81,5,81,6],[82,5,82,6],[83,5,83,6],[84,5,84,6],[85,5,85,6],[78,3,78,4],[79,3,79,4],[80,3,80,4],[81,3,81,4],[82,3,82,4],[83,3,83,4],[84,3,84,4],[85,3,85,4],[78,1,78,2],[79,1,79,2],[80,1,80,2],[81,1,81,2],[82,1,82,2],[83,1,83,2],[68,1,68,8],[69,0,69,8],[38,11,40,11],[40,12,40,14],[32,8,33,8],[39,12,39,14],[38,12,38,14],[30,17,31,17],[30,16,31,16],[34,12,34,14],[35,12,35,14],[38,16,40,16],[38,17,40,17],[35,17,37,17],[36,12,36,14],[32,17,33,17],[33,12,33,14],[35,16,37,16],[55,4,55,5],[51,4,51,5],[55,6,55,7],[45,6,45,7],[46,4,46,5],[46,6,46,7],[20,16,29,16],[20,12,20,14],[23,12,23,14],[24,12,24,14],[30,12,30,14],[21,12,21,14],[22,12,22,14],[34,11,37,11],[31,12,31,14],[32,12,32,14],[37,12,37,14],[30,11,31,11],[20,11,24,11],[26,12,26,14],[27,12,27,14],[25,12,25,14],[28,12,28,14],[29,12,29,14],[25,11,29,11],[4,0,12,2],[0,6,0,8],[0,1,0,5],[3,12,3,14],[4,11,12,11],[4,12,4,14],[4,16,12,16],[3,0,3,2],[5,6,6,6],[9,3,10,5],[9,12,10,14],[9,15,10,15],[11,12,12,14],[11,15,12,15],[1,1,1,6],[4,3,4,5],[1,7,1,8],[4,7,12,7],[4,8,12,8],[3,3,3,5],[5,9,6,9],[7,9,8,9],[9,9,10,9],[11,9,12,9],[4,17,12,17],[5,12,6,14],[5,15,6,15],[7,12,8,14],[7,15,8,15],[30,7,31,7],[7,6,8,6],[9,6,10,6],[11,6,12,6],[18,15,19,15],[16,6,17,6],[18,9,19,9],[20,17,29,17],[13,11,19,11],[13,12,13,14],[13,16,19,16],[13,17,19,17],[14,12,15,14],[14,15,15,15],[16,12,17,14],[16,15,17,15],[18,12,19,14],[20,8,29,8],[30,8,31,8],[70,0,70,8],[51,6,51,7],[73,4,73,5],[71,2,71,3],[72,2,72,3],[73,2,73,3],[92,0,92,6],[57,0,61,8],[62,0,62,8],[63,1,63,8],[64,1,64,8],[65,1,65,8],[66,1,66,8],[67,1,67,8],[71,4,71,5],[92,7,92,8],[74,4,74,5],[72,4,72,5],[56,0,56,7],[74,2,74,3],[71,0,71,1],[75,0,75,7],[72,0,72,1],[73,0,73,1],[30,0,31,2],[31,3,31,5],[26,3,26,5],[30,3,30,5],[48,4,48,5],[48,6,48,7],[52,6,52,7],[50,6,50,7],[50,4,50,5],[38,0,40,2],[36,3,36,5],[20,7,29,7],[28,3,28,5],[22,3,22,5],[33,3,33,5],[27,3,27,5],[20,3,20,5],[24,3,24,5],[43,6,43,7],[43,4,43,5],[41,6,41,7],[41,4,41,5],[40,3,40,5],[74,0,74,1],[33,0,33,2],[32,0,32,2],[52,4,52,5],[14,9,15,9],[16,9,17,9],[21,3,21,5],[16,3,17,5],[25,0,29,2],[20,0,24,2],[13,0,19,2],[18,3,19,5],[14,3,15,5],[34,0,37,2],[34,3,34,5],[35,3,35,5],[37,3,37,5],[18,6,19,6],[35,8,37,8],[42,4,42,5],[42,6,42,7],[35,7,37,7],[38,8,40,8],[38,7,40,7],[5,3,6,5],[13,7,19,7],[13,8,19,8],[14,6,15,6],[13,3,13,5],[11,3,12,5],[7,3,8,5],[53,6,53,7],[54,4,54,5],[54,6,54,7],[29,3,29,5],[25,3,25,5],[23,3,23,5],[49,6,49,7],[44,4,44,5],[44,6,44,7],[45,4,45,5],[47,4,47,5],[47,6,47,7],[32,3,32,5],[53,4,53,5],[39,3,39,5],[38,3,38,5],[49,4,49,5]]}
[null,"HVAC INCENTIVES",null,null,null,null,"See spec sheets at the bottom of the page!",null,null,null,null,"USE THIS SECTION TO REPLACE THE TABLE IN THE SPECS WORKSHEET"]
["Applicant: fill in gray fields at bottom","See instructions to complete this worksheet at the bottom of the page"]
["HVAC Units"]
["Equipment Type",null,null,"Size Category",null,null,"Qualifying Efficiency*","Incentive \n(per ton)","Efficiency Bonus","New Qualifying Efficiency*",null,"Equipment Type","Size Category",null,null,"Qualifying Efficiency*","Incentive \n(per ton)","Efficiency Bonus"]
["Unitary and Split Air Conditioning Systems",null,null,"< 65,000 Btu/h (5.4 tons)",null,null,"15.0 SEER",25,15,"15.0 SEER",null,"Unitary and Split Air Conditioning Systems","< 65,000 Btu/h (5.4 tons)",null,null,{"$f":"J5","v":"15.0 SEER"},25,15]
[null,null,null,"≥ 65,000 Btu/h and \n< 135,000 Btu/h (5.4-11.25 tons)",null,null,"13.7 IEER**",null,null,"11.8 EER**",null,null,"≥ 65,000 Btu/h and \n< 135,000 Btu/h (5.4-11.25 tons)",null,null,"13.7 IEER**"]
[]
[null,null,null,"≥ 135,000 Btu/h and < 240,000 Btu/h (11.25-20 tons)",null,null,"13.3 IEER**",null,null,"11.6 EER**",null,null,"≥ 135,000 Btu/h and < 240,000 Btu/h (11.25-20 tons)",null,null,"13.3 IEER**"]
[]
[null,null,null,"≥ 240,000 Btu/h and < 760,000 Btu/h (20-63 Tons)",null,null,"12.4 IEER**",null,null,"10.5 EER**",null,null,"≥ 240,000 Btu/h and < 760,000 Btu/h (20-63 Tons)",null,null,"12.4 IEER**"]
[]
[null,null,null,"≥ 760,000 Btu/h (> 63 tons)",null,null,"12.0 IEER**",null,null,"10.2 EER**",null,null,"≥ 760,000 Btu/h (> 63 tons)",null,null,"12.0 IEER**"]
[]
["Air Source Heat Pumps",null,null,"< 65,000 Btu/h (5.4 tons)",null,null,"15 SEER and 8.6 HSPF",40,15,"15 SEER and 8.6 HSPF",null,"Air Source Heat Pumps","< 65,000 Btu/h (5.4 tons)",null,null,"15 SEER and 8.6 HSPF",40,15]
[null,null,null,"≥ 65,000 Btu/h and \n< 135,000 Btu/h (5.4-11.25 tons)",null,null,"12.9 IEER** and 3.5 COP",null,null,"11.6 EER** and 3.5 COP",null,null,"≥ 65,000 Btu/h and \n< 135,000 Btu/h (5.4-11.25 tons)",null,null,"12.9 IEER** and 3.5 COP"]
[]
[null,null,null,"≥ 135,000 Btu/h and < 240,000 Btu/h (11.25-20 tons)",null,null,"12.4 IEER** and 3.4 COP",null,null,"11.1 EER** and 3.4 COP",null,null,"≥ 135,000 Btu/h and < 240,000 Btu/h (11.25-20 tons)",null,null,"12.4 IEER** and 3.4 COP"]
[]
[null,null,null,"≥ 240,000 Btu/h and < 760,000 Btu/h (20-63 Tons)",null,null,"11.4 IEER** and 3.4 COP",null,null,"10.0 EER** and 3.4 COP",null,null,"≥ 240,000 Btu/h and < 760,000 Btu/h (20-63 Tons)",null,null,"11.4 IEER** and 3.4 COP"]
[]
["Chillers: Water-Cooled, Centrifugal***",null,null,"≤ 150 tons",null,null,"0.495 kW/ton-IPLV",20,20,"0.495 kW/ton-IPLV",null,"Chillers: Water-Cooled, Centrifugal","≤ 150 tons",null,null,"0.495 kW/ton-IPLV",20,20]
[null,null,null,">150 tons and ≤ 300 tons",null,null,"0.495 kW/ton-IPLV",null,null,"0.495 kW/ton-IPLV",null,null,">150 tons and ≤ 300 tons",null,null,"0.495 kW/ton-IPLV"]
[null,null,null,"> 300 tons to ≤ 400 tons",null,null,"0.468 kW/ton-IPLV",null,null,"0.468 kW/ton-IPLV",null,null,"> 300 tons to ≤ 400 tons",null,null,"0.468 kW/ton-IPLV"]
[null,null,null,"> 400 tons to ≤ 600 tons",null,null,"0.450 kW/ton-IPLV",null,null,"0.450 kW/ton-IPLV",null,null,"> 400 tons to ≤ 600 tons",null,null,"0.450 kW/ton-IPLV"]
[null,null,null,"> 600",null,null,"0.450 kW/ton-IPLV",null,null,"0.450 kW/ton-IPLV",null,null,"> 600",null,null,"0.450 kW/ton-IPLV"]
["Chillers: Water Cooled Scroll, Helical-Rotary or Reciprocating***",null,null,"≤ 75 tons",null,null,"0.54 kW/ton-IPLV",null,null,"0.54 kW/ton-IPLV",null,"Chillers: Water Cooled Scroll, Helical-Rotary or Reciprocating***","≤ 75 tons",null,null,"0.54 kW/ton-IPLV"]
[null,null,null,"> 75 tons and ≤ 150 tons",null,null,"0.504 kW/ton-IPLV",null,null,"0.504 kW/ton-IPLV",null,null,"> 75 tons and ≤ 150 tons",null,null,"0.504 kW/ton-IPLV"]
[null,null,null,">150 tons and ≤ 300 tons",null,null,"0.486 kW/ton-IPLV",null,null,"0.486 kW/ton-IPLV",null,null,">150 tons and ≤ 300 tons",null,null,"0.486 kW/ton-IPLV"]
[null,null,null,"> 300 tons and ≤ 600 tons",null,null,"0.468 kW/ton-IPLV",null,null,"0.468 kW/ton-IPLV",null,null,"> 300 tons and ≤ 600 tons",null,null,"0.468 kW/ton-IPLV"]
[null,null,null,"> 600 tons",null,null,"0.540 kW/ton-IPLV",null,null,"0.540 kW/ton-IPLV",null,null,"> 600 tons",null,null,"0.540 kW/ton-IPLV"]
["Chillers: Air-Cooled",null,null,"≤ 150",null,null,"0.788 kW/ton-IPLV",40,20,"0.788 kW/ton-IPLV",null,"Chillers: Air-Cooled","≤ 150",null,null,"0.788 kW/ton-IPLV",40,20]
[null,null,null,"> 150",null,null,"0.771 kW/ton-IPLV",null,null,"0.771 kW/ton-IPLV",null,null,"> 150",null,null,"0.771 kW/ton-IPLV"]
["Packaged Terminal AC",null,null,"ALL",null,null,"14.5-(0.300 x Btu/h/1000) EER",50,0,"14.5-(0.300 x Btu/h/1000) EER",null,"Packaged Terminal AC","ALL",null,null,"14.5-(0.300 x Btu/h/1000) EER",50,0]
["Packaged Terminal HP",null,null,"ALL",null,null,"14.5-(0.300 x Btu/h/1000) EER",100,null,"14.5-(0.300 x Btu/h/1000) EER",null,"Packaged Terminal HP","ALL",null,null,"14.5-(0.300 x Btu/h/1000) EER",100]
["Variable Refrigerant Flow HP",null,null,"< 65,000 Btu/h (5.4 tons)",null,null,"13.9 SEER and 8.3 HSPF",40,20,"13.9 SEER and 8.3 HSPF",null,"Variable Refrigerant Flow HP","< 65,000 Btu/h (5.4 tons)",null,null,"13.9 SEER and 8.3 HSPF",40,20]
[null,null,null,"≥ 65,000 Btu/h and \n< 135,000 Btu/h (5.4-11.25 tons)",null,null,"15.4 IEER and 3.5 COP",40,25,"15.4 IEER and 3.5 COP",null,null,"≥ 65,000 Btu/h and \n< 135,000 Btu/h (5.4-11.25 tons)",null,null,"15.4 IEER and 3.5 COP",40,25]
[null,null,null,"≥ 135,000 Btu/h and < 240,000 Btu/h (11.25-20 tons)",null,null,"14.7 IEER and 3.4 COP",null,null,"14.7 IEER and 3.4 COP",null,null,"≥ 135,000 Btu/h and < 240,000 Btu/h (11.25-20 tons)",null,null,"14.7 IEER and 3.4 COP"]
[null,null,null,"≥ 240,000 Btu/h (20 Tons)",null,null,"13.4 IEER and 3.4 COP",null,null,"13.4 IEER and 3.4 COP",null,null,"≥ 240,000 Btu/h (20 Tons)",null,null,"13.4 IEER and 3.4 COP"]
["Computer Room Air Conditioners",null,null,"< 65,000 Btuh",null,null,"8.2 EER","$8.00/Mbtu","N/A",null,null,"Computer Room Air Conditioners","< 65,000 Btuh",null,null,"8.2 EER","$8.00/Mbtu","N/A"]
[null,null,null,"≥ 65,000 Btuh to < 240,000 Btuh",null,null,"7.5 EER ",null,null,null,null,null,"≥ 65,000 Btuh to < 240,000 Btuh",null,null,"7.5 EER "]
[null,null,null,"≥ 240,000",null,null,"7.2 EER",null,null,null,null,null,"≥ 240,000",null,null,"7.2 EER"]
["Equipment Model","Tons (use Btuh for CRAC)","Efficiency Rating","Quantity","Equipment Type",null,"Size Category",null,"Incentive"]
[null,null,null,null,null,null,null,null,{"$f":"IF(E43=\"\",\"\",IF(LEFT(E43,2)<>\"Ch\",B43*D43*IF(VLOOKUP(CONCATENATE(E43,G43),$V$106:$Y$139,2,FALSE)>C43,0,VLOOKUP(CONCATENATE(E43,G43),$V$106:$Y$139,3,FALSE)+(C43-(VLOOKUP(CONCATENATE(E43,G43),$V$106:$Y$139,2,FALSE)))*(VLOOKUP(CONCATENATE(E43,G43),$V$106:$Y$139,4,FALSE))),B43*D43*IF(VLOOKUP(CONCATENATE(E43,G43),$V$106:$Y$139,2,FALSE)<C43,0,VLOOKUP(CONCATENATE(E43,G43),$V$106:$Y$139,3,FALSE)+((VLOOKUP(CONCATENATE(E43,G43),$V$106:$Y$139,2,FALSE))-C43)*(VLOOKUP(CONCATENATE(E43,G43),$V$106:$Y$139,4,FALSE))/0.1)))","v":""}]
[null,null,null,null,null,null,null,null,""]
[null,null,null,null,null,null,null,null,""]
[null,null,null,null,null,null,null,null,""]
[null,null,null,null,null,null,null,null,""]
[null,null,null,null,null,null,null,null,""]
[null,null,null,null,null,null,null,null,""]
[null,null,null,null,null,null,null,null,""]
[null,null,null,null,null,null,null,null,""]
[null,null,null,null,null,null,null,null,""]
[null,null,null,null,null,null,null,null,""]
[null,null,null,null,null,null,null,null,""]
[null,null,null,null,null,null,null,null,""]
[null,null,null,null,null,null,null,null,""]
["HVAC Units Incentive",null,null,null,null,null,null,null,{"$f":"SUM(I43:I56)","v":0}]
["* Use SEER for Unitary and Split Units less than 5.4 tons and IEER for units larger than 5.4 tons; values available from CEE 2012 Tier 2; Use IEER for VRF Units; IPLV values based on ASHRAE 90.1-2016; see specifications page for complete list. Attach AHRI Rating Sheet. \n** Units with electric resistance heating must have IEER values 0.2 higher than the efficiencies listed.\n*** Unit efficiency for chillers should be provided in kW per ton – IPLV where IPLV = Integrated Part Load Value; values based on ASHRAE 90.1-2016. Attach manufacturer's rating sheet for credit."]
[]
[]
[]
[]
["INSTRUCTIONS TO COMPLETE THIS WORKSHEET:"]
["Equipment Model:","Enter the equipment model as shown on the invoice; provide the specification sheet(s) that accompany the model"]
["Tons:","Enter the equipment tonnage from the AHRI or manufacturer specification sheet"]
["Efficiency Rating:","Enter the equipment efficiency rating from the AHRI or manufacturer specification sheet; for chillers, kW/ton = 12/IPLV EER"]
["Quantity:","Enter the number of units that fit this size and efficiency rating"]
["Equipment Type:","Enter the equipment type from the drop-down menu"]
["Size Category:","Enter the equipment size from the drop-down menu"]
["Note: The reference standard in IECC 2018 is ASHRAE 90.1-2016"]
["Guest Room Energy Management System"]
["Type/ Description",null,"Incentive Unit",null,"Unit Size (tons)",null,"Quantity","Incentive/ Ton","Incentive"]
["Hotel Guest Room Occupancy Sensor ",null,"Per Ton Per Room",null,null,null,null,75,{"$f":"IF(G73*H73*E73=0,\"\",G73*H73*E73)","v":""}]
["Hotel Guest Room Occupancy Sensor ",null,"Per Ton Per Room",null,null,null,null,75,{"$f":"IF(G74*H74*E74=0,\"\",G74*H74*E74)","v":""}]
["Hotel Guest Room Occupancy Sensor ",null,"Per Ton Per Room",null,null,null,null,75,{"$f":"IF(G75*H75*E75=0,\"\",G75*H75*E75)","v":""}]
["GREM Incentive",null,null,null,null,null,null,null,{"$f":"IF(SUM(I73:I75)=0,\"\",SUM(I73:I75))","v":""}]
[]
["Variable Speed Drives on HVAC Motors (when adding VSDs where none existed before)",null,null,null,null,null,null,null,null,null,null,null,null,null,null,null,"VSDs"]
["VSD Application Description","VSD Size (HP)\n(Must be less than 200 HP)",null,"Incentive Unit",null,"Incentive/Unit",null,"Quantity","Incentive",null,"Unitary and Split Air Conditioning Systems",null,null,null,null,null,"Equipment Type","Incentive"]
[null,null,null,"per HP",null,{"$f":"IF(A80=\"\",\"\",_xlfn.XLOOKUP(A80,$Q$81:$Q$86,$R$81:$R$86))","v":""},null,null,{"$f":"IF($A80=\"\",\"\",$B80*$F80*$H80)","v":""},null,"Air Source Heat Pumps"]
[null,null,null,"per HP",null,"",null,null,{"$f":"IF($A81=\"\",\"\",$B81*$F81*$H81)","v":""},null,"Chillers: Water-Cooled: Centrifugal",null,null,null,null,null,"Supply Fans",200]
[null,null,null,"per HP",null,"",null,null,{"$f":"IF($A82=\"\",\"\",$B82*$F82*$H82)","v":""},null,"Chillers: Water-Cooled: Scroll, Screw or Reciprocating",null,null,null,null,null,"Return Fans",175]
[null,null,null,"per HP",null,"",null,null,"",null,"Chillers: Air-Cooled",null,null,null,null,null,"Cooling Water Pumps",200]
[null,null,null,"per HP",null,"",null,null,"",null,"Packaged Terminal AC",null,null,null,null,null,"Hot Water Pumps",150]
[null,null,null,"per HP",null,"",null,null,"",null,"Packaged Terminal HP",null,null,null,null,null,"WSHP Circulation Pumps",250]
[null,null,null,"per HP",null,"",null,null,"",null,"Variable Refrigerant Flow HP",null,null,null,null,null,"Cooling Tower Fan",100]
[null,null,null,"per HP",null,"",null,null,""]
[null,null,null,"per HP",null,"",null,null,""]
[null,null,null,"per HP",null,"",null,null,"",null,"< 65,000 Btu/h (5.4 tons)"]
["VSD Incentive",null,null,null,null,null,null,null,{"$f":"IF(SUM(I80:I89)=0,\"\",SUM(I80:I89))","v":""},null,"≥ 65,000 Btu/h and < 135,000 Btu/h (5.4-11.25 tons)"]
["*The variable speed drive incentive is calculated based on the horsepower (HP) that is actually being controlled, not necessarily the size of the VSD. This section for HVAC only; for VSD's on non-HVAC equipment, use the Custom tab.",null,null,null,null,null,null,null,null,null,"≥ 135,000 Btu/h and < 240,000 Btu/h (11.25-20 tons)"]
[null,null,null,null,null,null,null,null,null,null,"≥ 240,000 Btu/h and < 760,000 Btu/h (20-63 Tons)"]
["Total HVAC Incentives",null,null,null,null,null,null,{"$f":"SUM(I57,I76,I90)","v":0},null,null,"≥ 760,000 Btu/h (> 63 tons)"]
[null,null,null,null,null,null,null,null,null,null,"≤ 75 tons"]
[null,null,null,null,null,null,null,null,null,null,"≤ 150 tons"]
[null,null,null,null,null,null,null,null,null,null,"> 150 tons"]
[null,null,null,null,null,null,null,null,null,null,">150 tons and ≤ 300 tons"]
[null,null,null,null,null,null,null,null,null,null,">300 tons and ≤ 400 tons"]
[null,null,null,null,null,null,null,null,null,null,"> 400 tons and ≤ 600 tons"]
[null,null,null,null,null,null,null,null,null,null,">600"]
[null,null,null,null,null,null,null,null,null,null,"ALL"]
[]
[]
[]
[]
[null,null,null,null,null,null,null,null,null,null,null,null,null,null,null,null,null,null,"Level Normal (2021 V2)","2021 V2 Rounded","Level Normal (2021 V1)",null,"Level Normal","Incentive","Bonus","Level 2","Level 3","Level 4","Min","Max"]
[]
[null,null,null,null,null,null,null,null,null,null,null,null,null,null,null,null,null,null,15.000020000000001,{"$f":"ROUND(S108,1)","v":15},14,"Unitary and Split Air Conditioning Systems< 65,000 Btu/h (5.4 tons)",{"$f":"T108","v":15},25,15,{"$f":"W108+1","v":16},{"$f":"Z108+1","v":17},18,0,5.4]
[null,null,null,null,null,null,null,null,null,null,null,null,null,null,null,null,null,null,13.714304000000002,13.7,12,"Unitary and Split Air Conditioning Systems≥ 65,000 Btu/h and \n< 135,000 Btu/h (5.4-11.25 tons)",13.7,25,15,{"$f":"W109+1","v":14.7},15.7,16.7]
[null,null,null,null,null,null,null,null,null,null,null,null,null,null,null,null,null,null,13.285732000000001,13.3,12,"Unitary and Split Air Conditioning Systems≥ 135,000 Btu/h and < 240,000 Btu/h (11.25-20 tons)",13.3,25,15,{"$f":"W110+1","v":14.3},15.3,16.3,11.25,20]
[null,null,null,null,null,null,null,null,null,null,null,null,null,null,null,null,null,null,12.428588000000001,12.4,10.8,"Unitary and Split Air Conditioning Systems≥ 240,000 Btu/h and < 760,000 Btu/h (20-63 Tons)",12.4,25,15,{"$f":"W108+1","v":16},{"$f":"Z108+1","v":17},{"$f":"AA108+1","v":18},20,63]
[null,null,null,null,null,null,null,null,null,null,null,null,null,null,null,null,null,null,12.000016,12,10.199999999999999,"Unitary and Split Air Conditioning Systems≥ 760,000 Btu/h (> 63 tons)",12,25,15,{"$f":"W112+1","v":13},{"$f":"Z112+1","v":14},15,63,100000]
[null,null,null,null,null,null,null,null,null,null,null,null,null,null,null,null,null,null,15.000020000000001,15,14,"Air Source Heat Pumps< 65,000 Btu/h (5.4 tons)",15,40,15,{"$f":"W113+1","v":16},17,18,0,5.4]
[null,null,null,null,null,null,null,null,null,null,null,null,null,null,null,null,null,null,12.85716,12.9,11.6,"Air Source Heat Pumps≥ 65,000 Btu/h and \n< 135,000 Btu/h (5.4-11.25 tons)",12.9,40,15,{"$f":"W114+1","v":13.9},14.9,15.9,5.4,11.25]
[null,null,null,null,null,null,null,null,null,null,null,null,null,null,null,null,null,null,12.428588000000001,12.4,11.2,"Air Source Heat Pumps≥ 135,000 Btu/h and < 240,000 Btu/h (11.25-20 tons)",12.4,40,15,{"$f":"W115+1","v":13.4},14.4,15.4,11.25,20]
[null,null,null,null,null,null,null,null,null,null,null,null,null,null,null,null,null,null,11.357158,11.4,10,"Air Source Heat Pumps≥ 240,000 Btu/h and < 760,000 Btu/h (20-63 Tons)",11.4,40,15,{"$f":"W113+1","v":16},{"$f":"Z113+1","v":17},{"$f":"AA113+1","v":18},20,63]
[null,null,null,null,null,null,null,null,null,null,null,null,null,null,null,null,null,null,9.9642990000000022,10,10,"Air Source Heat Pumps≥ 760,000 Btu/h (> 63 tons)",10,40,15,{"$f":"W117+1","v":11},{"$f":"Z117+1","v":12},{"$f":"AA117+1","v":13},63,100000]
[null,null,null,null,null,null,null,null,null,null,null,null,null,null,null,null,null,null,0.49500000000000005,{"$f":"S118","v":0.49500000000000005},0.56899999999999995,"Chillers: Water-Cooled, Centrifugal***≤ 150 tons",0.49500000000000005,20,20,0.54,{"$f":"ROUNDUP(W118/0.9*0.7,2)","v":0.39},{"$f":"ROUNDUP(W118/0.9*0.6,2)","v":0.33},0,150]
[null,null,null,null,null,null,null,null,null,null,null,null,null,null,null,null,null,null,0.49500000000000005,0.49500000000000005,0.50700000000000001,"Chillers: Water-Cooled, Centrifugal***>150 tons and ≤ 300 tons",0.49500000000000005,20,20,0.54,0.39,0.33,150,300]
[null,null,null,null,null,null,null,null,null,null,null,null,null,null,null,null,null,null,0.46800000000000003,0.46800000000000003,0.46700000000000003," ",0.46800000000000003,20,20,0.48,0.37,0.32,300,400]
[null,null,null,null,null,null,null,null,null,null,null,null,null,null,null,null,null,null,0.45,0.45,"New Size category","Chillers: Water-Cooled, Centrifugal***> 400 tons to ≤ 600 tons",0.45,20,20,0.44,0.35,0.3,400,600]
[null,null,null,null,null,null,null,null,null,null,null,null,null,null,null,null,null,null,0.45,0.45,"New Size Category","Chillers: Water-Cooled, Centrifugal***> 600",0.45,20,20,0.42,0.35,0.3,600,10000]
[null,null,null,null,null,null,null,null,null,null,null,null,null,null,null,null,null,null,0.54,0.54,0.59199999999999997,"Chillers: Water-Cooled: ReciprocatingALL",0.54,20,20,0.54,0.42,0.36,0,75]
[null,null,null,null,null,null,null,null,null,null,null,null,null,null,null,null,null,null,0.54,0.54,"New Size Category","Chillers: Water Cooled Scroll, Helical-Rotary or Reciprocating***≤ 75 tons",0.54,20,20,0.54,0.42,0.36,0,75]
[null,null,null,null,null,null,null,null,null,null,null,null,null,null,null,null,null,null,0.504,0.504,0.57499999999999996,"Chillers: Water Cooled Scroll, Helical-Rotary or Reciprocating***> 75 tons and ≤ 150 tons",0.504,20,20,0.54,0.4,0.34,75,150]
[null,null,null,null,null,null,null,null,null,null,null,null,null,null,null,null,null,null,0.48599999999999999,0.48599999999999999,0.53400000000000003,"Chillers: Water Cooled Scroll, Helical-Rotary or Reciprocating***>150 tons and ≤ 300 tons",0.48599999999999999,20,20,0.5,0.38,0.33,150,300,null,null,null,null,null,null,null,null,null,null,null,"Chillers: Air-Cooled","Unitary and Split Air Conditioning Systems","Chillers: Water Cooled Scroll, Helical-Rotary or Reciprocating***","Chillers: Water-Cooled, Centrifugal***","Air Source Heat Pumps","Variable Refrigerant Flow HP","Packaged Terminal AC","Packaged Terminal HP","Computer Room Air Conditioners"]
[null,null,null,null,null,null,null,null,null,null,null,null,null,null,null,null,null,null,0.46800000000000003,0.46800000000000003,0.48599999999999999,"Chillers: Water Cooled Scroll, Helical-Rotary or Reciprocating***> 300 tons and ≤ 600 tons",0.46800000000000003,20,20,0.46,0.37,0.32,300,600,null,null,null,null,null,null,null,null,null,null,null,"≤ 150","< 65,000 Btu/h (5.4 tons)","≤ 75 tons","≤ 150 tons","< 65,000 Btu/h (5.4 tons)","< 65,000 Btu/h (5.4 tons)","ALL","ALL","< 65,000 Btuh"]
[null,null,null,null,null,null,null,null,null,null,null,null,null,null,null,null,null,null,0.45,0.45,"New Size Category","Chillers: Water Cooled Scroll, Helical-Rotary or Reciprocating***> 600 tons",0.45,20,20,0.42,0.35,0.3,600,10000,null,null,null,null,null,null,null,null,null,null,null,"> 150","≥ 65,000 Btu/h and \n< 135,000 Btu/h (5.4-11.25 tons)","> 75 tons and ≤ 150 tons",">150 tons and ≤ 300 tons","≥ 65,000 Btu/h and \n< 135,000 Btu/h (5.4-11.25 tons)","≥ 65,000 Btu/h and \n< 135,000 Btu/h (5.4-11.25 tons)",null,null,"≥ 65,000 Btuh to < 240,000 Btuh"]
[null,null,null,null,null,null,null,null,null,null,null,null,null,null,null,null,null,null,0.78800000000000003,0.78800000000000003,0.86699999999999999,"Chillers: Air-Cooled≤ 150",0.78800000000000003,40,20,{"$f":"ROUND(W129/0.9*0.8,2)","v":0.7},0.62,0.53,0,150,null,null,null,null,null,null,null,null,null,null,null,null,"≥ 135,000 Btu/h and < 240,000 Btu/h (11.25-20 tons)",">150 tons and ≤ 300 tons","> 300 tons to ≤ 400 tons","≥ 135,000 Btu/h and < 240,000 Btu/h (11.25-20 tons)","≥ 135,000 Btu/h and < 240,000 Btu/h (11.25-20 tons)",null,null,"≥ 240,000"]
[null,null,null,null,null,null,null,null,null,null,null,null,null,null,null,null,null,null,0.77100000000000002,0.77100000000000002,0.86699999999999999,"Chillers: Air-Cooled> 150",0.77100000000000002,40,20,{"$f":"ROUND(W130/0.9*0.8,2)","v":0.69},0.6,0.52,150,100000,null,null,null,null,null,null,null,null,null,null,null,null,"≥ 240,000 Btu/h and < 760,000 Btu/h (20-63 Tons)","> 300 tons and ≤ 600 tons","> 400 tons to ≤ 600 tons","≥ 240,000 Btu/h and < 760,000 Btu/h (20-63 Tons)","≥ 240,000 Btu/h (20 Tons)"]
[null,null,null,null,null,null,null,null,null,null,null,null,null,null,null,null,null,null,{"$f":"14.5-(0.3*_xlfn.IFNA(INDEX($A$43:$I$56,MATCH(\"Packaged Terminal AC\",$E$43:$E$56,0),2),0)*12000/1000)","v":14.5},14.5,{"$f":"12.5-(0.213*B43*12000/1000)","v":12.5},"Packaged Terminal ACALL",14.5,50,0,{"$f":"W131+1","v":15.5},{"$f":"Z131+1","v":16.5},17.5,0,100000,null,null,null,null,null,null,null,null,null,null,null,null,"≥ 760,000 Btu/h (> 63 tons)","> 600 tons","> 600"]
[null,null,null,null,null,null,null,null,null,null,null,null,null,null,null,null,null,null,{"$f":"14.5-(0.3*_xlfn.IFNA(INDEX($A$43:$I$56,MATCH(\"Packaged Terminal HP\",$E$43:$E$56,0),2),0)*12000/1000)","v":14.5},14.5,{"$f":"12.3-(0.213*B44*12000/1000)","v":12.3},"Packaged Terminal HPALL",14.5,100,0,15.5,16.5,17.5,0,100000]
[null,null,null,null,null,null,null,null,null,null,null,null,null,null,null,null,null,null,15.428592000000002,{"$f":"ROUND(S133,1)","v":15.4},14.8,"Variable Refrigerant Flow HP≥ 65,000 Btu/h and \n< 135,000 Btu/h (5.4-11.25 tons)",15.4,40,25,16.399999999999999,17.399999999999999,18.399999999999999,5.4,11.25]
[null,null,null,null,null,null,null,null,null,null,null,null,null,null,null,null,null,null,14.678591000000001,14.7,14.2,"Variable Refrigerant Flow HP≥ 135,000 Btu/h and < 240,000 Btu/h (11.25-20 tons)",14.7,40,25,15.7,16.7,17.7,11.25,20]
[null,null,null,null,null,null,null,null,null,null,null,null,null,null,null,null,null,null,13.392875000000002,13.4,12.7,"Variable Refrigerant Flow HP≥ 240,000 Btu/h (20 Tons)",13.4,40,25,14.4,15.4,16.399999999999999,20,63]
[null,null,null,null,null,null,null,null,null,null,null,null,null,null,null,null,null,null,13.928590000000002,13.9,15.6,"Variable Refrigerant Flow HP< 65,000 Btu/h (5.4 tons)",13.9,40,25,14.9,15.9,16.899999999999999,63,100000]
[null,null,null,null,null,null,null,null,null,null,null,null,null,null,null,null,null,null,8.1839999999999993,8.1999999999999993,null,"Computer Room Air Conditioners< 65,000 Btuh",8.1999999999999993,8.0000000000000002E-3,0,9.1999999999999993,10.199999999999999,11.2,0,65000]
[null,null,null,null,null,null,null,null,null,null,null,null,null,null,null,null,null,null,7.5020000000000007,7.5,null,"Computer Room Air Conditioners≥ 65,000 Btuh to < 240,000 Btuh",7.5,8.0000000000000002E-3,0,8.5,9.5,10.5,65000,240000,null,null,null,null,null,null,null,"Categories","Column1","Column2"]
[null,null,null,null,null,null,null,null,null,null,null,null,null,null,null,null,null,null,7.1610000000000005,7.2,null,"Computer Room Air Conditioners≥ 240,000",7.2,8.0000000000000002E-3,0,8.1999999999999993,9.1999999999999993,10.199999999999999,240000,10000000,null,null,null,null,null,null,null,"Unitary and Split Air Conditioning Systems","UnitarySplit",1]
[null,null,null,null,null,null,null,null,null,null,null,null,null,null,null,null,null,null,null,null,null,null,null,null,null,null,null,null,null,null,null,null,null,null,null,null,null,"Air Source Heat Pumps","AirSourceHP",2]
[null,null,null,null,null,null,null,null,null,null,null,null,null,null,null,null,null,null,null,null,null,null,null,null,null,"**used stated values for Level 2, if available.  Else was rounded up to the  10s of watts",null,null,null,null,null,null,null,null,null,null,null,"Variable Refrigerant Flow HP","VRF",3]
[null,null,null,null,null,null,null,null,null,null,null,null,null,null,null,null,null,null,null,null,null,null,2.4,{"$f":"W142*3.41","v":8.1839999999999993},null,null,null,null,null,null,null,null,null,null,null,null,null,"Chillers: Water Cooled Scroll, Helical-Rotary or Reciprocating***","ChillerHelical",4]
[null,null,null,null,null,null,null,null,null,null,null,null,null,null,null,null,null,null,null,null,null,null,2.2000000000000002,{"$f":"W143*3.41","v":7.5020000000000007},null,null,null,null,null,null,null,null,null,null,null,null,null,"Chillers: Water-Cooled, Centrifugal***","ChillerCent",5]
[null,null,null,null,null,null,null,null,null,null,null,null,null,null,null,null,null,null,null,null,null,null,2.1,{"$f":"W144*3.41","v":7.1610000000000005},null,null,null,null,null,null,null,null,null,null,null,null,null,"Chillers: Air-Cooled","ChillerAir",6]
[null,null,null,null,null,null,null,null,null,null,null,null,null,null,null,null,null,null,null,null,null,null,null,null,null,null,null,null,null,null,null,null,null,null,null,null,null,"Packaged Terminal AC","PTAC",7]
[null,null,null,null,null,null,null,null,null,null,null,null,null,null,null,null,null,null,null,null,null,null,null,null,null,null,null,null,null,null,null,null,null,null,null,null,null,"Packaged Terminal HP","PTHP",8]
[null,null,null,null,null,null,null,null,null,null,null,null,null,null,null,null,null,null,null,null,null,null,null,null,null,null,null,null,null,null,null,null,null,null,null,null,null,"Computer Room Air Conditioners","CRAC",9]
[]
[]
[null,null,null,null,null,null,null,null,null,null,null,null,null,null,null,null,null,null,null,null,null,null,null,null,null,null,null,null,null,null,null,null,null,null,null,null,null,"Test, Category","Test, Dropdown"]
[null,null,null,null,null,null,null,null,null,null,null,null,null,null,null,null,null,null,null,null,null,null,null,null,null,null,null,null,null,null,null,null,null,null,null,null,null,"Computer Room Air Conditioner","< 65,000 Btuh"]

{"sheet":"Food Service","index":8,"n_rows":43,"n_cols":14,"rows_kept":43,"cut":false,"hidden":false,"merged":[[1,6,1,10],[32,0,32,4],[28,0,28,4],[37,0,37,4],[36,0,36,4],[35,0,35,4],[34,0,34,4],[33,0,33,4],[0,1,0,10],[41,9,41,10],[41,0,41,8],[10,0,10,8],[10,9,10,10],[22,9,22,10],[22,0,22,8],[29,0,29,8],[29,9,29,10],[39,9,39,10],[25,0,25,4],[27,0,27,4],[26,0,26,4],[21,0,21,4],[20,0,20,4],[33,9,33,10],[39,0,39,8],[19,0,19,4],[18,0,18,4],[38,9,38,10],[37,9,37,10],[36,9,36,10],[35,9,35,10],[34,9,34,10],[38,6,38,7],[37,6,37,7],[32,9,32,10],[28,9,28,10],[27,9,27,10],[26,9,26,10],[21,6,21,7],[38,0,38,4],[36,6,36,7],[35,6,35,7],[34,6,34,7],[20,6,20,7],[33,6,33,7],[32,6,32,7],[28,6,28,7],[27,6,27,7],[26,6,26,7],[25,6,25,7],[21,9,21,10],[20,9,20,10],[19,9,19,10],[18,9,18,10],[17,9,17,10],[16,9,16,10],[19,6,19,7],[18,6,18,7],[17,6,17,7],[16,6,16,7],[42,0,43,7],[42,8,43,10],[4,9,4,10],[3,9,3,10],[8,9,8,10],[7,9,7,10],[6,9,6,10],[5,9,5,10],[25,9,25,10],[16,0,16,4],[15,0,15,4],[9,9,9,10],[13,9,13,10],[15,9,15,10],[14,9,14,10],[15,6,15,7],[5,6,5,7],[3,6,3,7],[4,6,4,7],[13,0,13,4],[9,6,9,7],[3,0,3,4],[13,6,13,7],[17,0,17,4],[8,6,8,7],[7,6,7,7],[6,6,6,7],[14,6,14,7],[14,0,14,4]]}
[null,"FOOD SERVICE INCENTIVES"]
["Applicant: fill in gray fields",null,null,null,null,null,"See spec sheets at the bottom of the page!"]
["ENERGY STAR® Ovens & Fryers"]
["Equipment Type",null,null,null,null,"Incentive Unit","Incentive/Unit",null,"# of Units","Incentive",null,null,"kWh/Unit","kWh Savings"]
["Combination Oven - Full Size",null,null,null,null,"Unit",800,null,null,{"$f":"IF(ISBLANK(I5),\"\",I5*G5)","v":""},null,null,6368,{"$f":"M5*I5","v":0}]
["Convection Oven - Half Size",null,null,null,null,"Unit",100,null,null,"",null,null,3043,0]
["Convection Oven - Full Size < 5 pans",null,null,null,null,"Unit",300,null,null,"",null,null,4633,0]
["Convection Oven - Full size ≥ 5 pans",null,null,null,null,"Unit",350,null,null,"",null,null,244,0]
["Commercial Vat Fryer - Standard",null,null,null,null,"Unit",250,null,null,"",null,null,3272,0]
["Commercial Vat Fryer - Large",null,null,null,null,"Unit",300,null,null,"",null,null,2696,0]
["Ovens & Fryers Incentive",null,null,null,null,null,null,null,null,{"$f":"SUM(J5:K10)","v":0}]
[]
["ENERGY STAR® Steam Cookers"]
["Equipment Type",null,null,null,null,"Incentive Unit","Incentive/Unit",null,"# of Units","Incentive"]
["Boiler Based - 3 Pan",null,null,null,null,"Unit",1200,null,null,{"$f":"IF(ISBLANK(I15),\"\",I15*G15)","v":""},null,null,11784,{"$f":"M15*I15","v":0}]
["Boiler Based - 4 Pan",null,null,null,null,"Unit",1400,null,null,"",null,null,14553,0]
["Boiler Based - 5 Pan",null,null,null,null,"Unit",1600,null,null,"",null,null,17268,0]
["Boiler Based - ≥6 Pan",null,null,null,null,"Unit",1800,null,null,"",null,null,19990,0]
["Steam Generator - 3 Pan",null,null,null,null,"Unit",800,null,null,"",null,null,9967,0]
["Steam Generator - 4 Pan",null,null,null,null,"Unit",900,null,null,"",null,null,12107,0]
["Steam Generator - 5 Pan",null,null,null,null,"Unit",1000,null,null,"",null,null,14186,0]
["Steam Generator - ≥6 Pan",null,null,null,null,"Unit",1200,null,null,"",null,null,16270,0]
["Steam Coookers Incentive",null,null,null,null,null,null,null,null,{"$f":"SUM(J15:K22)","v":0}]
[]
["ENERGY STAR® Hot Food Holding Cabinet"]
["Equipment Type",null,null,null,null,"Incentive Unit","Incentive/Unit",null,"# of Units","Incentive"]
["Half size",null,null,null,null,"Unit",125,null,null,{"$f":"IF(ISBLANK(I27),\"\",I27*G27)","v":""},null,null,1215,{"$f":"M27*I27","v":0}]
["Three-quarter size",null,null,null,null,"Unit",300,null,null,{"$f":"IF(ISBLANK(I28),\"\",I28*G28)","v":""},null,null,2770,{"$f":"M28*I28","v":0}]
["Full-size",null,null,null,null,"Unit",500,null,null,{"$f":"IF(ISBLANK(I29),\"\",I29*G29)","v":""},null,null,4832,{"$f":"M29*I29","v":0}]
["Hot Food Holding Cabinets Incentive",null,null,null,null,null,null,null,null,{"$f":"SUM(J27:K29)","v":0}]
[]
["ENERGY STAR® High Efficiency Ice Makers"]
["Equipment Type",null,null,null,null,"Installed kWk/100 lbs","Incentive/Unit",null,"# of Units","Incentive"]
["150 lb/24 hours",null,null,null,null,"Unit",100,null,null,{"$f":"IF(ISBLANK(I34),\"\",I34*G34)","v":""},null,null,401,{"$f":"M34*I34","v":0}]
["250 lb/24 hours",null,null,null,null,"Unit",125,null,null,"",null,null,469,0]
["350 lb/24 hours",null,null,null,null,"Unit",150,null,null,"",null,null,357,0]
["450 lb/24 hours",null,null,null,null,"Unit",150,null,null,"",null,null,440,0]
["750 lb/24 hours",null,null,null,null,"Unit",200,null,null,"",null,null,850,0]
["1500 lb/24 hours",null,null,null,null,"Unit",250,null,null,"",null,null,1436,0]
["High Efficiency Ice Makers Incentive",null,null,null,null,null,null,null,null,{"$f":"SUM(J34:K39)","v":0}]
[]
["Total Food Service Equipment Incentives",null,null,null,null,null,null,null,null,{"$f":"SUM(J5:K10,J15:K22,J27:K29,J34:K39)","v":0}]
["I certify that I have not already received an 'at the counter' rebate from a participating distributor for the equipment listed above. I understand that if I have already received a rebate that this application will be cancelled."]

{"sheet":"Refrigeration","index":9,"n_rows":21,"n_cols":9,"rows_kept":21,"cut":false,"hidden":false,"merged":[[0,0,0,8],[20,0,20,8],[6,3,6,4],[6,5,6,6],[10,5,10,6],[18,5,18,6],[11,5,11,6],[12,5,12,6],[18,3,18,4],[12,3,12,4],[11,3,11,4],[10,3,10,4],[7,3,7,4],[19,0,19,7],[7,5,7,6],[1,0,1,2],[3,5,4,6],[3,7,4,7],[5,5,5,6],[2,0,2,8],[3,3,4,4],[5,3,5,4],[3,8,4,8],[3,0,4,1],[17,3,17,4],[17,5,17,6],[13,3,13,4],[13,5,13,6],[14,3,14,4],[14,5,14,6],[16,3,16,4],[16,5,16,6],[8,3,8,4],[8,5,8,6],[9,3,9,4],[9,5,9,6],[15,3,15,4],[15,5,15,6]]}
["REFRIGERATION INCENTIVES"]
["Applicant: fill in gray fields"]
["Refrigeration"]
["Measures",null,null,"Incentive\nUnit",null,"Incentive/Unit",null,"# of Units","Incentive"]
[]
["Night Covers for Displays",null,null,"Linear Foot of Case",null,10,null,null,{"$f":"F6*ROUND(H6,0)","v":0}]
["Anti-Sweat Heater Controls",null,null,"Linear Foot of Case",null,30,null,null,{"$f":"F7*ROUND(H7,0)","v":0}]
["LED Refrigerated Case Lighting",null,null,"Linear Foot of Case",null,10,null,null,{"$f":"F8*ROUND(H8,0)","v":0}]
["LED Freezer Case Lighting",null,null,"Linear Foot of Case",null,10,null,null,{"$f":"F9*H9","v":0}]
["Zero Energy Doors",null,null,"Door",null,130,null,null,{"$f":"F10*H10","v":0}]
["Automatic Door Closer Freezer Cases",null,null,"Door",null,100,null,null,{"$f":"F11*H11","v":0}]
["Automatic Door Closer Cooler Cases",null,null,"Door",null,100,null,null,{"$f":"F12*H12","v":0}]
["EC Motor for Reach-in Refrigerator Cases",null,null,"Motor",null,60,null,null,{"$f":"F13*H13","v":0}]
["EC Motor for Reach-in Freezer Cases",null,null,"Motor",null,70,null,null,{"$f":"F14*H14","v":0}]
["EC Motor for Walk-in Refrigerator Cases",null,null,"Motor",null,110,null,null,0]
["EC Motor for Walk-in Freezer Cases",null,null,"Motor",null,120,null,null,0]
["Evaporator Fan Controls on EC Motor",null,"[select motor size]","Motor",null,100,null,null,{"$f":"IF(C17=\"[Select motor size]\",\"\",F17*H17)","v":""}]
["Q-Sync Motors (9 - 12W)","[select temp]","[select motor type]","Motor",null,50,null,null,{"$f":"IF(OR(B18=\"[Select temp]\",C18=\"[Select motor type]\"),\"\",F18*H18)","v":""}]
["Q-Sync Motors (38 - 50W)","[select temp]","[select motor type]","Motor",null,50,null,null,{"$f":"IF(OR(B19=\"[Select temp]\",C19=\"[Select motor type]\"),\"\",F19*H19)","v":""}]
["Refrigeration Incentive",null,null,null,null,null,null,null,{"$f":"SUM(I6:I19)","v":0}]
["* A small walk-in cooler and freezer has a doorway that is less than 50 square feet; a large walk-in cooler and freezer has a doorway that is greater than 50 square feet."]

{"sheet":"Pool Pumps","index":10,"n_rows":33,"n_cols":30,"rows_kept":33,"cut":false,"hidden":false,"merged":[[0,0,0,9],[0,17,0,18],[1,17,1,18],[5,6,5,7],[1,0,1,2],[26,17,26,24],[28,18,32,18],[28,19,32,19],[2,0,3,9],[9,0,9,8],[11,0,11,9],[7,6,7,7],[8,6,8,7],[8,0,8,4],[10,0,10,9],[4,6,4,7],[7,0,7,4],[6,0,6,4],[5,0,5,4],[4,0,4,4],[6,6,6,7]]}
["POOL PUMP INCENTIVES",null,null,null,null,null,null,null,null,null,null,null,null,null,null,null,null,"Note: Motors were removed"]
["Applicant: fill in gray fields at bottom",null,null,null,null,null,"See specs at the bottom of the page!",null,null,null,null,null,null,null,null,null,null,"Note: VSDs:added Equipment type and new incentive levels"]
["Pool Pump (0.5 - 3 HP)",null,null,null,null,null,null,null,null,null,null,null,null,null,null,null,null,"Equipment Type","Incentive"]
[]
["Pump Type",null,null,null,null,"Incentive Unit","Incentive/Unit",null,"Quantity","Incentive",null,null,null,null,null,null,null,"Supply Fans",175]
["Energy Star Pump - In-ground",null,null,null,null,"Unit",100,null,null,{"$f":"IF(ISBLANK(I6),\"\",G6*I6)","v":""},null,null,null,null,null,null,null,"Return Fans",150]
["CEE Tier 1* Pump - In-ground",null,null,null,null,"Unit",100,100,null,{"$f":"IF(ISBLANK(I7),\"\",G7*I7)","v":""},null,null,null,null,null,null,null,"Cooling Water Pumps",175]
["Energy Star Pump - Above Ground",null,null,null,null,"Unit",100,100,null,null,null,null,null,null,null,null,null,"Hot Water Pumps",125]
["CEE Tier 1* Pump - Above Ground",null,null,null,null,"Unit",100,null,null,{"$f":"IF(ISBLANK(I9),\"\",G9*I9)","v":""},null,null,null,null,null,null,null,"WSHP Circulation Pumps",225]
["Pool Pumps Incentive",null,null,null,null,null,null,null,null,{"$f":"SUM(J6:J9)","v":0},null,null,null,null,null,null,null,"Cooling Tower Fan",75]
["* If BOTH Energy Star and CEE Tier 1 certified, use the CEE Tier 1 line item(s)."]
[null,null,null,null,null,null,null,null,null,null,null,{"$f":"J10","v":0}]
[]
[]
[null,null,null,null,null,null,null,null,null,null,null,"kWh"]
[null,null,null,null,null,null,null,null,null,null,null,{"$f":"1757*#REF!*#REF!","v":{"$error":"#REF!"}}]
[]
[]
[]
[]
[]
[]
[]
[]
[]
[]
[null,null,null,null,null,null,null,null,null,null,null,{"$f":"#REF!","v":{"$error":"#REF!"}},null,null,null,null,null,"ENERGYSTAR Pool Pump Assumptions",null,null,null,null,null,null,null,null,"Incentive","$/kWh",null,"ES"]
[null,null,null,null,null,null,null,null,null,null,null,{"$f":"L27+L12","v":{"$error":"#REF!"}},null,null,null,null,null,"Rated Hp","Hours, HighSpeed","Hours, LowSpeed","PFR, HighSpeed","EF, HighSpeed","PFR, LowSpeed","EF, LowSpeed","kWh, ENERGYSTAR",null,null,null,null,"Yes"]
[null,null,null,null,null,null,null,null,null,null,null,null,null,null,null,null,null,"<1.25",4.3,9.6999999999999993,56,2.3980000000000001,31,5.407,{"$f":"+((U29*60*#REF!*365)/(V29*1000))+((W29*60*#REF!*365)/(X29*1000))","v":{"$error":"#REF!"}},null,120,{"$f":"+AA29/X29","v":22.193452931385242},null,"No"]
[null,null,null,null,null,null,null,null,null,null,null,null,null,null,null,null,null,"1.25 < HP <1.75",null,0.20849999999999999,61,2.2669999999999999,31.9,5.4329999999999998,{"$f":"+((U30*60*#REF!*365)/(V30*1000))+((W30*60*#REF!*365)/(X30*1000))","v":{"$error":"#REF!"}},null,{"$f":"+AA29+20","v":140},{"$f":"+AA30/X30","v":25.768452052273148}]
[null,null,null,null,null,null,null,null,null,null,null,null,null,null,null,null,null,"1.75 < HP <2.25",null,0.25159999999999999,66.400000000000006,1.9510000000000001,33.299999999999997,5.2210000000000001,{"$f":"+((U31*60*#REF!*365)/(V31*1000))+((W31*60*#REF!*365)/(X31*1000))","v":{"$error":"#REF!"}},null,{"$f":"+AA30+20","v":160},{"$f":"+AA31/X31","v":30.645470216433633}]
[null,null,null,null,null,null,null,null,null,null,null,null,null,null,null,null,null,"2.25 < HP <2.75",null,0.30809999999999998,66,2.024,34,4.7960000000000003,{"$f":"+((U32*60*#REF!*365)/(V32*1000))+((W32*60*#REF!*365)/(X32*1000))","v":{"$error":"#REF!"}},null,{"$f":"+AA31+20","v":180},{"$f":"+AA32/X32","v":37.531276063386152}]
[null,null,null,null,null,null,null,null,null,null,null,null,null,null,null,null,null,"2.75 < HP <3.00",null,0.3639,74,1.617,37,4.7640000000000002,{"$f":"+((U33*60*#REF!*365)/(V33*1000))+((W33*60*#REF!*365)/(X33*1000))","v":{"$error":"#REF!"}},null,{"$f":"+AA32+20","v":200},{"$f":"+AA33/X33","v":41.981528127623847}]

{"sheet":"Industrial","index":11,"n_rows":102,"n_cols":9,"rows_kept":102,"cut":false,"hidden":false,"merged":[[98,0,98,7],[95,0,95,3],[95,4,95,5],[96,0,96,3],[96,4,96,5],[97,0,97,3],[97,4,97,5],[89,0,89,7],[93,0,93,3],[93,4,93,5],[94,0,94,3],[94,4,94,5],[85,4,85,5],[86,4,86,5],[87,4,87,5],[88,4,88,5],[85,0,85,3],[86,0,86,3],[87,0,87,3],[88,0,88,3],[84,0,84,3],[84,4,84,5],[22,0,22,4],[35,0,35,3],[34,0,34,3],[33,0,33,3],[41,0,41,3],[40,0,40,3],[39,0,39,3],[38,0,38,3],[37,0,37,3],[36,0,36,3],[27,0,27,4],[26,0,26,4],[25,0,25,4],[24,0,24,4],[23,0,23,4],[13,0,13,4],[12,0,12,4],[11,0,11,4],[10,0,10,4],[21,0,21,4],[20,0,20,4],[19,0,19,4],[18,0,18,4],[17,0,17,4],[16,0,16,4],[46,0,46,3],[0,0,0,8],[42,0,42,7],[58,0,58,7],[57,0,57,3],[56,0,56,3],[55,0,55,3],[54,0,54,3],[53,0,53,3],[52,0,52,3],[28,0,28,4],[29,0,29,4],[30,0,30,7],[9,0,9,4],[15,0,15,4],[14,0,14,4],[51,0,51,3],[50,0,50,3],[49,0,49,3],[48,0,48,3],[47,0,47,3],[61,0,61,3],[73,0,73,3],[72,0,72,3],[71,0,71,3],[70,0,70,3],[69,0,69,3],[68,0,68,3],[67,0,67,3],[66,0,66,3],[101,0,101,7],[5,0,5,3],[4,0,4,3],[3,0,3,3],[81,0,81,7],[80,0,80,3],[79,0,79,3],[6,0,6,7],[65,0,65,3],[64,0,64,3],[63,0,63,3],[62,0,62,3],[77,0,77,3],[78,0,78,3],[74,0,74,7],[45,0,45,3]]}
["INDUSTRIAL INCENTIVES"]
["Applicant: fill in gray fields"]
["Compressed Air Storage Receiver Tanks"]
["Equipment Size Category",null,null,null,"Incentive Unit","Incentive/Unit","Horsepower (HP)","# of Units","Incentive"]
["≤50 HP",null,null,null,"HP",40,null,null,{"$f":"IF(ISBLANK(H5),\"\",F5*G5*H5)","v":""}]
["51-200 HP",null,null,null,"HP",40,null,null,{"$f":"IF(ISBLANK(H6),\"\",F6*G6*H6)","v":""}]
["Efficient Compressor Air Nozzles Incentive",null,null,null,null,null,null,null,{"$f":"SUM(I5:I6)","v":0}]
[]
["Efficient Compressed Air Nozzles"]
["Equipment Type",null,null,null,null,"Incentive Unit","Incentive/Unit","# of Units","Incentive"]
["1/8'' - Reciprocrating - On/off Control",null,null,null,null,"Unit",42,null,{"$f":"IF(ISBLANK(H11),\"\",H11*G11)","v":""}]
["1/8'' - Reciprocrating - Load/Unload",null,null,null,null,"Unit",42,null,{"$f":"IF(ISBLANK(H12),\"\",H12*G12)","v":""}]
["1/8'' - Screw - Load/Unload/Variable Displacement",null,null,null,null,"Unit",42,null,""]
["1/8'' - Screw - Inlet Modulation",null,null,null,null,"Unit",42,null,""]
["1/8'' - Screw - VFD",null,null,null,null,"Unit",42,null,""]
["1/4'' - Reciprocrating - On/off Control",null,null,null,null,"Unit",57,null,""]
["1/4'' - Reciprocrating - Load/Unload",null,null,null,null,"Unit",57,null,""]
["1/4'' - Screw - Load/Unload/Variable Displacement",null,null,null,null,"Unit",57,null,""]
["1/4'' - Screw - Inlet Modulation",null,null,null,null,"Unit",57,null,""]
["1/4'' - Screw - VFD",null,null,null,null,"Unit",57,null,""]
["5/16'' - Reciprocrating - On/off Control",null,null,null,null,"Unit",87,null,""]
["5/16'' - Reciprocrating - Load/Unload",null,null,null,null,"Unit",87,null,""]
["5/16'' - Screw - Load/Unload/Variable Displacement",null,null,null,null,"Unit",87,null,""]
["5/16'' - Screw - Inlet Modulation",null,null,null,null,"Unit",87,null,""]
["5/16'' - Screw - VFD",null,null,null,null,"Unit",87,null,""]
["1/2'' - Reciprocrating - On/off Control",null,null,null,null,"Unit",121,null,""]
["1/2'' - Reciprocrating - Load/Unload",null,null,null,null,"Unit",121,null,""]
["1/2'' - Screw - Load/Unload/Variable Displacement",null,null,null,null,"Unit",121,null,""]
["1/2'' - Screw - Inlet Modulation",null,null,null,null,"Unit",121,null,""]
["1/2'' - Screw - VFD",null,null,null,null,"Unit",121,null,""]
["Efficient Compressor Air Nozzles Incentive",null,null,null,null,null,null,null,{"$f":"SUM(I11:I30)","v":0}]
[]
["VSD Air Compressors"]
["Equipment Type",null,null,null,"Incentive Unit","Incentive/Unit","Horsepower (HP)","# of Units","Incentive"]
["Modulating w/ Blowdown <= 50 hp",null,null,null,"Per HP",80,null,null,{"$f":"IF(ISBLANK(H35),\"\",F35*G35*H35)","v":""}]
["Load/No Load w/ 1 Gallon/CFM <= 50 hp",null,null,null,"Per HP",80,null,null,{"$f":"IF(ISBLANK(H36),\"\",F36*G36*H36)","v":""}]
["Load/No Load w/ 3 Gallon/CFM <= 50 hp",null,null,null,"Per HP",80,null,null,""]
["Load/No Load w/ 5 Gallon/CFM <= 50 hp",null,null,null,"Per HP",80,null,null,""]
["Modulating w/ Blowdown 51-200 hp",null,null,null,"Per HP",100,null,null,""]
["Load/No Load w/ 1 Gallon/CFM 51-200 hp",null,null,null,"Per HP",100,null,null,""]
["Load/No Load w/ 3 Gallon/CFM 51-200 hp",null,null,null,"Per HP",100,null,null,""]
["Load/No Load w/ 5 Gallon/CFM 51-200 hp",null,null,null,"Per HP",100,null,null,""]
["VSD Air Compressor Incentive",null,null,null,null,null,null,null,{"$f":"SUM(I35:I42)","v":0}]
[]
["Efficient Desiccant Compressed Air Dryers"]
["Equipment Type",null,null,null,"Incentive Unit","Incentive/Unit","CFM","# of Units","Incentive"]
["Heated - Reciprocating - On/off Control",null,null,null,"per CFM",3,null,null,{"$f":"IF(ISBLANK(H47),\"\",F47*G47*H47)","v":""}]
["Heated - Reciprocating - Load/Unload",null,null,null,"per CFM",3,null,null,{"$f":"IF(ISBLANK(H48),\"\",F48*G48*H48)","v":""}]
["Heated - Screw - Load/Unload or Variable Displacement",null,null,null,"per CFM",3,null,null,""]
["Heated - Screw - VFD",null,null,null,"per CFM",3,null,null,""]
["Blower Purge w/Compressed Air Cooling - Reciprocating - On/off Control",null,null,null,"per CFM",5,null,null,""]
["Blower Purge w/Compressed Air Cooling - Reciprocating - Load/Unload",null,null,null,"per CFM",5,null,null,""]
["Blower Purge w/Compressed Air Cooling - Screw - Load/Unload or Variable Displacement",null,null,null,"per CFM",5,null,null,""]
["Blower Purge w/Compressed Air Cooling - Screw - VFD",null,null,null,"per CFM",5,null,null,""]
["Blower Purge \"Zero Purge\" - Reciprocating - On/off Control",null,null,null,"per CFM",7,null,null,""]
["Blower Purge \"Zero Purge\" - Reciprocating - Load/Unload",null,null,null,"per CFM",7,null,null,""]
["Blower Purge \"Zero Purge\" - Screw - Load/Unload or Variable Displacement",null,null,null,"per CFM",7,null,null,""]
["Blower Purge \"Zero Purge\" - Screw - VFD",null,null,null,"per CFM",7,null,null,""]
["Efficient Desiccant Compressed Air Dryer Incentive",null,null,null,null,null,null,null,{"$f":"SUM(I47:I58)","v":0}]
[]
["Desiccant Dryer Dew Point Demand Controls"]
["Equipment Type",null,null,null,"Incentive Unit","Incentive/Unit","CFM","# of Units","Incentive"]
["Heatless - Reciprocating - On/off Control",null,null,null,"per CFM",6,null,null,{"$f":"IF(ISBLANK(H63),\"\",F63*G63*H63)","v":""}]
["Heatless - Reciprocating - Load/Unload",null,null,null,"per CFM",6,null,null,{"$f":"IF(ISBLANK(H64),\"\",F64*G64*H64)","v":""}]
["Heatless - Screw - Load/Unload or Variable Displacement",null,null,null,"per CFM",6,null,null,{"$f":"IF(ISBLANK(H65),\"\",F65*G65*H65)","v":""}]
["Heatless - Screw - VFD",null,null,null,"per CFM",6,null,null,{"$f":"IF(ISBLANK(H66),\"\",F66*G66*H66)","v":""}]
["Externally-Heated - Reciprocating - On/off Control",null,null,null,"per CFM",6,null,null,""]
["Externally-Heated - Reciprocating - Load/Unload",null,null,null,"per CFM",6,null,null,""]
["Externally-Heated - Screw - Load/Unload or Variable Displacement",null,null,null,"per CFM",6,null,null,""]
["Externally-Heated - Screw - VFD",null,null,null,"per CFM",6,null,null,""]
["Blower Purge - Reciprocating - On/off Control",null,null,null,"per CFM",6,null,null,""]
["Blower Purge - Reciprocating - Load/Unload",null,null,null,"per CFM",6,null,null,""]
["Blower Purge - Screw - Load/Unload or Variable Displacement",null,null,null,"per CFM",6,null,null,""]
["Blower Purge - Screw - VFD",null,null,null,"per CFM",6,null,null,""]
["Desiccant Dryer Dew Point Demand Controls Incentive",null,null,null,null,null,null,null,{"$f":"SUM(I63:I74)","v":0}]
[]
["Efficient Refrigerated Compressed Air Dryers"]
["Equipment Type",null,null,null,"Incentive Unit","Incentive/ Unit","CFM","# of Units","Incentive"]
["Thermal-Mass",null,null,null,"Per CFM",1,null,null,{"$f":"IF(ISBLANK(H79),\"\",F79*G79*H79)","v":""}]
["VSD",null,null,null,"Per CFM",1,null,null,{"$f":"IF(ISBLANK(H80),\"\",F80*G80*H80)","v":""}]
["Digital Scroll",null,null,null,"Per CFM",1,null,null,""]
["Efficient Refrigerated Compressed Air Dryer Incentive",null,null,null,null,null,null,null,{"$f":"SUM(I79:I81)","v":0}]
[]
["High Frequency Battery Chargers"]
["Shift",null,null,null,"Incentive Unit",null,"Incentive/Unit","Quantity","Incentive"]
["1-shift (8 hr/day)",null,null,null,"Per Unit",null,400,null,{"$f":"IF(H86=\"\",\"\",G86*H86)","v":""}]
["2-shift (16 hr/day)",null,null,null,"Per Unit",null,400,null,{"$f":"IF(H87=\"\",\"\",G87*H87)","v":""}]
["3-shift (24 hr/day)",null,null,null,"Per Unit",null,400,null,""]
["4-shift (24 hr/day)",null,null,null,"Per Unit",null,400,null,""]
["High Frequency Batter Chargers Incentive",null,null,null,null,null,null,null,{"$f":"SUM(I86:I89)","v":0}]
["*Must have a minimum Power Conversion Efficiency of 90%, and a minimum 8-hour shift operation, five days per week."]
[]
["Lithium Ion Forklift Batteries"]
["Shift",null,null,null,"Incentive Unit",null,"Incentive/Unit","Quantity","Incentive"]
["1-shift (8 hr/day)",null,null,null,"Per Unit",null,5000,null,{"$f":"IF(H95=\"\",\"\",G95*H95)","v":""}]
["2-shift (16 hr/day)",null,null,null,"Per Unit",null,5000,null,{"$f":"IF(H96=\"\",\"\",G96*H96)","v":""}]
["3-shift (24 hr/day)",null,null,null,"Per Unit",null,5000,null,""]
["4-shift (24 hr/day)",null,null,null,"Per Unit",null,5000,null,""]
["High Frequency Batter Chargers Incentive",null,null,null,null,null,null,null,{"$f":"SUM(I95:I98)","v":0}]
["*Class I, II, or III forklifts powered by a lithium ion battery, and a minimum 8-hour shift operation, five days per week."]
[]
["Total Industrial Incentives",null,null,null,null,null,null,null,{"$f":"SUM(I7,I31,I43,I59,I75,I82,I90,I99)","v":0}]

{"sheet":"Miscellaneous","index":12,"n_rows":44,"n_cols":25,"rows_kept":44,"cut":false,"hidden":false,"merged":[[35,0,35,3],[31,0,31,8],[34,6,34,8],[35,6,35,8],[36,6,36,8],[29,0,29,5],[32,0,32,1],[32,2,32,4],[32,6,32,8],[33,0,33,1],[33,2,33,4],[33,6,33,8],[23,6,23,8],[24,6,24,8],[25,6,25,8],[26,6,26,8],[39,6,39,8],[29,6,29,8],[37,6,37,8],[38,6,38,8],[43,0,43,6],[43,7,43,8],[0,0,0,8],[20,2,20,4],[21,2,21,4],[20,6,20,8],[21,6,21,8],[39,0,39,3],[40,0,40,3],[40,6,40,8],[41,0,41,5],[41,6,41,8],[36,0,36,3],[37,0,37,3],[38,0,38,3],[34,0,34,3],[28,0,28,3],[28,6,28,8],[20,0,20,1],[21,0,21,1],[2,0,2,8],[16,0,16,7],[17,0,17,8],[19,0,19,8],[27,6,27,8],[22,0,22,3],[23,0,23,3],[24,0,24,3],[25,0,25,3],[26,0,26,3],[27,0,27,3],[22,6,22,8]]}
["MISCELLANEOUS INCENTIVES"]
["Applicant: fill in gray fields"]
["Window Film (Must have 10% lower Shading Coeffient than pre-existing shading type; see spec for details. Pre-application required)",null,null,null,null,null,null,null,null,null,null,null,null,null,null,"Cooling Solar Heat Gain [Btu/ft2-year]",null,null,null,null,"Shading Type","Shading Coefficient",null,"Cooling Efficiency* [SEER]","Cooling Efficiency* [EER]"]
["Region","Orientation","Cooling Solar Heat Gain [Btu/ft2-year]","Area of Window Film [ft2]","Incentive/ft2","Existing Shading Type","Pre-Existing Shading Coefficient","New Shading Coefficient","Incentive",null,"Energy Savings [KWh]","Peak Hour Solar Heat Gain [Btu/hr-ft2-year]","Demand Savings [KW]",null,"Orientation","Central - NM","South - NM","Roswell","North - NM",null,"Single-Pane - None",0.93,null,12.64,10.17]
[null,null,{"$f":"_xlfn.IFNA(INDEX($P$5:$S$12,MATCH(B5,$O$5:$O$12,0),MATCH(A5,$P$4:$S$4,0)),\"\")","v":""},null,1.2,null,{"$f":"_xlfn.IFNA(_xlfn.XLOOKUP($F5,$U$4:$U$13,$V$4:$V$13,\"\",0),\"\")","v":""},null,{"$f":"IFERROR(IF($H5<=($G5-(0.1*$G5)),IF(OR($D5=0,$K5=\"\",$M5=\"\"),\"\",$D5*$E5),0),\"\")","v":""},null,{"$f":"IF(OR(A5=\"\",B5=\"\",D5=\"\",H5=\"\"),\"\",IFERROR((D5*C5*(G5-H5))/($X$4*1000),\"\"))","v":""},{"$f":"_xlfn.IFNA(INDEX($P$16:$S$23,MATCH(B5,$O$16:$O$23,0),MATCH(A5,$P$15:$S$15,0)),\"\")","v":""},{"$f":"IF(OR(D5=\"\",H5=\"\"),\"\",IFERROR((D5*L5*(G5-H5))/($Y$4*1000),\"\"))","v":""},null,"North",67108,69897,68618,67995,null,"Single-Pane- Roller Shade",0.6]
[null,null,"",null,1.2,null,"",null,{"$f":"IFERROR(IF($H6<=($G6-(0.1*$G6)),IF(OR($D6=0,$K6=\"\",$M6=\"\"),\"\",$D6*$E6),0),\"\")","v":""},null,{"$f":"IF(OR(A6=\"\",B6=\"\",D6=\"\",H6=\"\"),\"\",IFERROR((D6*C6*(G6-H6))/($X$4*1000),\"\"))","v":""},"",{"$f":"IF(OR(D6=\"\",H6=\"\"),\"\",IFERROR((D6*L6*(G6-H6))/($Y$4*1000),\"\"))","v":""},null,"North-East",102259,103459,98399,103426,null,"Single-Pane - Louvered Interior shades",0.56000000000000005]
[null,null,"",null,1.2,null,"",null,"",null,"","","",null,"East",145112,141559,137424,145519,null,"Single-Pane - Draperies -- Open Weave",0.67]
[null,null,"",null,1.2,null,"",null,"",null,"","","",null,"South-East",148340,141019,140248,147647,null,"Single-Pane - Draperies -- Closed Weave",0.56000000000000005]
[null,null,"",null,1.2,null,"",null,"",null,"","","",null,"South",132595,126016,126800,129217,null,"Double-Pane - None",0.8]
[null,null,"",null,1.2,null,"",null,"",null,"","","",null,"South-West",140262,139677,139550,134108,null,"Double-Pane- Roller Shade",0.62]
[null,null,"",null,1.2,null,"",null,"",null,"","","",null,"West",133326,139363,137442,127718,null,"Double-Pane - Louvered Interior shades",0.57999999999999996]
[null,null,"",null,1.2,null,"",null,"",null,"","","",null,"North-West",93741,100581,99132,91707,null,"Double-Pane - Draperies -- Open Weave",0.64]
[null,null,"",null,1.2,null,"",null,"",null,"","","",null,null,null,null,null,null,null,"Double-Pane - Draperies -- Closed Weave",0.57999999999999996]
[null,null,"",null,1.2,null,"",null,"",null,"","","",null,null,"Peak Hour Solar Heat Gain [Btu/hr-ft2-year]"]
[null,null,"",null,1.2,null,"",null,"",null,"","","",null,"Orientation","Central - NM","South - NM","Roswell","North - NM"]
[null,null,"",null,1.2,null,"",null,"",null,"","","",null,"North",37,39,38,37]
["Window Film Incentive",null,null,null,null,null,null,null,{"$f":"SUM($I$5:$I$16)","v":0},null,null,null,null,null,"North-East",55,55,53,56]
["*Cooling efficiency is a weighted average of HVAC cooling part load system efficiency of commercial buldings.",null,null,null,null,null,null,null,null,null,null,null,null,null,"East",71,70,67,73]
[null,null,null,null,null,null,null,null,null,null,null,null,null,null,"South-East",64,61,60,65]
["Low-flow Showerheads (w/Electric Water Heaters)",null,null,null,null,null,null,null,null,null,null,null,null,null,"South",50,46,48,49]
["Flow (GPM)",null,"Incentive/Unit",null,null,"Flow (GPM)","Incenitve/Unit",null,null,null,null,null,null,null,"South-West",58,59,60,54]
[1.5,null,7,null,null,2,5,null,null,null,null,null,null,null,"West",63,67,67,58]
["Flow (GPM)",null,null,null,"Incentive Unit","# of Units","Incentive",null,null,null,null,null,null,null,"North-West",49,53,53,46]
[null,null,null,null,"Unit",null,{"$f":"IF(ISBLANK(F24),\"\",IF(A24=1.5,7,IF(A24=2,5,\"\"))*F24)","v":""}]
[null,null,null,null,"Unit",null,{"$f":"IF(ISBLANK(F25),\"\",IF(A25=1.5,7,IF(A25=2,5,\"\"))*F25)","v":""}]
[null,null,null,null,"Unit",null,""]
[null,null,null,null,"Unit",null,""]
[null,null,null,null,"Unit",null,""]
[null,null,null,null,"Unit",null,""]
["Low-flow Showerheads Incentive",null,null,null,null,null,{"$f":"SUM(G24:I29)","v":0}]
[]
["Low-flow Faucets Aerators (w/Electric Water Heaters)"]
["Flow (GPM)",null,"Incentive/Unit",null,null,"Flow (GPM)","Incenitve/Unit",null,null,null,null,null,null,null,"South-West",58,59,60,54]
[0.5,null,10,null,null,1,8,null,null,null,null,null,null,null,"West",63,67,67,58]
["Flow (GPM)",null,null,null,"Incentive Unit","# of Units","Incentive"]
[null,null,null,null,"Unit",null,{"$f":"IF(ISBLANK(F36),\"\",IF(A36=0.5,10,IF(A36=1,8,\"\"))*F36)","v":""}]
[null,null,null,null,"Unit",null,{"$f":"IF(ISBLANK(F37),\"\",IF(A37=1.5,7,IF(A37=2,5,\"\"))*F37)","v":""}]
[null,null,null,null,"Unit",null,""]
[null,null,null,null,"Unit",null,""]
[null,null,null,null,"Unit",null,""]
[null,null,null,null,"Unit",null,""]
["Low-flow Showerheads Incentive",null,null,null,null,null,{"$f":"SUM(G36:I41)","v":0}]
[]
["Total Miscellaneous Incentives",null,null,null,null,null,null,{"$f":"SUM(I17,G30,G42)","v":0}]

{"sheet":"Custom","index":13,"n_rows":59,"n_cols":9,"rows_kept":59,"cut":false,"hidden":false,"merged":[[47,4,47,6],[48,4,48,5],[61,0,61,9],[64,0,64,9],[66,0,66,9],[68,0,68,9],[58,0,59,9],[40,0,48,3],[40,4,40,5],[40,7,48,7],[40,8,48,9],[41,4,41,6],[42,4,42,5],[43,4,43,6],[44,4,44,5],[45,4,45,6],[46,4,46,5],[50,0,50,7],[50,8,50,9],[35,4,35,6],[36,4,36,5],[37,0,37,9],[38,0,38,9],[39,0,39,3],[39,4,39,6],[39,8,39,9],[28,0,36,3],[16,0,24,3],[16,4,16,5],[16,7,24,7],[16,8,24,9],[17,4,17,6],[49,0,49,9],[28,4,28,5],[28,7,36,7],[28,8,36,9],[29,4,29,6],[32,4,32,5],[33,4,33,6],[34,4,34,5],[23,4,23,6],[24,4,24,5],[25,0,25,9],[26,0,26,9],[27,0,27,3],[27,4,27,6],[27,8,27,9],[18,4,18,5],[19,4,19,6],[20,4,20,5],[21,4,21,6],[22,4,22,5],[31,4,31,6],[30,4,30,5],[13,0,13,9],[14,0,14,9],[15,0,15,3],[15,4,15,6],[15,8,15,9],[4,0,12,3],[4,4,4,5],[4,7,12,7],[4,8,12,9],[5,4,5,6],[2,0,2,9],[3,0,3,3],[3,4,3,6],[3,8,3,9],[11,4,11,6],[12,4,12,5],[6,4,6,5],[7,4,7,6],[8,4,8,5],[9,4,9,6],[78,0,78,9],[80,0,80,9],[0,6,0,9],[70,0,70,9],[72,0,72,9],[74,0,74,9],[76,0,76,9],[10,4,10,5],[0,3,0,5],[1,0,1,2]]}
[null,null,null,"CUSTOM INCENTIVES",null,null,"See specs at the bottom of the page!"]
["Applicant: fill in gray fields",null,null,"*Please attach supporting documentation as described in the specifications*"]
["Item 1"]
["Description",null,null,null,null,null,null,"$/kWh","Subtotal"]
[null,null,null,null,"Annual kWh Savings",null,null,0.08,{"$f":"IF(AND(G5>0,G11>0,G13>0),MIN(G5*H5,G11,0.5*G13),0)","v":0}]
[]
[null,null,null,null,"kW Savings"]
[]
[null,null,null,null,"Annual Operating Hours"]
[]
[null,null,null,null,"Incremental Measure Cost"]
[]
[null,null,null,null,"Total Project Cost"]
[]
["Item 2"]
["Description",null,null,null,null,null,null,"$/kWh","Subtotal"]
[null,null,null,null,"Annual kWh Savings",null,null,0.08,{"$f":"IF(AND(G17>0,G23>0,G25>0),MIN(G17*H17,G23,0.5*G25),0)","v":0}]
[]
[null,null,null,null,"kW Savings"]
[]
[null,null,null,null,"Annual Operating Hours"]
[]
[null,null,null,null,"Incremental Measure Cost"]
[]
[null,null,null,null,"Total Project Cost"]
[]
["Item 3"]
["Description",null,null,null,null,null,null,"$/kWh","Subtotal"]
[null,null,null,null,"Annual kWh Savings",null,null,0.08,{"$f":"IF(AND(G29>0,G35>0,G37>0),MIN(G29*H29,G35,0.5*G37),0)","v":0}]
[]
[null,null,null,null,"kW Savings"]
[]
[null,null,null,null,"Annual Operating Hours"]
[]
[null,null,null,null,"Incremental Measure Cost"]
[]
[null,null,null,null,"Total Project Cost"]
[]
["Item 4"]
["Description",null,null,null,null,null,null,"$/kWh","Subtotal"]
[null,null,null,null,"Annual kWh Savings",null,null,0.08,{"$f":"IF(AND(G41>0,G47>0,G49>0),MIN(G41*H41,G47,0.5*G49),0)","v":0}]
[]
[null,null,null,null,"kW Savings"]
[]
[null,null,null,null,"Annual Operating Hours"]
[]
[null,null,null,null,"Incremental Measure Cost"]
[]
[null,null,null,null,"Total Project Cost"]
[]
["Total Custom Incentives",null,null,null,null,null,null,null,{"$f":"I5+I17+I29+I41","v":0}]
[]
["Incremental measure cost (IMC) is the difference between the cost of an energy-efficient piece of equipment and a new"]
["standard-efficiency piece of equipment. The IMC of energy-efficient equipment installed before an old piece of equipment"]
["reaches the end of its life (such as lighting equipment) generally is equal to the total cost of the energy-efficient equipment,"]
["including labor. The IMC of energy-efficient equipment installed at or near the end of life of an old piece of equipment (such as"]
["chillers, motors, air-conditioning units) generally is equal to the difference in cost between the energy-efficient equipment and"]
["the new standard-efficiency piece of equipment, not including labor."]
["The rebate will be shown as 100% of the Incremental Measure Cost or 50% of the Total Project Cost. All Custom measures subject to approval using the Utility Cost Test (UCT). Submit calculations and costs for assistance."]